Workbook

Sheet SUSCEPTIBLES LISTADO (hidden)
A2: INSTITUTO DE SALUD DEL ESTADO DE MÉXICO
A3: SUBDIRECCIÓN DE EPIDEMIOLOGÍA
A4: DEPARTAMENTO DE SALUD DE LA INFANCIA Y ADOLESCENCIA
A5: PROGRAMA DE VACUNACIÓN UNIVERSAL
A6: CÁLCULO DE SUSCEPTIBLES POR ESTADO/JURISDICCIÓN/MUNICIPIO Y UNIDADES MÉDICAS
A7: CAMPAÑA DE VACUNACIÓN DE SEGUIMIENTO DE SARAMPIÓN RUBEOLA DE ALTA CALIDAD (CVS)
A9: INSTITUCIÓN: | C9: 2015 (5 AÑOS) | J9: 2016 (9 AÑOS) | Q9: 2017 (8 AÑOS) | X9: 2018 (7 AÑOS) | AE9: 2019 (6 AÑOS) | AL9: % TOTAL DE SUSCEPTIBLES
A10: No. | B10: MUNICIPIO/DISTRITO | C10: POBLACIÓN 12 A 23 MESES | D10: VACUNADOS CON SRP 1a DOSIS | E10: % DE COBERTURA | F10: NÚMERO DE NIÑOS NO VACUNADOS CON SRP | G10: VACUNADOS Y NO INMUNIZADOS (5% DE LOS VACUNADOS) | H10: TOTAL DE SUSCEPTIBLES | I10: % DE SUSCEPTIBLES POR COHORTE ANUAL | J10: POBLACIÓN 6 AÑOS | K10: VACUNADOS CON SRP 2a DOSIS | L10: % DE COBERTURA | M10: NÚMERO DE NIÑOS NO VACUNADOS CON SRP | N10: VACUNADOS Y NO INMUNIZADOS (5% DE LOS VACUNADOS) | O10: TOTAL DE SUSCEPTIBLES | P10: % DE SUSCEPTIBLES POR COHORTE ANUAL | Q10: POBLACIÓN 6 AÑOS | R10: VACUNADOS CON SRP 2a DOSIS | S10: % DE COBERTURA | T10: NÚMERO DE NIÑOS NO VACUNADOS CON SRP | U10: VACUNADOS Y NO INMUNIZADOS (5% DE LOS VACUNADOS) | V10: TOTAL DE SUSCEPTIBLES | W10: % DE SUSCEPTIBLES POR COHORTE ANUAL | X10: POBLACIÓN 6 AÑOS | Y10: VACUNADOS CON SRP 2a DOSIS | Z10: % DE COBERTURA | AA10: NÚMERO DE NIÑOS NO VACUNADOS CON SRP | AB10: VACUNADOS Y NO INMUNIZADOS (5% DE LOS VACUNADOS) | AC10: TOTAL DE SUSCEPTIBLES | AD10: % DE SUSCEPTIBLES POR COHORTE ANUAL | AE10: POBLACIÓN 6 AÑOS | AF10: VACUNADOS CON SRP 2a DOSIS | AG10: % DE COBERTURA | AH10: NÚMERO DE NIÑOS NO VACUNADOS CON SRP | AI10: VACUNADOS Y NO INMUNIZADOS (5% DE LOS VACUNADOS) | AJ10: TOTAL DE SUSCEPTIBLES | AK10: % DE SUSCEPTIBLES POR COHORTE ANUAL
A11: 1 | B11: 1 ACAMBAY DE RUÍZ CASTAÑEDA | C11: 1217 | D11: 1415 | E11: =D11/C11*100 -> 116.2695152 | F11: =C11-D11 -> -198 | G11: =D11*5/100 -> 70.75 | H11: =F11+G11 -> -127.25 | I11: =H11/C11*100 -> -10.45603944 | J11: 1342 | K11: 1189 | L11: =K11/J11*100 -> 88.59910581 | M11: =J11-K11 -> 153 | N11: =K11*5/100 -> 59.45 | O11: =M11+N11 -> 212.45 | P11: =O11/J11*100 -> 15.83084948 | Q11: 1249 | R11: 1033 | S11: =R11/Q11*100 -> 82.70616493 | T11: =Q11-R11 -> 216 | U11: =R11*5/100 -> 51.65 | V11: =T11+U11 -> 267.65 | W11: =V11/Q11*100 -> 21.42914331 | X11: 1301 | Y11: 2177 | Z11: =Y11/X11*100 -> 167.3328209 | AA11: =X11-Y11 -> -876 | AB11: =Y11*5/100 -> 108.85 | AC11: =AA11+AB11 -> -767.15 | AD11: =AC11/X11*100 -> -58.96617986 | AE11: 1301 | AF11: 18 | AG11: =AF11/AE11*100 -> 1.383551115 | AH11: =AE11-AF11 -> 1283 | AI11: =AF11*5/100 -> 0.9 | AJ11: =AH11+AI11 -> 1283.9 | AK11: =AJ11/AE11*100 -> 98.68562644 | AL11: =SUM(H11,O11,V11,AC11,AJ11)*100 -> 86960
A12: 2 | B12: 14 ATLACOMULCO | C12: 1779 | D12: 1885 | E12: =D12/C12*100 -> 105.9584036 | F12: =C12-D12 -> -106 | G12: =D12*5/100 -> 94.25 | H12: =F12+G12 -> -11.75 | I12: =H12/C12*100 -> -0.6604834177 | J12: 2042 | K12: 1974 | L12: =K12/J12*100 -> 96.66993144 | M12: =J12-K12 -> 68 | N12: =K12*5/100 -> 98.7 | O12: =M12+N12 -> 166.7 | P12: =O12/J12*100 -> 8.163565132 | Q12: 1857 | R12: 1030 | S12: =R12/Q12*100 -> 55.46580506 | T12: =Q12-R12 -> 827 | U12: =R12*5/100 -> 51.5 | V12: =T12+U12 -> 878.5 | W12: =V12/Q12*100 -> 47.30748519 | X12: 1885 | Y12: 2938 | Z12: =Y12/X12*100 -> 155.862069 | AA12: =X12-Y12 -> -1053 | AB12: =Y12*5/100 -> 146.9 | AC12: =AA12+AB12 -> -906.1 | AD12: =AC12/X12*100 -> -48.06896552 | AE12: 1885 | AF12: 35 | AG12: 1.856763926 | AH12: 1850 | AI12: 1.75 | AJ12: 1851.75 | AK12: =AJ12/AE12*100 -> 98.23607427 | AL12: =SUM(H12,O12,V12,AC12,AJ12)*100 -> 197910
A13: 3 | B13: 64 EL ORO | C13: 664 | D13: 776 | E13: 116.8674699 | F13: -112 | G13: 38.8 | H13: -73.2 | I13: -11.02409639 | J13: 746 | K13: 667 | L13: 89.41018767 | M13: 79 | N13: 33.35 | O13: 112.35 | P13: 15.06032172 | Q13: 707 | R13: 177 | S13: 25.03536068 | T13: 530 | U13: 8.85 | V13: 538.85 | W13: 76.21640736 | X13: 722 | Y13: 1291 | Z13: 178.8088643 | AA13: -569 | AB13: 64.55 | AC13: -504.45 | AD13: -69.86842105 | AE13: 722 | AF13: 2 | AG13: 0.2770083102 | AH13: 720 | AI13: 0.1 | AJ13: 720.1 | AK13: 99.73684211 | AL13: 79365
A14: 4 | B14: 85 TEMASCALCINGO | C14: 1707 | D14: 1356 | E14: 79.43760984 | F14: 351 | G14: 67.8 | H14: 418.8 | I14: 24.53427065 | J14: 1528 | K14: 1258 | L14: 82.32984293 | M14: 270 | N14: 62.9 | O14: 332.9 | P14: 21.78664921 | Q14: 1411 | R14: 271 | S14: 19.20623671 | T14: 1140 | U14: 13.55 | V14: 1153.55 | W14: 81.75407512 | X14: 1433 | Y14: 2207 | Z14: 154.0125611 | AA14: -774 | AB14: 110.35 | AC14: -663.65 | AD14: -46.31193301 | AE14: 1436 | AF14: 113 | AG14: 7.86908078 | AH14: 1323 | AI14: 5.65 | AJ14: 1328.65 | AK14: 92.52437326 | AL14: 257025
A15: 5 | B15: 42 IXTLAHUACA | C15: 2350 | D15: 1943 | E15: 82.68085106 | F15: 407 | G15: 97.15 | H15: 504.15 | I15: 21.45319149 | J15: 2159 | K15: 2174 | L15: 100.6947661 | M15: -15 | N15: 108.7 | O15: 93.7 | P15: 4.339972209 | Q15: 2442 | R15: 869 | S15: 35.58558559 | T15: 1573 | U15: 43.45 | V15: 1616.45 | W15: 66.19369369 | X15: 2640 | Y15: 2700 | Z15: 102.2727273 | AA15: -60 | AB15: 135 | AC15: 75 | AD15: 2.840909091 | AE15: 3375 | AF15: 1008 | AG15: 29.86666667 | AH15: 2367 | AI15: 50.4 | AJ15: 2417.4 | AK15: 71.62666667 | AL15: 470670
A16: 6 | B16: 47 JIQUIPILCO | C16: 1677 | D16: 1032 | E16: 61.53846154 | F16: 645 | G16: 51.6 | H16: 696.6 | I16: 41.53846154 | J16: 1651 | K16: 1489 | L16: 90.18776499 | M16: 162 | N16: 74.45 | O16: 236.45 | P16: 14.32162326 | Q16: 1736 | R16: 616 | S16: 35.48387097 | T16: 1120 | U16: 30.8 | V16: 1150.8 | W16: 66.29032258 | X16: 1513 | Y16: 1578 | Z16: 104.2961005 | AA16: -65 | AB16: 78.9 | AC16: 13.9 | AD16: 0.9187045605 | AE16: 1519 | AF16: 666 | AG16: 43.84463463 | AH16: 853 | AI16: 33.3 | AJ16: 886.3 | AK16: 58.3475971 | AL16: 298405
A17: 7 | B17: 48 JOCOTITLÁN | C17: 1263 | D17: 1030 | E17: 81.55186065 | F17: 233 | G17: 51.5 | H17: 284.5 | I17: 22.52573238 | J17: 1170 | K17: 1217 | L17: 104.017094 | M17: -47 | N17: 60.85 | O17: 13.85 | P17: 1.183760684 | Q17: 1191 | R17: 511 | S17: 42.90512175 | T17: 680 | U17: 25.55 | V17: 705.55 | W17: 59.24013434 | X17: 1306 | Y17: 1493 | Z17: 114.3185299 | AA17: -187 | AB17: 74.65 | AC17: -112.35 | AD17: -8.602603369 | AE17: 1281 | AF17: 689 | AG17: 53.78610461 | AH17: 592 | AI17: 34.45 | AJ17: 626.45 | AK17: 48.90320062 | AL17: 151800
A18: 8 | B18: 56 MORELOS | C18: 760 | D18: 625 | E18: 82.23684211 | F18: 135 | G18: 31.25 | H18: 166.25 | I18: 21.875 | J18: 681 | K18: 678 | L18: 99.55947137 | M18: 3 | N18: 33.9 | O18: 36.9 | P18: 5.418502203 | Q18: 693 | R18: 291 | S18: 41.99134199 | T18: 402 | U18: 14.55 | V18: 416.55 | W18: 60.10822511 | X18: 620 | Y18: 648 | Z18: 104.516129 | AA18: -28 | AB18: 32.4 | AC18: 4.4 | AD18: 0.7096774194 | AE18: 592 | AF18: 237 | AG18: 40.03378378 | AH18: 355 | AI18: 11.85 | AJ18: 366.85 | AK18: 61.96790541 | AL18: 99095
A19: 9 | B19: 74 SAN FELIPE DEL PROGRESO | C19: 3152 | D19: 2735 | E19: 86.77030457 | F19: 417 | G19: 136.75 | H19: 553.75 | I19: 17.56821066 | J19: 3133 | K19: 2967 | L19: 94.701564 | M19: 166 | N19: 148.35 | O19: 314.35 | P19: 10.0335142 | Q19: 3328 | R19: 1183 | S19: 35.546875 | T19: 2145 | U19: 59.15 | V19: 2204.15 | W19: 66.23046875 | X19: 3459 | Y19: 3478 | Z19: 100.5492917 | AA19: -19 | AB19: 173.9 | AC19: 154.9 | AD19: 4.478172882 | AE19: 3693 | AF19: 1105 | AG19: 29.92147306 | AH19: 2588 | AI19: 55.25 | AJ19: 2643.25 | AK19: 71.5746006 | AL19: 587040
A20: 10 | B20: 124 SAN JOSÉ DEL RINCÓN | C20: 2161 | D20: 1957 | E20: 90.55992596 | F20: 204 | G20: 97.85 | H20: 301.85 | I20: 13.96807034 | J20: 2879 | K20: 3279 | L20: 113.8937131 | M20: -400 | N20: 163.95 | O20: -236.05 | P20: -8.19902744 | Q20: 2661 | R20: 1252 | S20: 47.04998121 | T20: 1409 | U20: 62.6 | V20: 1471.6 | W20: 55.30251785 | X20: 2629 | Y20: 2636 | Z20: 100.2662609 | AA20: -7 | AB20: 131.8 | AC20: 124.8 | AD20: 4.747052111 | AE20: 2613 | AF20: 903 | AG20: 34.55797933 | AH20: 1710 | AI20: 45.15 | AJ20: 1755.15 | AK20: 67.16991963 | AL20: 341735
A21: 11 | B21: 3 ACULCO | C21: 1078 | D21: 856 | E21: 79.40630798 | F21: 222 | G21: 42.8 | H21: 264.8 | I21: 24.56400742 | J21: 1109 | K21: 982 | L21: 88.54824166 | M21: 127 | N21: 49.1 | O21: 176.1 | P21: 15.87917042 | Q21: 980 | R21: 13 | S21: 1.326530612 | T21: 967 | U21: 0.65 | V21: 967.65 | W21: 98.73979592 | X21: 1112 | Y21: 1378 | Z21: 123.9208633 | AA21: -266 | AB21: 68.9 | AC21: -197.1 | AD21: -17.72482014 | AE21: 1074 | AF21: 373 | AG21: 34.72998138 | AH21: 701 | AI21: 18.65 | AJ21: 719.65 | AK21: 67.00651769 | AL21: 193110
A22: 12 | B22: 26 CHAPA DE MOTA | C22: 654 | D22: 436 | E22: 66.66666667 | F22: 218 | G22: 21.8 | H22: 239.8 | I22: 36.66666667 | J22: 603 | K22: 557 | L22: 92.37147595 | M22: 46 | N22: 27.85 | O22: 73.85 | P22: 12.24709784 | Q22: 633 | R22: 19 | S22: 3.001579779 | T22: 614 | U22: 0.95 | V22: 614.95 | W22: 97.14849921 | X22: 682 | Y22: 916 | Z22: 134.3108504 | AA22: -234 | AB22: 45.8 | AC22: -188.2 | AD22: -27.59530792 | AE22: 680 | AF22: 76 | AG22: 11.17647059 | AH22: 604 | AI22: 3.8 | AJ22: 607.8 | AK22: 89.38235294 | AL22: 134820
A23: 13 | B23: 45 JILOTEPEC | C23: 1844 | D23: 1679 | E23: 91.05206074 | F23: 165 | G23: 83.95 | H23: 248.95 | I23: 13.5005423 | J23: 1686 | K23: 1670 | L23: 99.0510083 | M23: 16 | N23: 83.5 | O23: 99.5 | P23: 5.901542112 | Q23: 1635 | R23: 3 | S23: 0.1834862385 | T23: 1632 | U23: 0.15 | V23: 1632.15 | W23: 99.82568807 | X23: 1739 | Y23: 2030 | Z23: 116.733755 | AA23: -291 | AB23: 101.5 | AC23: -189.5 | AD23: -10.89706728 | AE23: 1527 | AF23: 705 | AG23: 46.16895874 | AH23: 822 | AI23: 35.25 | AJ23: 857.25 | AK23: 56.13948919 | AL23: 264835
A24: 14 | B24: 71 POLOTITLÁN | C24: 279 | D24: 203 | E24: 72.75985663 | F24: 76 | G24: 10.15 | H24: 86.15 | I24: 30.8781362 | J24: 239 | K24: 263 | L24: 110.041841 | M24: -24 | N24: 13.15 | O24: -10.85 | P24: -4.539748954 | Q24: 459 | R24: 9 | S24: 1.960784314 | T24: 450 | U24: 0.45 | V24: 450.45 | W24: 98.1372549 | X24: 272 | Y24: 435 | Z24: 159.9264706 | AA24: -163 | AB24: 21.75 | AC24: -141.25 | AD24: -51.93014706 | AE24: 298 | AF24: 56 | AG24: 18.79194631 | AH24: 242 | AI24: 2.8 | AJ24: 244.8 | AK24: 82.14765101 | AL24: 62930
A25: 15 | B25: 79 SOYANIQUILPAN DE JUÁREZ | C25: 242 | D25: 180 | E25: 74.38016529 | F25: 62 | G25: 9 | H25: 71 | I25: 29.33884298 | J25: 214 | K25: 255 | L25: 119.1588785 | M25: -41 | N25: 12.75 | O25: -28.25 | P25: -13.20093458 | Q25: 226 | R25: 965 | S25: 426.9911504 | T25: -739 | U25: 48.25 | V25: -690.75 | W25: -305.6415929 | X25: 233 | Y25: 379 | Z25: 162.6609442 | AA25: -146 | AB25: 18.95 | AC25: -127.05 | AD25: -54.527897 | AE25: 260 | AF25: 64 | AG25: 24.61538462 | AH25: 196 | AI25: 3.2 | AJ25: 199.2 | AK25: 76.61538462 | AL25: -57585
A26: 16 | B26: 102 TIMILPAN | C26: 337 | D26: 323 | E26: 95.84569733 | F26: 14 | G26: 16.15 | H26: 30.15 | I26: 8.946587537 | J26: 284 | K26: 296 | L26: 104.2253521 | M26: -12 | N26: 14.8 | O26: 2.8 | P26: 0.985915493 | Q26: 353 | R26: 387 | S26: 109.631728 | T26: -34 | U26: 19.35 | V26: -14.65 | W26: -4.150141643 | X26: 323 | Y26: 508 | Z26: 157.2755418 | AA26: -185 | AB26: 25.4 | AC26: -159.6 | AD26: -49.41176471 | AE26: 399 | AF26: 75 | AG26: 18.79699248 | AH26: 324 | AI26: 3.75 | AJ26: 327.75 | AK26: 82.14285714 | AL26: 18645
A27: 17 | B27: 112 VILLA DEL CARBÓN | C27: 1085 | D27: 928 | E27: 85.52995392 | F27: 157 | G27: 46.4 | H27: 203.4 | I27: 18.74654378 | J27: 1119 | K27: 931 | L27: 83.19928508 | M27: 188 | N27: 46.55 | O27: 234.55 | P27: 20.96067918 | Q27: 1007 | R27: 2479 | S27: 246.1767627 | T27: -1472 | U27: 123.95 | V27: -1348.05 | W27: -133.8679245 | X27: 1012 | Y27: 1325 | Z27: 130.9288538 | AA27: -313 | AB27: 66.25 | AC27: -246.75 | AD27: -24.38241107 | AE27: 1023 | AF27: 235 | AG27: 22.971652 | AH27: 788 | AI27: 11.75 | AJ27: 799.75 | AK27: 78.1769306 | AL27: -35710
A28: 18 | B28: 6 ALMOLOYA DEL RÍO | C28: 167 | D28: 189 | E28: 113.1736527 | F28: -22 | G28: 9.45 | H28: -12.55 | I28: -7.51497006 | J28: 364 | K28: 250 | L28: 68.68131868 | M28: 114 | N28: 12.5 | O28: 126.5 | P28: 34.75274725 | Q28: 364 | R28: 464 | S28: 127.4725275 | T28: -100 | U28: 23.2 | V28: -76.8 | W28: -21.0989011 | X28: 376 | Y28: 278 | Z28: 73.93617021 | AA28: 98 | AB28: 13.9 | AC28: 111.9 | AD28: 29.7606383 | AE28: 382 | AF28: 8 | AG28: 2.094240838 | AH28: 374 | AI28: 0.4 | AJ28: 374.4 | AK28: 98.0104712 | AL28: 52345
A29: 19 | B29: 12 ATIZAPÁN | C29: 187 | D29: 252 | E29: 134.7593583 | F29: -65 | G29: 12.6 | H29: -52.4 | I29: -28.02139037 | J29: 191 | K29: 298 | L29: 156.0209424 | M29: -107 | N29: 14.9 | O29: -92.1 | P29: -48.21989529 | Q29: 191 | R29: 1255 | S29: 657.0680628 | T29: -1064 | U29: 62.75 | V29: -1001.25 | W29: -524.2146597 | X29: 194 | Y29: 257 | Z29: 132.4742268 | AA29: -63 | AB29: 12.85 | AC29: -50.15 | AD29: -25.85051546 | AE29: 197 | AF29: 7 | AG29: 3.553299492 | AH29: 190 | AI29: 0.35 | AJ29: 190.35 | AK29: 96.62436548 | AL29: -100555
A30: 20 | B30: 18 CALIMAYA | C30: 856 | D30: 738 | E30: 86.21495327 | F30: 118 | G30: 36.9 | H30: 154.9 | I30: 18.09579439 | J30: 925 | K30: 625 | L30: 67.56756757 | M30: 300 | N30: 31.25 | O30: 331.25 | P30: 35.81081081 | Q30: 925 | R30: 80 | S30: 8.648648649 | T30: 845 | U30: 4 | V30: 849 | W30: 91.78378378 | X30: 938 | Y30: 1631 | Z30: 173.880597 | AA30: -693 | AB30: 81.55 | AC30: -611.45 | AD30: -65.18656716 | AE30: 957 | AF30: 3 | AG30: 0.3134796238 | AH30: 954 | AI30: 0.15 | AJ30: 954.15 | AK30: 99.70219436 | AL30: 167785
A31: 21 | B31: 19 CAPULHUAC | C31: 650 | D31: 621 | E31: 95.53846154 | F31: 29 | G31: 31.05 | H31: 60.05 | I31: 9.238461538 | J31: 803 | K31: 449 | L31: 55.91531756 | M31: 354 | N31: 22.45 | O31: 376.45 | P31: 46.88044832 | Q31: 803 | R31: 303 | S31: 37.73349938 | T31: 500 | U31: 15.15 | V31: 515.15 | W31: 64.15317559 | X31: 816 | Y31: 641 | Z31: 78.55392157 | AA31: 175 | AB31: 32.05 | AC31: 207.05 | AD31: 25.37377451 | AE31: 828 | AF31: 11 | AG31: 1.328502415 | AH31: 817 | AI31: 0.55 | AJ31: 817.55 | AK31: 98.73792271 | AL31: 197625
A32: 22 | B32: 27 CHAPULTEPEC | C32: 148 | D32: 132 | E32: 89.18918919 | F32: 16 | G32: 6.6 | H32: 22.6 | I32: 15.27027027 | J32: 201 | K32: 253 | L32: 125.8706468 | M32: -52 | N32: 12.65 | O32: -39.35 | P32: -19.57711443 | Q32: 201 | R32: 678 | S32: 337.3134328 | T32: -477 | U32: 33.9 | V32: -443.1 | W32: -220.4477612 | X32: 204 | Y32: 252 | Z32: 123.5294118 | AA32: -48 | AB32: 12.6 | AC32: -35.4 | AD32: -17.35294118 | AE32: 201 | AF32: 6 | AG32: 2.985074627 | AH32: 195 | AI32: 0.3 | AJ32: 195.3 | AK32: 97.1641791 | AL32: -29995
A33: 23 | B33: 43 XALATLACO | C33: 451 | D33: 624 | E33: 138.3592018 | F33: -173 | G33: 31.2 | H33: -141.8 | I33: -31.44124169 | J33: 347 | K33: 473 | L33: 136.3112392 | M33: -126 | N33: 23.65 | O33: -102.35 | P33: -29.49567723 | Q33: 347 | R33: 288 | S33: 82.99711816 | T33: 59 | U33: 14.4 | V33: 73.4 | W33: 21.15273775 | X33: 351 | Y33: 573 | Z33: 163.2478632 | AA33: -222 | AB33: 28.65 | AC33: -193.35 | AD33: -55.08547009 | AE33: 355 | AF33: 43 | AG33: 12.11267606 | AH33: 312 | AI33: 2.15 | AJ33: 314.15 | AK33: 88.49295775 | AL33: -4995
A34: 24 | B34: 49 JOQUICINGO | C34: 225 | D34: 273 | E34: 121.3333333 | F34: -48 | G34: 13.65 | H34: -34.35 | I34: -15.26666667 | J34: 358 | K34: 308 | L34: 86.03351955 | M34: 50 | N34: 15.4 | O34: 65.4 | P34: 18.26815642 | Q34: 358 | R34: 846 | S34: 236.3128492 | T34: -488 | U34: 42.3 | V34: -445.7 | W34: -124.4972067 | X34: 365 | Y34: 323 | Z34: 88.49315068 | AA34: 42 | AB34: 16.15 | AC34: 58.15 | AD34: 15.93150685 | AE34: 371 | AF34: 1164 | AG34: 313.7466307 | AH34: -793 | AI34: 58.2 | AJ34: -734.8 | AK34: -198.0592992 | AL34: -109130
A35: 25 | B35: 55 MEXICALTZINGO | C35: 206 | D35: 176 | E35: 85.4368932 | F35: 30 | G35: 8.8 | H35: 38.8 | I35: 18.83495146 | J35: 216 | K35: 212 | L35: 98.14814815 | M35: 4 | N35: 10.6 | O35: 14.6 | P35: 6.759259259 | Q35: 216 | R35: 18 | S35: 8.333333333 | T35: 198 | U35: 0.9 | V35: 198.9 | W35: 92.08333333 | X35: 219 | Y35: 268 | Z35: 122.3744292 | AA35: -49 | AB35: 13.4 | AC35: -35.6 | AD35: -16.25570776 | AE35: 222 | AF35: 535 | AG35: 240.990991 | AH35: -313 | AI35: 26.75 | AJ35: -286.25 | AK35: -128.9414414 | AL35: -6955
A36: 26 | B36: 72 RAYÓN | C36: 251 | D36: 344 | E36: 137.0517928 | F36: -93 | G36: 17.2 | H36: -75.8 | I36: -30.19920319 | J36: 301 | K36: 279 | L36: 92.6910299 | M36: 22 | N36: 13.95 | O36: 35.95 | P36: 11.94352159 | Q36: 204 | R36: 9 | S36: 4.411764706 | T36: 195 | U36: 0.45 | V36: 195.45 | W36: 95.80882353 | X36: 207 | Y36: 249 | Z36: 120.2898551 | AA36: -42 | AB36: 12.45 | AC36: -29.55 | AD36: -14.27536232 | AE36: 210 | AF36: 1613 | AG36: 768.0952381 | AH36: -1403 | AI36: 80.65 | AJ36: -1322.35 | AK36: -629.6904762 | AL36: -119630
A37: 27 | B37: 73 SAN ANTONIO LA ISLA | C37: 245 | D37: 296 | E37: 120.8163265 | F37: -51 | G37: 14.8 | H37: -36.2 | I37: -14.7755102 | J37: 253 | K37: 610 | L37: 241.1067194 | M37: -357 | N37: 30.5 | O37: -326.5 | P37: -129.0513834 | Q37: 253 | R37: 123 | S37: 48.61660079 | T37: 130 | U37: 6.15 | V37: 136.15 | W37: 53.81422925 | X37: 257 | Y37: 506 | Z37: 196.8871595 | AA37: -249 | AB37: 25.3 | AC37: -223.7 | AD37: -87.04280156 | AE37: 261 | AF37: 664 | AG37: 254.4061303 | AH37: -403 | AI37: 33.2 | AJ37: -369.8 | AK37: -141.6858238 | AL37: -82005
A38: 28 | B38: 90 TENANGO DEL VALLE | C38: 1475 | D38: 1540 | E38: 104.4067797 | F38: -65 | G38: 77 | H38: 12 | I38: 0.813559322 | J38: 1621 | K38: 1692 | L38: 104.3800123 | M38: -71 | N38: 84.6 | O38: 13.6 | P38: 0.8389882788 | Q38: 1658 | R38: 260 | S38: 15.68154403 | T38: 1398 | U38: 13 | V38: 1411 | W38: 85.10253317 | X38: 1682 | Y38: 1283 | Z38: 76.27824019 | AA38: 399 | AB38: 64.15 | AC38: 463.15 | AD38: 27.53567182 | AE38: 1706 | AF38: 73 | AG38: 4.27901524 | AH38: 1633 | AI38: 3.65 | AJ38: 1636.65 | AK38: 95.93493552 | AL38: 353640
A39: 29 | B39: 98 TEXCALYACAC | C39: 97 | D39: 121 | E39: 124.742268 | F39: -24 | G39: 6.05 | H39: -17.95 | I39: -18.50515464 | J39: 105 | K39: 126 | L39: 120 | M39: -21 | N39: 6.3 | O39: -14.7 | P39: -14 | Q39: 105 | R39: 191 | S39: 181.9047619 | T39: -86 | U39: 9.55 | V39: -76.45 | W39: -72.80952381 | X39: 107 | Y39: 136 | Z39: 127.1028037 | AA39: -29 | AB39: 6.8 | AC39: -22.2 | AD39: -20.74766355 | AE39: 109 | AF39: 99 | AG39: 90.82568807 | AH39: 10 | AI39: 4.95 | AJ39: 14.95 | AK39: 13.71559633 | AL39: -11635
A40: 30 | B40: 101 TIANGUISTENCO | C40: 1481 | D40: 1305 | E40: 88.11613774 | F40: 176 | G40: 65.25 | H40: 241.25 | I40: 16.28966914 | J40: 1436 | K40: 1502 | L40: 104.5961003 | M40: -66 | N40: 75.1 | O40: 9.1 | P40: 0.6337047354 | Q40: 1436 | R40: 178 | S40: 12.39554318 | T40: 1258 | U40: 8.9 | V40: 1266.9 | W40: 88.22423398 | X40: 1458 | Y40: 1418 | Z40: 97.25651578 | AA40: 40 | AB40: 70.9 | AC40: 110.9 | AD40: 7.606310014 | AE40: 1480 | AF40: 46 | AG40: 3.108108108 | AH40: 1434 | AI40: 2.3 | AJ40: 1436.3 | AK40: 97.0472973 | AL40: 306445
A41: 31 | B41: 5 ALMOLOYA DE JUÁREZ | C41: 2905 | D41: 3675 | E41: 126.5060241 | F41: -770 | G41: 183.75 | H41: -586.25 | I41: -20.18072289 | J41: 3228 | K41: 2751 | L41: 85.22304833 | M41: 477 | N41: 137.55 | O41: 614.55 | P41: 19.03810409 | Q41: 3212 | R41: 371 | S41: 11.55043587 | T41: 2841 | U41: 18.55 | V41: 2859.55 | W41: 89.02708593 | X41: 3955 | Y41: 4689 | Z41: 118.5587863 | AA41: -734 | AB41: 234.45 | AC41: -499.55 | AD41: -12.63084703 | AE41: 4044 | AF41: 139 | AG41: 3.4371909 | AH41: 3905 | AI41: 6.95 | AJ41: 3911.95 | AK41: 96.73466864 | AL41: 630025
A42: 32 | B42: 54 METEPEC | C42: 2536 | D42: 1379 | E42: 54.37697161 | F42: 1157 | G42: 68.95 | H42: 1225.95 | I42: 48.34187697 | J42: 2647 | K42: 1294 | L42: 48.88553079 | M42: 1353 | N42: 64.7 | O42: 1417.7 | P42: 53.55874575 | Q42: 3021 | R42: 173 | S42: 5.726580602 | T42: 2848 | U42: 8.65 | V42: 2856.65 | W42: 94.55974843 | X42: 3337 | Y42: 2722 | Z42: 81.5702727 | AA42: 615 | AB42: 136.1 | AC42: 751.1 | AD42: 22.50824093 | AE42: 3608 | AF42: 151 | AG42: 4.185144124 | AH42: 3457 | AI42: 7.55 | AJ42: 3464.55 | AK42: 96.02411308 | AL42: 971595
A43: 33 | B43: 106 TOLUCA | C43: 13189 | D43: 12809 | E43: 97.11881113 | F43: 380 | G43: 640.45 | H43: 1020.45 | I43: 7.737129426 | J43: 12611 | K43: 8557 | L43: 67.85346126 | M43: 4054 | N43: 427.85 | O43: 4481.85 | P43: 35.5392118 | Q43: 11365 | R43: 1055 | S43: 9.282886054 | T43: 10310 | U43: 52.75 | V43: 10362.75 | W43: 91.18125825 | X43: 10802 | Y43: 10398 | Z43: 96.25995186 | AA43: 404 | AB43: 519.9 | AC43: 923.9 | AD43: 8.553045732 | AE43: 11416 | AF43: 7 | AG43: 0.06131744919 | AH43: 11409 | AI43: 0.35 | AJ43: 11409.35 | AK43: 99.94174842 | AL43: 2819830
A44: 34 | B44: 118 ZINACANTEPEC | C44: 2768 | D44: 3361 | E44: 121.4234104 | F44: -593 | G44: 168.05 | H44: -424.95 | I44: -15.35223988 | J44: 2979 | K44: 2616 | L44: 87.81470292 | M44: 363 | N44: 130.8 | O44: 493.8 | P44: 16.57603223 | Q44: 3146 | R44: 196 | S44: 6.230133503 | T44: 2950 | U44: 9.8 | V44: 2959.8 | W44: 94.08137317 | X44: 3179 | Y44: 2253 | Z44: 70.87134319 | AA44: 926 | AB44: 112.65 | AC44: 1038.65 | AD44: 32.67222397 | AE44: 3075 | AF44: 29 | AG44: 0.9430894309 | AH44: 3046 | AI44: 1.45 | AJ44: 3047.45 | AK44: 99.10406504 | AL44: 711475
A45: 35 | B45: 37 HUIXQUILUCAN | C45: 4273 | D45: 3806 | E45: 89.07091037 | F45: 467 | G45: 190.3 | H45: 657.3 | I45: 15.38263515 | J45: 3657 | K45: 4055 | L45: 110.8832376 | M45: -398 | N45: 202.75 | O45: -195.25 | P45: -5.339075745 | Q45: 3657 | R45: 91 | S45: 2.488378452 | T45: 3566 | U45: 4.55 | V45: 3570.55 | W45: 97.63604047 | X45: 4915 | Y45: 5223 | Z45: 106.266531 | AA45: -308 | AB45: 261.15 | AC45: -46.85 | AD45: -0.9532044761 | AE45: 3910 | AF45: 300 | AG45: 7.672634271 | AH45: 3610 | AI45: 15 | AJ45: 3625 | AK45: 92.71099744 | AL45: 761075
A46: 36 | B46: 51 LERMA | C46: 2313 | D46: 1888 | E46: 81.62559447 | F46: 425 | G46: 94.4 | H46: 519.4 | I46: 22.45568526 | J46: 2126 | K46: 2088 | L46: 98.21260583 | M46: 38 | N46: 104.4 | O46: 142.4 | P46: 6.698024459 | Q46: 2126 | R46: 663 | S46: 31.18532455 | T46: 1463 | U46: 33.15 | V46: 1496.15 | W46: 70.37394167 | X46: 2410 | Y46: 2203 | Z46: 91.41078838 | AA46: 207 | AB46: 110.15 | AC46: 317.15 | AD46: 13.15975104 | AE46: 1553 | AF46: 6 | AG46: 0.3863490019 | AH46: 1547 | AI46: 0.3 | AJ46: 1547.3 | AK46: 99.63296845 | AL46: 402240
A47: 37 | B47: 62 OCOYOACAC | C47: 898 | D47: 864 | E47: 96.21380846 | F47: 34 | G47: 43.2 | H47: 77.2 | I47: 8.59688196 | J47: 906 | K47: 909 | L47: 100.3311258 | M47: -3 | N47: 45.45 | O47: 42.45 | P47: 4.685430464 | Q47: 906 | R47: 169 | S47: 18.65342163 | T47: 737 | U47: 8.45 | V47: 745.45 | W47: 82.27924945 | X47: 1074 | Y47: 875 | Z47: 81.47113594 | AA47: 199 | AB47: 43.75 | AC47: 242.75 | AD47: 22.60242086 | AE47: 906 | AF47: 43 | AG47: 4.746136865 | AH47: 863 | AI47: 2.15 | AJ47: 865.15 | AK47: 95.49116998 | AL47: 197300
A48: 38 | B48: 67 OTZOLOTEPEC | C48: 1957 | D48: 1560 | E48: 79.71384773 | F48: 397 | G48: 78 | H48: 475 | I48: 24.27184466 | J48: 1910 | K48: 2033 | L48: 106.4397906 | M48: -123 | N48: 101.65 | O48: -21.35 | P48: -1.117801047 | Q48: 1910 | R48: 132 | S48: 6.910994764 | T48: 1778 | U48: 6.6 | V48: 1784.6 | W48: 93.43455497 | X48: 2015 | Y48: 2353 | Z48: 116.7741935 | AA48: -338 | AB48: 117.65 | AC48: -220.35 | AD48: -10.93548387 | AE48: 1856 | AF48: 19 | AG48: 1.023706897 | AH48: 1837 | AI48: 0.95 | AJ48: 1837.95 | AK48: 99.02747845 | AL48: 385585
A49: 39 | B49: 76 SAN MATEO ATENCO | C49: 312 | D49: 1103 | E49: 353.525641 | F49: -791 | G49: 55.15 | H49: -735.85 | I49: -235.849359 | J49: 1014 | K49: 333 | L49: 32.84023669 | M49: 681 | N49: 16.65 | O49: 697.65 | P49: 68.80177515 | Q49: 1014 | R49: 2 | S49: 0.1972386588 | T49: 1012 | U49: 0.1 | V49: 1012.1 | W49: 99.81262327 | X49: 1170 | Y49: 566 | Z49: 48.37606838 | AA49: 604 | AB49: 28.3 | AC49: 632.3 | AD49: 54.04273504 | AE49: 988 | AF49: 70 | AG49: 7.085020243 | AH49: 918 | AI49: 3.5 | AJ49: 921.5 | AK49: 93.26923077 | AL49: 252770
A50: 40 | B50: 87 TEMOAYA | C50: 2471 | D50: 1691 | E50: 68.43383246 | F50: 780 | G50: 84.55 | H50: 864.55 | I50: 34.98785917 | J50: 2359 | K50: 2807 | L50: 118.9910979 | M50: -448 | N50: 140.35 | O50: -307.65 | P50: -13.04154303 | Q50: 2359 | R50: 12 | S50: 0.5086901229 | T50: 2347 | U50: 0.6 | V50: 2347.6 | W50: 99.51674438 | X50: 2594 | Y50: 2700 | Z50: 104.0863531 | AA50: -106 | AB50: 135 | AC50: 29 | AD50: 1.117964534 | AE50: 2176 | AF50: 14 | AG50: 0.6433823529 | AH50: 2162 | AI50: 0.7 | AJ50: 2162.7 | AK50: 99.38878676 | AL50: 509620
A51: 41 | B51: 115 XONACATLÁN | C51: 1141 | D51: 1705 | E51: 149.4303243 | F51: -564 | G51: 85.25 | H51: -478.75 | I51: -41.95880806 | J51: 1089 | K51: 1678 | L51: 154.0863177 | M51: -589 | N51: 83.9 | O51: -505.1 | P51: -46.38200184 | Q51: 1089 | R51: 4 | S51: 0.3673094582 | T51: 1085 | U51: 0.2 | V51: 1085.2 | W51: 99.65105601 | X51: 1200 | Y51: 1700 | Z51: 141.6666667 | AA51: -500 | AB51: 85 | AC51: -415 | AD51: -34.58333333 | AE51: 980 | AF51: 47 | AG51: 4.795918367 | AH51: 933 | AI51: 2.35 | AJ51: 935.35 | AK51: 95.44387755 | AL51: 62170
A52: 42 | B52: 8 AMATEPEC | C52: 600 | D52: 611 | E52: 101.8333333 | F52: -11 | G52: 30.55 | H52: 19.55 | I52: 3.258333333 | J52: 452 | K52: 359 | L52: 79.42477876 | M52: 93 | N52: 17.95 | O52: 110.95 | P52: 24.54646018 | Q52: 535 | R52: 9 | S52: 1.682242991 | T52: 526 | U52: 0.45 | V52: 526.45 | W52: 98.40186916 | X52: 527 | Y52: 893 | Z52: 169.4497154 | AA52: -366 | AB52: 44.65 | AC52: -321.35 | AD52: -60.9772296 | AE52: 511 | AF52: 13 | AG52: 2.544031311 | AH52: 498 | AI52: 0.65 | AJ52: 498.65 | AK52: 97.58317025 | AL52: 83425
A53: 43 | B53: 77 SAN SIMÓN DE GUERRERO | C53: 147 | D53: 114 | E53: 77.55102041 | F53: 33 | G53: 5.7 | H53: 38.7 | I53: 26.32653061 | J53: 130 | K53: 71 | L53: 54.61538462 | M53: 59 | N53: 3.55 | O53: 62.55 | P53: 48.11538462 | Q53: 165 | R53: 8 | S53: 4.848484848 | T53: 157 | U53: 0.4 | V53: 157.4 | W53: 95.39393939 | X53: 154 | Y53: 233 | Z53: 151.2987013 | AA53: -79 | AB53: 11.65 | AC53: -67.35 | AD53: -43.73376623 | AE53: 149 | AF53: 5 | AG53: 3.355704698 | AH53: 144 | AI53: 0.25 | AJ53: 144.25 | AK53: 96.81208054 | AL53: 33555
A54: 44 | B54: 82 TEJUPILCO | C54: 1717 | D54: 1642 | E54: 95.63191613 | F54: 75 | G54: 82.1 | H54: 157.1 | I54: 9.149679674 | J54: 1626 | K54: 1173 | L54: 72.1402214 | M54: 453 | N54: 58.65 | O54: 511.65 | P54: 31.46678967 | Q54: 1597 | R54: 22 | S54: 1.377582968 | T54: 1575 | U54: 1.1 | V54: 1576.1 | W54: 98.69129618 | X54: 1573 | Y54: 1090 | Z54: 69.29434202 | AA54: 483 | AB54: 54.5 | AC54: 537.5 | AD54: 34.17037508 | AE54: 1521 | AF54: 146 | AG54: 9.59894806 | AH54: 1375 | AI54: 7.3 | AJ54: 1382.3 | AK54: 90.88099934 | AL54: 416465
A55: 45 | B55: 86 TEMASCALTEPEC | C55: 821 | D55: 564 | E55: 68.69671133 | F55: 257 | G55: 28.2 | H55: 285.2 | I55: 34.73812424 | J55: 729 | K55: 408 | L55: 55.96707819 | M55: 321 | N55: 20.4 | O55: 341.4 | P55: 46.83127572 | Q55: 829 | R55: 6 | S55: 0.7237635706 | T55: 823 | U55: 0.3 | V55: 823.3 | W55: 99.31242461 | X55: 804 | Y55: 922 | Z55: 114.6766169 | AA55: -118 | AB55: 46.1 | AC55: -71.9 | AD55: -8.94278607 | AE55: 776 | AF55: 40 | AG55: 5.154639175 | AH55: 736 | AI55: 2 | AJ55: 738 | AK55: 95.10309278 | AL55: 211600
A56: 46 | B56: 105 TLATLAYA | C56: 753 | D56: 637 | E56: 84.59495352 | F56: 116 | G56: 31.85 | H56: 147.85 | I56: 19.63479416 | J56: 876 | K56: 587 | L56: 67.00913242 | M56: 289 | N56: 29.35 | O56: 318.35 | P56: 36.3413242 | Q56: 536 | R56: 1 | S56: 0.1865671642 | T56: 535 | U56: 0.05 | V56: 535.05 | W56: 99.82276119 | X56: 528 | Y56: 527 | Z56: 99.81060606 | AA56: 1 | AB56: 26.35 | AC56: 27.35 | AD56: 5.179924242 | AE56: 511 | AF56: 71 | AG56: 13.89432485 | AH56: 440 | AI56: 3.55 | AJ56: 443.55 | AK56: 86.80039139 | AL56: 147215
A57: 47 | B57: 123 LUVIANOS | C57: 755 | D57: 616 | E57: 81.58940397 | F57: 139 | G57: 30.8 | H57: 169.8 | I57: 22.49006623 | J57: 580 | K57: 546 | L57: 94.13793103 | M57: 34 | N57: 27.3 | O57: 61.3 | P57: 10.56896552 | Q57: 731 | R57: 31 | S57: 4.240766074 | T57: 700 | U57: 1.55 | V57: 701.55 | W57: 95.97127223 | X57: 722 | Y57: 488 | Z57: 67.5900277 | AA57: 234 | AB57: 24.4 | AC57: 258.4 | AD57: 35.78947368 | AE57: 700 | AF57: 21 | AG57: 3 | AH57: 679 | AI57: 1.05 | AJ57: 680.05 | AK57: 97.15 | AL57: 187110
A58: 48 | B58: 4 ALMOLOYA DE ALQUISIRAS | C58: 298 | D58: 673 | E58: 225.8389262 | F58: -375 | G58: 33.65 | H58: -341.35 | I58: -114.5469799 | J58: 308.2378378 | K58: 350 | L58: 113.5486813 | M58: -41.76216216 | N58: 17.5 | O58: -24.26216216 | P58: -7.871247194 | Q58: 308 | R58: 232 | S58: 75.32467532 | T58: 76 | U58: 11.6 | V58: 87.6 | W58: 28.44155844 | X58: 367 | Y58: 582 | Z58: 158.5831063 | AA58: -215 | AB58: 29.1 | AC58: -185.9 | AD58: -50.65395095 | AE58: 382 | AF58: 26 | AG58: 6.806282723 | AH58: 356 | AI58: 1.3 | AJ58: 357.3 | AK58: 93.53403141 | AL58: -10661.21622
A59: 49 | B59: 21 COATEPEC HARINAS | C59: 694 | D59: 989 | E59: 142.5072046 | F59: -295 | G59: 49.45 | H59: -245.55 | I59: -35.38184438 | J59: 807.8326016 | K59: 1017 | L59: 125.8924186 | M59: -209.1673984 | N59: 50.85 | O59: -158.3173984 | P59: -19.59779763 | Q59: 808 | R59: 516 | S59: 63.86138614 | T59: 292 | U59: 25.8 | V59: 317.8 | W59: 39.33168317 | X59: 863 | Y59: 1371 | Z59: 158.8644264 | AA59: -508 | AB59: 68.55 | AC59: -439.45 | AD59: -50.9212051 | AE59: 924 | AF59: 68 | AG59: 7.359307359 | AH59: 856 | AI59: 3.4 | AJ59: 859.4 | AK59: 93.00865801 | AL59: 33388.26016
A60: 50 | B60: 40 IXTAPAN DE LA SAL | C60: 670 | D60: 1221 | E60: 182.238806 | F60: -551 | G60: 61.05 | H60: -489.95 | I60: -73.12686567 | J60: 605.7376271 | K60: 763 | L60: 125.9621271 | M60: -157.2623729 | N60: 38.15 | O60: -119.1123729 | P60: -19.66402078 | Q60: 606 | R60: 11 | S60: 1.815181518 | T60: 595 | U60: 0.55 | V60: 595.55 | W60: 98.27557756 | X60: 672 | Y60: 1048 | Z60: 155.952381 | AA60: -376 | AB60: 52.4 | AC60: -323.6 | AD60: -48.1547619 | AE60: 681 | AF60: 142 | AG60: 20.85168869 | AH60: 539 | AI60: 7.1 | AJ60: 546.1 | AK60: 80.19089574 | AL60: 20898.76271
A61: 51 | B61: 52 MALINALCO | C61: 517 | D61: 437 | E61: 84.52611219 | F61: 80 | G61: 21.85 | H61: 101.85 | I61: 19.70019342 | J61: 481.2937733 | K61: 575 | L61: 119.4696528 | M61: -93.70622665 | N61: 28.75 | O61: -64.95622665 | P61: -13.49617017 | Q61: 481 | R61: 227 | S61: 47.19334719 | T61: 254 | U61: 11.35 | V61: 265.35 | W61: 55.16632017 | X61: 507 | Y61: 799 | Z61: 157.5936884 | AA61: -292 | AB61: 39.95 | AC61: -252.05 | AD61: -49.71400394 | AE61: 527 | AF61: 25 | AG61: 4.743833017 | AH61: 502 | AI61: 1.25 | AJ61: 503.25 | AK61: 95.49335863 | AL61: 55344.37733
A62: 52 | B62: 63 OCUILAN | C62: 615 | D62: 632 | E62: 102.7642276 | F62: -17 | G62: 31.6 | H62: 14.6 | I62: 2.37398374 | J62: 695.7445545 | K62: 829 | L62: 119.1529268 | M62: -133.2554455 | N62: 41.45 | O62: -91.80544554 | P62: -13.1952805 | Q62: 696 | R62: 21 | S62: 3.017241379 | T62: 675 | U62: 1.05 | V62: 676.05 | W62: 97.13362069 | X62: 737 | Y62: 1203 | Z62: 163.229308 | AA62: -466 | AB62: 60.15 | AC62: -405.85 | AD62: -55.06784261 | AE62: 760 | AF62: 11 | AG62: 1.447368421 | AH62: 749 | AI62: 0.55 | AJ62: 749.55 | AK62: 98.625 | AL62: 94254.45545
A63: 53 | B63: 80 SULTEPEC | C63: 513 | D63: 528 | E63: 102.9239766 | F63: -15 | G63: 26.4 | H63: 11.4 | I63: 2.222222222 | J63: 513.1039106 | K63: 640 | L63: 124.7310704 | M63: -126.8960894 | N63: 32 | O63: -94.89608939 | P63: -18.49451688 | Q63: 513 | R63: 44 | S63: 8.576998051 | T63: 469 | U63: 2.2 | V63: 471.2 | W63: 91.85185185 | X63: 594 | Y63: 892 | Z63: 150.1683502 | AA63: -298 | AB63: 44.6 | AC63: -253.4 | AD63: -42.65993266 | AE63: 600 | AF63: 24 | AG63: 4 | AH63: 576 | AI63: 1.2 | AJ63: 577.2 | AK63: 96.2 | AL63: 71150.39106
A64: 54 | B64: 88 TENANCINGO | C64: 1747 | D64: 2809 | E64: 160.7899256 | F64: -1062 | G64: 140.45 | H64: -921.55 | I64: -52.75042931 | J64: 1654.043407 | K64: 2144 | L64: 129.6217494 | M64: -489.9565934 | N64: 107.2 | O64: -382.7565934 | P64: -23.14066196 | Q64: 1654 | R64: 67 | S64: 4.050785973 | T64: 1587 | U64: 3.35 | V64: 1590.35 | W64: 96.15175333 | X64: 1747 | Y64: 2684 | Z64: 153.6348025 | AA64: -937 | AB64: 134.2 | AC64: -802.8 | AD64: -45.95306239 | AE64: 1807 | AF64: 344 | AG64: 19.03707803 | AH64: 1463 | AI64: 17.2 | AJ64: 1480.2 | AK64: 81.91477587 | AL64: 96344.34066
A65: 55 | B65: 97 TEXCALTITLÁN | C65: 359 | D65: 650 | E65: 181.0584958 | F65: -291 | G65: 32.5 | H65: -258.5 | I65: -72.00557103 | J65: 355.2309963 | K65: 413 | L65: 116.262377 | M65: -57.76900369 | N65: 20.65 | O65: -37.11900369 | P65: -10.44925811 | Q65: 355 | R65: 112 | S65: 31.54929577 | T65: 243 | U65: 5.6 | V65: 248.6 | W65: 70.02816901 | X65: 405 | Y65: 624 | Z65: 154.0740741 | AA65: -219 | AB65: 31.2 | AC65: -187.8 | AD65: -46.37037037 | AE65: 411 | AF65: 125 | AG65: 30.4136253 | AH65: 286 | AI65: 6.25 | AJ65: 292.25 | AK65: 71.10705596 | AL65: 5743.099631
A66: 56 | B66: 107 TONATICO | C66: 213 | D66: 249 | E66: 116.9014085 | F66: -36 | G66: 12.45 | H66: -23.55 | I66: -11.05633803 | J66: 213 | K66: 242 | L66: 113.6150235 | M66: -29 | N66: 12.1 | O66: -16.9 | P66: -7.9342723 | Q66: 197 | R66: 354 | S66: 179.6954315 | T66: -157 | U66: 17.7 | V66: -139.3 | W66: -70.7106599 | X66: 295 | Y66: 453 | Z66: 153.559322 | AA66: -158 | AB66: 22.65 | AC66: -135.35 | AD66: -45.88135593 | AE66: 271 | AF66: 253 | AG66: 93.35793358 | AH66: 18 | AI66: 12.65 | AJ66: 30.65 | AK66: 11.3099631 | AL66: -28445
A67: 57 | B67: 113 VILLA GUERRERO | C67: 1296 | D67: 2046 | E67: 157.8703704 | F67: -750 | G67: 102.3 | H67: -647.7 | I67: -49.97685185 | J67: 1304.039154 | K67: 1469 | L67: 112.6499918 | M67: -164.9608457 | N67: 73.45 | O67: -91.51084573 | P67: -7.017492184 | Q67: 1304 | R67: 510 | S67: 39.11042945 | T67: 794 | U67: 25.5 | V67: 819.5 | W67: 62.84509202 | X67: 1431 | Y67: 2418 | Z67: 168.9727463 | AA67: -987 | AB67: 120.9 | AC67: -866.1 | AD67: -60.52410901 | AE67: 1451 | AF67: 49 | AG67: 3.376981392 | AH67: 1402 | AI67: 2.45 | AJ67: 1404.45 | AK67: 96.79186768 | AL67: 61863.91543
A68: 58 | B68: 117 ZACUALPAN | C68: 279 | D68: 370 | E68: 132.6164875 | F68: -91 | G68: 18.5 | H68: -72.5 | I68: -25.98566308 | J68: 297.4557225 | K68: 398 | L68: 133.8014265 | M68: -100.5442775 | N68: 19.9 | O68: -80.64427746 | P68: -27.11135518 | Q68: 297 | R68: 20 | S68: 6.734006734 | T68: 277 | U68: 1 | V68: 278 | W68: 93.6026936 | X68: 384 | Y68: 498 | Z68: 129.6875 | AA68: -114 | AB68: 24.9 | AC68: -89.1 | AD68: -23.203125 | AE68: 384 | AF68: 1001 | AG68: 260.6770833 | AH68: -617 | AI68: 50.05 | AJ68: -566.95 | AK68: -147.6432292 | AL68: -53119.42775
A69: 59 | B69: 119 ZUMPAHUACÁN | C69: 363 | D69: 425 | E69: 117.0798898 | F69: -62 | G69: 21.25 | H69: -40.75 | I69: -11.22589532 | J69: 356.401083 | K69: 427 | L69: 119.8088391 | M69: -70.59891697 | N69: 21.35 | O69: -49.24891697 | P69: -13.81839711 | Q69: 356 | R69: 437 | S69: 122.752809 | T69: -81 | U69: 21.85 | V69: -59.15 | W69: -16.61516854 | X69: 414 | Y69: 636 | Z69: 153.6231884 | AA69: -222 | AB69: 31.8 | AC69: -190.2 | AD69: -45.94202899 | AE69: 391 | AF69: 81 | AG69: 20.71611253 | AH69: 310 | AI69: 4.05 | AJ69: 314.05 | AK69: 80.31969309 | AL69: -2529.891697
A70: 60 | B70: 7 AMANALCO | C70: 523 | D70: 500 | E70: 95.60229446 | F70: 23 | G70: 25 | H70: 48 | I70: 9.177820268 | J70: 520 | K70: 495 | L70: 95.19230769 | M70: 25 | N70: 24.75 | O70: 49.75 | P70: 9.567307692 | Q70: 525 | R70: 8 | S70: 1.523809524 | T70: 517 | U70: 0.4 | V70: 517.4 | W70: 98.55238095 | X70: 550 | Y70: 844 | Z70: 153.4545455 | AA70: -294 | AB70: 42.2 | AC70: -251.8 | AD70: -45.78181818 | AE70: 525 | AF70: 671 | AG70: 127.8095238 | AH70: -146 | AI70: 33.55 | AJ70: -112.45 | AK70: -21.41904762 | AL70: 25090
A71: 61 | B71: 32 DONATO GUERRA | C71: 803 | D71: 736 | E71: 91.65628892 | F71: 67 | G71: 36.8 | H71: 103.8 | I71: 12.92652553 | J71: 834 | K71: 562 | L71: 67.38609113 | M71: 272 | N71: 28.1 | O71: 300.1 | P71: 35.98321343 | Q71: 837 | R71: 3 | S71: 0.3584229391 | T71: 834 | U71: 0.15 | V71: 834.15 | W71: 99.65949821 | X71: 1019 | Y71: 1394 | Z71: 136.8007851 | AA71: -375 | AB71: 69.7 | AC71: -305.3 | AD71: -29.96074583 | AE71: 838 | AF71: 10 | AG71: 1.193317422 | AH71: 828 | AI71: 0.5 | AJ71: 828.5 | AK71: 98.86634845 | AL71: 176125
A72: 62 | B72: 41 IXTAPAN DEL ORO | C72: 151 | D72: 119 | E72: 78.80794702 | F72: 32 | G72: 5.95 | H72: 37.95 | I72: 25.13245033 | J72: 157 | K72: 96 | L72: 61.14649682 | M72: 61 | N72: 4.8 | O72: 65.8 | P72: 41.91082803 | Q72: 162 | R72: 39 | S72: 24.07407407 | T72: 123 | U72: 1.95 | V72: 124.95 | W72: 77.12962963 | X72: 162 | Y72: 185 | Z72: 114.1975309 | AA72: -23 | AB72: 9.25 | AC72: -13.75 | AD72: -8.487654321 | AE72: 161 | AF72: 60 | AG72: 37.26708075 | AH72: 101 | AI72: 3 | AJ72: 104 | AK72: 64.59627329 | AL72: 31895
A73: 63 | B73: 66 OTZOLOAPAN | C73: 120 | D73: 121 | E73: 100.8333333 | F73: -1 | G73: 6.05 | H73: 5.05 | I73: 4.208333333 | J73: 92 | K73: 85 | L73: 92.39130435 | M73: 7 | N73: 4.25 | O73: 11.25 | P73: 12.22826087 | Q73: 95 | R73: 1996 | S73: 2101.052632 | T73: -1901 | U73: 99.8 | V73: -1801.2 | W73: -1896 | X73: 95 | Y73: 71 | Z73: 74.73684211 | AA73: 24 | AB73: 3.55 | AC73: 27.55 | AD73: 29 | AE73: 95 | AF73: 4 | AG73: 4.210526316 | AH73: 91 | AI73: 0.2 | AJ73: 91.2 | AK73: 96 | AL73: -166615
A74: 64 | B74: 78 SANTO TOMÁS | C74: 200 | D74: 184 | E74: 92 | F74: 16 | G74: 9.2 | H74: 25.2 | I74: 12.6 | J74: 213 | K74: 108 | L74: 50.70422535 | M74: 105 | N74: 5.4 | O74: 110.4 | P74: 51.83098592 | Q74: 217 | R74: 27 | S74: 12.44239631 | T74: 190 | U74: 1.35 | V74: 191.35 | W74: 88.1797235 | X74: 217 | Y74: 399 | Z74: 183.8709677 | AA74: -182 | AB74: 19.95 | AC74: -162.05 | AD74: -74.67741935 | AE74: 217 | AF74: 15 | AG74: 6.912442396 | AH74: 202 | AI74: 0.75 | AJ74: 202.75 | AK74: 93.43317972 | AL74: 36765
A75: 65 | B75: 110 VALLE DE BRAVO | C75: 1473 | D75: 1118 | E75: 75.89952478 | F75: 355 | G75: 55.9 | H75: 410.9 | I75: 27.89545146 | J75: 1293 | K75: 980 | L75: 75.79273009 | M75: 313 | N75: 49 | O75: 362 | P75: 27.99690642 | Q75: 1294 | R75: 1 | S75: 0.0772797527 | T75: 1293 | U75: 0.05 | V75: 1293.05 | W75: 99.92658423 | X75: 1304 | Y75: 2123 | Z75: 162.8067485 | AA75: -819 | AB75: 106.15 | AC75: -712.85 | AD75: -54.66641104 | AE75: 1294 | AF75: 6 | AG75: 0.4636785162 | AH75: 1288 | AI75: 0.3 | AJ75: 1288.3 | AK75: 99.55950541 | AL75: 264140
A76: 66 | B76: 111 VILLA DE ALLENDE | C76: 1199 | D76: 1016 | E76: =D76/C76*100 -> 84.73728107 | F76: =C76-D76 -> 183 | G76: =D76*5/100 -> 50.8 | H76: =F76+G76 -> 233.8 | I76: =H76/C76*100 -> 19.49958299 | J76: 1262 | K76: 1042 | L76: =K76/J76*100 -> 82.56735341 | M76: =J76-K76 -> 220 | N76: =K76*5/100 -> 52.1 | O76: =M76+N76 -> 272.1 | P76: =O76/J76*100 -> 21.56101426 | Q76: 1264 | R76: 92 | S76: =R76/Q76*100 -> 7.278481013 | T76: =Q76-R76 -> 1172 | U76: =R76*5/100 -> 4.6 | V76: =T76+U76 -> 1176.6 | W76: =V76/Q76*100 -> 93.08544304 | X76: 1173 | Y76: 1844 | Z76: =Y76/X76*100 -> 157.2037511 | AA76: =X76-Y76 -> -671 | AB76: =Y76*5/100 -> 92.2 | AC76: =AA76+AB76 -> -578.8 | AD76: =AC76/X76*100 -> -49.34356351 | AE76: 1264 | AF76: 36 | AG76: 2.848101266 | AH76: 1228 | AI76: 1.8 | AJ76: 1229.8 | AK76: =AJ76/AE76*100 -> 97.2943038 | AL76: =SUM(H76,O76,V76,AC76,AJ76)*100 -> 233350
A77: 67 | B77: 114 VILLA VICTORIA | C77: 2301 | D77: 1928 | E77: 83.78965667 | F77: 373 | G77: 96.4 | H77: 469.4 | I77: 20.39982616 | J77: 2512 | K77: 1559 | L77: 62.06210191 | M77: 953 | N77: 77.95 | O77: 1030.95 | P77: 41.04100318 | Q77: 2515 | R77: 3 | S77: 0.1192842942 | T77: 2512 | U77: 0.15 | V77: 2512.15 | W77: 99.88667992 | X77: 2383 | Y77: 4078 | Z77: 171.1288292 | AA77: -1695 | AB77: 203.9 | AC77: -1491.1 | AD77: -62.57238775 | AE77: 2523 | AF77: 211 | AG77: 8.363059849 | AH77: 2312 | AI77: 10.55 | AJ77: 2322.55 | AK77: 92.05509314 | AL77: 484395
A78: 68 | B78: 116 ZACAZONAPAN | C78: 118 | D78: 94 | E78: 79.66101695 | F78: 24 | G78: 4.7 | H78: 28.7 | I78: 24.3220339 | J78: 70 | K78: 54 | L78: 77.14285714 | M78: 16 | N78: 2.7 | O78: 18.7 | P78: 26.71428571 | Q78: 82 | R78: 22 | S78: 26.82926829 | T78: 60 | U78: 1.1 | V78: 61.1 | W78: 74.51219512 | X78: 95 | Y78: 90 | Z78: 94.73684211 | AA78: 5 | AB78: 4.5 | AC78: 9.5 | AD78: 10 | AE78: 82 | AF78: 87 | AG78: 106.097561 | AH78: -5 | AI78: 4.35 | AJ78: -0.65 | AK78: -0.7926829268 | AL78: 11735
A79: 69 | B79: 13 ATIZAPÁN DE ZARAGOZA | C79: 4756 | D79: 4084 | E79: 85.87047939 | F79: 672 | G79: 204.2 | H79: 876.2 | I79: 18.42304458 | J79: 7134 | K79: 4934 | L79: 69.16176058 | M79: 2200 | N79: 246.7 | O79: 2446.7 | P79: 34.29632745 | Q79: 6546 | R79: 10 | S79: 0.1527650474 | T79: 6536 | U79: 0.5 | V79: 6536.5 | W79: 99.85487321 | X79: 6414 | Y79: 5516 | Z79: 85.99937636 | AA79: 898 | AB79: 275.8 | AC79: 1173.8 | AD79: 18.30059245 | AE79: 6414 | AF79: 2368 | AG79: 36.91923916 | AH79: 4046 | AI79: 118.4 | AJ79: 4164.4 | AK79: 64.92672279 | AL79: 1519760
A80: 70 | B80: 38 ISIDRO FABELA | C80: 234 | D80: 166 | E80: 70.94017094 | F80: 68 | G80: 8.3 | H80: 76.3 | I80: 32.60683761 | J80: 318 | K80: 221 | L80: 69.49685535 | M80: 97 | N80: 11.05 | O80: 108.05 | P80: 33.97798742 | Q80: 226 | R80: 28 | S80: 12.38938053 | T80: 198 | U80: 1.4 | V80: 199.4 | W80: 88.2300885 | X80: 247 | Y80: 130 | Z80: 52.63157895 | AA80: 117 | AB80: 6.5 | AC80: 123.5 | AD80: 50 | AE80: 247 | AF80: 22 | AG80: 8.906882591 | AH80: 225 | AI80: 1.1 | AJ80: 226.1 | AK80: 91.53846154 | AL80: 73335
A81: 71 | B81: 60 NICOLÁS ROMERO | C81: 4490 | D81: 3238 | E81: 72.11581292 | F81: 1252 | G81: 161.9 | H81: 1413.9 | I81: 31.48997773 | J81: 6749 | K81: 3499 | L81: 51.84471774 | M81: 3250 | N81: 174.95 | O81: 3424.95 | P81: 50.74751815 | Q81: 4255 | R81: 364 | S81: 8.554641598 | T81: 3891 | U81: 18.2 | V81: 3909.2 | W81: 91.87309048 | X81: 5674 | Y81: 5047 | Z81: 88.94959464 | AA81: 627 | AB81: 252.35 | AC81: 879.35 | AD81: 15.49788509 | AE81: 5501 | AF81: 19 | AG81: 0.345391747 | AH81: 5482 | AI81: 0.95 | AJ81: 5482.95 | AK81: 99.67187784 | AL81: 1511035
A82: 72 | B82: 23 COYOTEPEC | C82: 378 | D82: 461 | E82: 121.957672 | F82: -83 | G82: 23.05 | H82: -59.95 | I82: -15.85978836 | J82: 473 | K82: 897 | L82: 189.640592 | M82: -424 | N82: 44.85 | O82: -379.15 | P82: -80.15856237 | Q82: 547 | R82: 262 | S82: 47.8976234 | T82: 285 | U82: 13.1 | V82: 298.1 | W82: 54.49725777 | X82: 572 | Y82: 924 | Z82: 161.5384615 | AA82: -352 | AB82: 46.2 | AC82: -305.8 | AD82: -53.46153846 | AE82: 728 | AF82: 9 | AG82: 1.236263736 | AH82: 719 | AI82: 0.45 | AJ82: 719.45 | AK82: 98.82554945 | AL82: 27265
A83: 73 | B83: 24 CUAUTITLÁN | C83: 1030 | D83: 929 | E83: 90.19417476 | F83: 101 | G83: 46.45 | H83: 147.45 | I83: 14.31553398 | J83: 1303 | K83: 645 | L83: 49.50115119 | M83: 658 | N83: 32.25 | O83: 690.25 | P83: 52.97390637 | Q83: 1186 | R83: 15 | S83: 1.264755481 | T83: 1171 | U83: 0.75 | V83: 1171.75 | W83: 98.79848229 | X83: 1513 | Y83: 936 | Z83: 61.86384666 | AA83: 577 | AB83: 46.8 | AC83: 623.8 | AD83: 41.22934567 | AE83: 1666 | AF83: 10 | AG83: 0.600240096 | AH83: 1656 | AI83: 0.5 | AJ83: 1656.5 | AK83: 99.42977191 | AL83: 428975
A84: 74 | B84: 53 MELCHOR OCAMPO | C84: 547 | D84: 775 | E84: 141.6819013 | F84: -228 | G84: 38.75 | H84: -189.25 | I84: -34.59780622 | J84: 564 | K84: 702 | L84: 124.4680851 | M84: -138 | N84: 35.1 | O84: -102.9 | P84: -18.24468085 | Q84: 657 | R84: 62 | S84: 9.436834094 | T84: 595 | U84: 3.1 | V84: 598.1 | W84: 91.03500761 | X84: 669 | Y84: 988 | Z84: 147.6831091 | AA84: -319 | AB84: 49.4 | AC84: -269.6 | AD84: -40.29895366 | AE84: 649 | AF84: 3 | AG84: 0.4622496148 | AH84: 646 | AI84: 0.15 | AJ84: 646.15 | AK84: 99.56086287 | AL84: 68250
A85: 75 | B85: 91 TEOLOYUCAN | C85: 615 | D85: 900 | E85: 146.3414634 | F85: -285 | G85: 45 | H85: -240 | I85: -39.02439024 | J85: 722 | K85: 1519 | L85: 210.3878116 | M85: -797 | N85: 75.95 | O85: -721.05 | P85: -99.86842105 | Q85: 834 | R85: 593 | S85: 71.10311751 | T85: 241 | U85: 29.65 | V85: 270.65 | W85: 32.45203837 | X85: 884 | Y85: 1389 | Z85: 157.1266968 | AA85: -505 | AB85: 69.45 | AC85: -435.55 | AD85: -49.27036199 | AE85: 1184 | AF85: 10 | AG85: 0.8445945946 | AH85: 1174 | AI85: 0.5 | AJ85: 1174.5 | AK85: 99.19763514 | AL85: 4855
A86: 76 | B86: 95 TEPOTZOTLÁN | C86: 920 | D86: 877 | E86: 95.32608696 | F86: 43 | G86: 43.85 | H86: 86.85 | I86: 9.440217391 | J86: 859 | K86: 1397 | L86: 162.6309662 | M86: -538 | N86: 69.85 | O86: -468.15 | P86: -54.49941793 | Q86: 972 | R86: 23 | S86: 2.366255144 | T86: 949 | U86: 1.15 | V86: 950.15 | W86: 97.75205761 | X86: 813 | Y86: 1432 | Z86: 176.1377614 | AA86: -619 | AB86: 71.6 | AC86: -547.4 | AD86: -67.33087331 | AE86: 793 | AF86: 10 | AG86: 1.261034048 | AH86: 783 | AI86: 0.5 | AJ86: 783.5 | AK86: 98.80201765 | AL86: 80495
A87: 77 | B87: 108 TULTEPEC | C87: 973 | D87: 1313 | E87: 134.9434738 | F87: -340 | G87: 65.65 | H87: -274.35 | I87: -28.1963001 | J87: 1013 | K87: 1595 | L87: 157.4531096 | M87: -582 | N87: 79.75 | O87: -502.25 | P87: -49.5804541 | Q87: 1403 | R87: 192 | S87: 13.6849608 | T87: 1211 | U87: 9.6 | V87: 1220.6 | W87: 86.99928724 | X87: 1411 | Y87: 2159 | Z87: 153.0120482 | AA87: -748 | AB87: 107.95 | AC87: -640.05 | AD87: -45.36144578 | AE87: 1625 | AF87: 574 | AG87: 35.32307692 | AH87: 1051 | AI87: 28.7 | AJ87: 1079.7 | AK87: 66.44307692 | AL87: 88365
A88: 78 | B88: 109 TULTITLÁN | C88: 4361 | D88: 3598 | E88: 82.50401284 | F88: 763 | G88: 179.9 | H88: 942.9 | I88: 21.6211878 | J88: 4066 | K88: 5069 | L88: 124.6679784 | M88: -1003 | N88: 253.45 | O88: -749.55 | P88: -18.43457944 | Q88: 4511 | R88: 267 | S88: 5.918864997 | T88: 4244 | U88: 13.35 | V88: 4257.35 | W88: 94.37707825 | X88: 4454 | Y88: 6377 | Z88: 143.1746744 | AA88: -1923 | AB88: 318.85 | AC88: -1604.15 | AD88: -36.01594073 | AE88: 4570 | AF88: 106 | AG88: 2.319474836 | AH88: 4464 | AI88: 5.3 | AJ88: 4469.3 | AK88: 97.79649891 | AL88: 731585
A89: 79 | B89: 121 CUAUTITLÁN IZCALLI | C89: 3465 | D89: 2458 | E89: 70.93795094 | F89: 1007 | G89: 122.9 | H89: 1129.9 | I89: 32.60894661 | J89: 3536 | K89: 3066 | L89: 86.7081448 | M89: 470 | N89: 153.3 | O89: 623.3 | P89: 17.62726244 | Q89: 3841 | R89: 111 | S89: 2.889872429 | T89: 3730 | U89: 5.55 | V89: 3735.55 | W89: 97.25462119 | X89: 3687 | Y89: 3472 | Z89: 94.16870084 | AA89: 215 | AB89: 173.6 | AC89: 388.6 | AD89: 10.5397342 | AE89: 3640 | AF89: 467 | AG89: 12.82967033 | AH89: 3173 | AI89: 23.35 | AJ89: 3196.35 | AK89: 87.81181319 | AL89: 907370
A90: 80 | B90: 46 JILOTZINGO | C90: 250 | D90: 288 | E90: 115.2 | F90: -38 | G90: 14.4 | H90: -23.6 | I90: -9.44 | J90: 350 | K90: 403 | L90: 115.1428571 | M90: -53 | N90: 20.15 | O90: -32.85 | P90: -9.385714286 | Q90: 365 | R90: 243 | S90: 66.57534247 | T90: 122 | U90: 12.15 | V90: 134.15 | W90: 36.75342466 | X90: 365 | Y90: 396 | Z90: 108.4931507 | AA90: -31 | AB90: 19.8 | AC90: -11.2 | AD90: -3.068493151 | AE90: 450 | AF90: 276 | AG90: 61.33333333 | AH90: 174 | AI90: 13.8 | AJ90: 187.8 | AK90: 41.73333333 | AL90: 25430
A91: 81 | B91: 57 NAUCALPAN DE JUÁREZ | C91: 11241 | D91: 7482 | E91: 66.5599146 | F91: 3759 | G91: 374.1 | H91: 4133.1 | I91: 36.76808113 | J91: 9769 | K91: 9746 | L91: 99.76456137 | M91: 23 | N91: 487.3 | O91: 510.3 | P91: 5.223666701 | Q91: 9755 | R91: 204 | S91: 2.091235264 | T91: 9551 | U91: 10.2 | V91: 9561.2 | W91: 98.0133265 | X91: 9771 | Y91: 10254 | Z91: 104.9431993 | AA91: -483 | AB91: 512.7 | AC91: 29.7 | AD91: 0.3039607 | AE91: 9700 | AF91: 213 | AG91: 2.195876289 | AH91: 9487 | AI91: 10.65 | AJ91: 9497.65 | AK91: 97.91391753 | AL91: 2373195
A92: 82 | B92: 2 ACOLMAN | C92: 3214 | D92: 1385 | E92: 43.09271935 | F92: 1829 | G92: 69.25 | H92: 1898.25 | I92: 59.06191661 | J92: 2552 | K92: 1720 | L92: 67.39811912 | M92: 832 | N92: 86 | O92: 918 | P92: 35.97178683 | Q92: 2949 | R92: 350 | S92: 11.86842998 | T92: 2599 | U92: 17.5 | V92: 2616.5 | W92: 88.72499152 | X92: 2373 | Y92: 2585 | Z92: 108.933839 | AA92: -212 | AB92: 129.25 | AC92: -82.75 | AD92: -3.487147071 | AE92: 2413 | AF92: 250 | AG92: 10.36054704 | AH92: 2163 | AI92: 12.5 | AJ92: 2175.5 | AK92: 90.15748031 | AL92: 752550
A93: 83 | B93: 16 AXAPUSCO | C93: 524 | D93: 320 | E93: 61.06870229 | F93: 204 | G93: 16 | H93: 220 | I93: 41.98473282 | J93: 551 | K93: 332 | L93: 60.25408348 | M93: 219 | N93: 16.6 | O93: 235.6 | P93: 42.75862069 | Q93: 525 | R93: 104 | S93: 19.80952381 | T93: 421 | U93: 5.2 | V93: 426.2 | W93: 81.18095238 | X93: 495 | Y93: 596 | Z93: 120.4040404 | AA93: -101 | AB93: 29.8 | AC93: -71.2 | AD93: -14.38383838 | AE93: 505 | AF93: 2306 | AG93: 456.6336634 | AH93: -1801 | AI93: 115.3 | AJ93: -1685.7 | AK93: -333.8019802 | AL93: -87510
A94: 84 | B94: 61 NOPALTEPEC | C94: 175 | D94: 177 | E94: 101.1428571 | F94: -2 | G94: 8.85 | H94: 6.85 | I94: 3.914285714 | J94: 188 | K94: 158 | L94: 84.04255319 | M94: 30 | N94: 7.9 | O94: 37.9 | P94: 20.15957447 | Q94: 175 | R94: 2230 | S94: 1274.285714 | T94: -2055 | U94: 111.5 | V94: -1943.5 | W94: -1110.571429 | X94: 175 | Y94: 232 | Z94: 132.5714286 | AA94: -57 | AB94: 11.6 | AC94: -45.4 | AD94: -25.94285714 | AE94: 178 | AF94: 119 | AG94: 66.85393258 | AH94: 59 | AI94: 5.95 | AJ94: 64.95 | AK94: 36.48876404 | AL94: -187920
A95: 85 | B95: 65 OTUMBA | C95: 697 | D95: 584 | E95: 83.78766141 | F95: 113 | G95: 29.2 | H95: 142.2 | I95: 20.40172166 | J95: 735 | K95: 498 | L95: 67.75510204 | M95: 237 | N95: 24.9 | O95: 261.9 | P95: 35.63265306 | Q95: 706 | R95: 23 | S95: 3.257790368 | T95: 683 | U95: 1.15 | V95: 684.15 | W95: 96.90509915 | X95: 646 | Y95: 802 | Z95: 124.1486068 | AA95: -156 | AB95: 40.1 | AC95: -115.9 | AD95: -17.94117647 | AE95: 657 | AF95: 1580 | AG95: 240.4870624 | AH95: -923 | AI95: 79 | AJ95: -844 | AK95: -128.4627093 | AL95: 12835
A96: 86 | B96: 75 SAN MARTÍN DE LAS PIRÁMIDES | C96: 501 | D96: 351 | E96: 70.05988024 | F96: 150 | G96: 17.55 | H96: 167.55 | I96: 33.44311377 | J96: 455 | K96: 366 | L96: 80.43956044 | M96: 89 | N96: 18.3 | O96: 107.3 | P96: 23.58241758 | Q96: 514 | R96: 167 | S96: 32.49027237 | T96: 347 | U96: 8.35 | V96: 355.35 | W96: 69.13424125 | X96: 447 | Y96: 556 | Z96: 124.3847875 | AA96: -109 | AB96: 27.8 | AC96: -81.2 | AD96: -18.1655481 | AE96: 454 | AF96: 62 | AG96: 13.65638767 | AH96: 392 | AI96: 3.1 | AJ96: 395.1 | AK96: 87.02643172 | AL96: 94410
A97: 87 | B97: 84 TEMASCALAPA | C97: 713 | D97: 579 | E97: 81.20617111 | F97: 134 | G97: 28.95 | H97: 162.95 | I97: 22.85413745 | J97: 736 | K97: 660 | L97: 89.67391304 | M97: 76 | N97: 33 | O97: 109 | P97: 14.80978261 | Q97: 718 | R97: 1118 | S97: 155.7103064 | T97: -400 | U97: 55.9 | V97: -344.1 | W97: -47.92479109 | X97: 652 | Y97: 1034 | Z97: 158.5889571 | AA97: -382 | AB97: 51.7 | AC97: -330.3 | AD97: -50.6595092 | AE97: 663 | AF97: 153 | AG97: 23.07692308 | AH97: 510 | AI97: 7.65 | AJ97: 517.65 | AK97: 78.07692308 | AL97: 11520
A98: 88 | B98: 92 TEOTIHUACÁN | C98: 1078 | D98: 688 | E98: 63.82189239 | F98: 390 | G98: 34.4 | H98: 424.4 | I98: 39.36920223 | J98: 876 | K98: 788 | L98: 89.9543379 | M98: 88 | N98: 39.4 | O98: 127.4 | P98: 14.543379 | Q98: 1087 | R98: 102 | S98: 9.383624655 | T98: 985 | U98: 5.1 | V98: 990.1 | W98: 91.08555658 | X98: 930 | Y98: 1850 | Z98: 198.9247312 | AA98: -920 | AB98: 92.5 | AC98: -827.5 | AD98: -88.97849462 | AE98: 945 | AF98: 81 | AG98: 8.571428571 | AH98: 864 | AI98: 4.05 | AJ98: 868.05 | AK98: 91.85714286 | AL98: 158245
A99: 89 | B99: 104 TLALNEPANTLA DE BAZ | C99: 6186 | D99: 4834 | E99: 78.14419657 | F99: 1352 | G99: 241.7 | H99: 1593.7 | I99: 25.76301326 | J99: 5931 | K99: 4237 | L99: 71.43820604 | M99: 1694 | N99: 211.85 | O99: 1905.85 | P99: 32.13370427 | Q99: 6500 | S99: 0 | T99: 6500 | U99: 0 | V99: 6500 | W99: 100 | X99: 5433 | Y99: 8033 | Z99: 147.8556967 | AA99: -2600 | AB99: 401.65 | AC99: -2198.35 | AD99: -40.46291184 | AE99: 5233 | AF99: 15 | AG99: 0.2866424613 | AH99: 5218 | AI99: 0.75 | AJ99: 5218.75 | AK99: 99.72768966 | AL99: 1301995
A100: 90 | B100: 10 APAXCO | C100: 423 | D100: 488 | E100: 115.3664303 | F100: -65 | G100: 24.4 | H100: -40.6 | I100: -9.598108747 | J100: 426 | K100: 329 | L100: 77.23004695 | M100: 97 | N100: 16.45 | O100: 113.45 | P100: 26.6314554 | Q100: 296 | S100: 0 | T100: 296 | U100: 0 | V100: 296 | W100: 100 | X100: 389 | Y100: 669 | Z100: 171.9794344 | AA100: -280 | AB100: 33.45 | AC100: -246.55 | AD100: -63.38046272 | AE100: 380 | AF100: 16 | AG100: 4.210526316 | AH100: 364 | AI100: 0.8 | AJ100: 364.8 | AK100: 96 | AL100: 48710
A101: 91 | B101: 35 HUEHUETOCA | C101: 1025 | D101: 1876 | E101: 183.0243902 | F101: -851 | G101: 93.8 | H101: -757.2 | I101: -73.87317073 | J101: 1481 | K101: 1294 | L101: 87.37339635 | M101: 187 | N101: 64.7 | O101: 251.7 | P101: 16.99527346 | Q101: 1848 | S101: 0 | T101: 1848 | U101: 0 | V101: 1848 | W101: 100 | X101: 1631 | Y101: 2920 | Z101: 179.0312692 | AA101: -1289 | AB101: 146 | AC101: -1143 | AD101: -70.0797057 | AE101: 1017 | AF101: 270 | AG101: 26.54867257 | AH101: 747 | AI101: 13.5 | AJ101: 760.5 | AK101: 74.77876106 | AL101: 96000
A102: 92 | B102: 36 HUEYPOXTLA | C102: 450 | D102: 872 | E102: 193.7777778 | F102: -422 | G102: 43.6 | H102: -378.4 | I102: -84.08888889 | J102: 454 | K102: 603 | L102: 132.8193833 | M102: -149 | N102: 30.15 | O102: -118.85 | P102: -26.1784141 | Q102: 611 | S102: 0 | T102: 611 | U102: 0 | V102: 611 | W102: 100 | X102: 735 | Y102: 1462 | Z102: 198.9115646 | AA102: -727 | AB102: 73.1 | AC102: -653.9 | AD102: -88.96598639 | AE102: 713 | AF102: 17 | AG102: 2.384291725 | AH102: 696 | AI102: 0.85 | AJ102: 696.85 | AK102: 97.73492286 | AL102: 15670
A103: 93 | B103: 44 JALTENCO | C103: 346 | D103: 537 | E103: 155.2023121 | F103: -191 | G103: 26.85 | H103: -164.15 | I103: -47.44219653 | J103: 414 | K103: 508 | L103: 122.705314 | M103: -94 | N103: 25.4 | O103: -68.6 | P103: -16.57004831 | Q103: 254 | S103: 0 | T103: 254 | U103: 0 | V103: 254 | W103: 100 | X103: 278 | Y103: 444 | Z103: 159.7122302 | AA103: -166 | AB103: 22.2 | AC103: -143.8 | AD103: -51.72661871 | AE103: 289 | AF103: 300 | AG103: 103.8062284 | AH103: -11 | AI103: 15 | AJ103: 4 | AK103: 1.384083045 | AL103: -11855
A104: 94 | B104: 59 NEXTLALPAN | C104: 561 | D104: 657 | E104: 117.1122995 | F104: -96 | G104: 32.85 | H104: -63.15 | I104: -11.25668449 | J104: 559 | K104: 747 | L104: 133.6314848 | M104: -188 | N104: 37.35 | O104: -150.65 | P104: -26.94991055 | Q104: 510 | S104: 0 | T104: 510 | U104: 0 | V104: 510 | W104: 100 | X104: 795 | Y104: 1120 | Z104: 140.8805031 | AA104: -325 | AB104: 56 | AC104: -269 | AD104: -33.83647799 | AE104: 694 | AF104: 17 | AG104: 2.449567723 | AH104: 677 | AI104: 0.85 | AJ104: 677.85 | AK104: 97.67291066 | AL104: 70505
A105: 95 | B105: 81 TECÁMAC | C105: 5109 | D105: 3181 | E105: 62.26267371 | F105: 1928 | G105: 159.05 | H105: 2087.05 | I105: 40.85045997 | J105: 5272 | K105: 4552 | L105: 86.34294385 | M105: 720 | N105: 227.6 | O105: 947.6 | P105: 17.97420334 | Q105: 3478 | S105: 0 | T105: 3478 | U105: 0 | V105: 3478 | W105: 100 | X105: 4984 | Y105: 6230 | Z105: 125 | AA105: -1246 | AB105: 311.5 | AC105: -934.5 | AD105: -18.75 | AE105: 4271 | AF105: 3 | AG105: 0.07024116132 | AH105: 4268 | AI105: 0.15 | AJ105: 4268.15 | AK105: 99.9332709 | AL105: 984630
A106: 96 | B106: 96 TEQUIXQUIAC | C106: 409 | D106: 673 | E106: 164.5476773 | F106: -264 | G106: 33.65 | H106: -230.35 | I106: -56.3202934 | J106: 641 | K106: 666 | L106: 103.900156 | M106: -25 | N106: 33.3 | O106: 8.3 | P106: 1.294851794 | Q106: 471 | S106: 0 | T106: 471 | U106: 0 | V106: 471 | W106: 100 | X106: 503 | Y106: 1180 | Z106: 234.5924453 | AA106: -677 | AB106: 59 | AC106: -618 | AD106: -122.8628231 | AE106: 555 | AF106: 11 | AG106: 1.981981982 | AH106: 544 | AI106: 0.55 | AJ106: 544.55 | AK106: 98.11711712 | AL106: 17550
A107: 97 | B107: 120 ZUMPANGO | C107: 2558 | D107: 2848 | E107: 111.336982 | F107: -290 | G107: 142.4 | H107: -147.6 | I107: -5.770132916 | J107: 2700 | K107: 2417 | L107: 89.51851852 | M107: 283 | N107: 120.85 | O107: 403.85 | P107: 14.95740741 | Q107: 2774 | S107: 0 | T107: 2774 | U107: 0 | V107: 2774 | W107: 100 | X107: 2761 | Y107: 4445 | Z107: 160.9923941 | AA107: -1684 | AB107: 222.25 | AC107: -1461.75 | AD107: -52.94277436 | AE107: 2166 | AF107: 10 | AG107: 0.4616805171 | AH107: 2156 | AI107: 0.5 | AJ107: 2156.5 | AK107: 99.56140351 | AL107: 372500
A108: 98 | B108: 125 TONANITLA | C108: 195 | D108: 172 | E108: 88.20512821 | F108: 23 | G108: 8.6 | H108: 31.6 | I108: 16.20512821 | J108: 150 | K108: 178 | L108: 118.6666667 | M108: -28 | N108: 8.9 | O108: -19.1 | P108: -12.73333333 | Q108: 143 | S108: 0 | T108: 143 | U108: 0 | V108: 143 | W108: 100 | X108: 172 | Y108: 243 | Z108: 141.2790698 | AA108: -71 | AB108: 12.15 | AC108: -58.85 | AD108: -34.21511628 | AE108: 158 | AF108: 15 | AG108: 9.493670886 | AH108: 143 | AI108: 0.75 | AJ108: 143.75 | AK108: 90.98101266 | AL108: 24040
A109: 99 | B109: 9 AMECAMECA | C109: 708 | D109: 946 | E109: 133.6158192 | F109: -238 | G109: 47.3 | H109: -190.7 | I109: -26.93502825 | J109: 616 | K109: 445 | L109: 72.24025974 | M109: 171 | N109: 22.25 | O109: 193.25 | P109: 31.37175325 | Q109: 730 | S109: 0 | T109: 730 | U109: 0 | V109: 730 | W109: 100 | X109: 968 | Y109: 1076 | Z109: 111.1570248 | AA109: -108 | AB109: 53.8 | AC109: -54.2 | AD109: -5.599173554 | AE109: 963 | AF109: 10 | AG109: 1.038421599 | AH109: 953 | AI109: 0.5 | AJ109: 953.5 | AK109: 99.01349948 | AL109: 163185
A110: 100 | B110: 15 ATLAUTLA | C110: 467 | D110: 652 | E110: 139.614561 | F110: -185 | G110: 32.6 | H110: -152.4 | I110: -32.63383298 | J110: 377 | K110: 343 | L110: 90.98143236 | M110: 34 | N110: 17.15 | O110: 51.15 | P110: 13.56763926 | Q110: 463 | S110: 0 | T110: 463 | U110: 0 | V110: 463 | W110: 100 | X110: 134 | Y110: 267 | Z110: 199.2537313 | AA110: -133 | AB110: 13.35 | AC110: -119.65 | AD110: -89.29104478 | AE110: 132 | AF110: 602 | AG110: 456.0606061 | AH110: -470 | AI110: 30.1 | AJ110: -439.9 | AK110: -333.2575758 | AL110: -19780
A111: 101 | B111: 17 AYAPANGO | C111: 398 | D111: 119 | E111: 29.89949749 | F111: 279 | G111: 5.95 | H111: 284.95 | I111: 71.59547739 | J111: 132 | K111: 59 | L111: 44.6969697 | M111: 73 | N111: 2.95 | O111: 75.95 | P111: 57.53787879 | Q111: 175 | S111: 0 | T111: 175 | U111: 0 | V111: 175 | W111: 100 | X111: 655 | Y111: 60 | Z111: 9.160305344 | AA111: 595 | AB111: 3 | AC111: 598 | AD111: 91.29770992 | AE111: 651 | AF111: 837 | AG111: 128.5714286 | AH111: -186 | AI111: 41.85 | AJ111: -144.15 | AK111: -22.14285714 | AL111: 98975
A112: 102 | B112: 22 COCOTITLÁN | C112: 287 | D112: 220 | E112: 76.65505226 | F112: 67 | G112: 11 | H112: 78 | I112: 27.17770035 | J112: 154 | K112: 190 | L112: 123.3766234 | M112: -36 | N112: 9.5 | O112: -26.5 | P112: -17.20779221 | Q112: 227 | S112: 0 | T112: 227 | U112: 0 | V112: 227 | W112: 100 | X112: 251 | Y112: 256 | Z112: 101.9920319 | AA112: -5 | AB112: 12.8 | AC112: 7.8 | AD112: 3.107569721 | AE112: 248 | AF112: 7140 | AG112: 2879.032258 | AH112: -6892 | AI112: 357 | AJ112: -6535 | AK112: -2635.080645 | AL112: -624870
A113: 103 | B113: 25 CHALCO | C113: 3910 | D113: 3922 | E113: 100.3069054 | F113: -12 | G113: 196.1 | H113: 184.1 | I113: 4.708439898 | J113: 4348 | K113: 4596 | L113: 105.7037718 | M113: -248 | N113: 229.8 | O113: -18.2 | P113: -0.4185832567 | Q113: 3317 | S113: 0 | T113: 3317 | U113: 0 | V113: 3317 | W113: 100 | X113: 195 | Y113: 5820 | Z113: 2984.615385 | AA113: -5625 | AB113: 291 | AC113: -5334 | AD113: -2735.384615 | AE113: 193 | AF113: 3945 | AG113: 2044.041451 | AH113: -3752 | AI113: 197.25 | AJ113: -3554.75 | AK113: -1841.839378 | AL113: -540585
A114: 104 | B114: 34 ECATZINGO | C114: 352 | D114: 261 | E114: 74.14772727 | F114: 91 | G114: 13.05 | H114: 104.05 | I114: 29.55965909 | J114: 127 | K114: 140 | L114: 110.2362205 | M114: -13 | N114: 7 | O114: -6 | P114: -4.724409449 | Q114: 241 | S114: 0 | T114: 241 | U114: 0 | V114: 241 | W114: 100 | X114: 4746 | Y114: 137 | Z114: 2.886641382 | AA114: 4609 | AB114: 6.85 | AC114: 4615.85 | AD114: 97.25769069 | AE114: 4731 | AF114: 697 | AG114: 14.73261467 | AH114: 4034 | AI114: 34.85 | AJ114: 4068.85 | AK114: 86.00401606 | AL114: 902375
A115: 105 | B115: 39 IXTAPALUCA | C115: 5747 | D115: 3865 | E115: 67.25247955 | F115: 1882 | G115: 193.25 | H115: 2075.25 | I115: 36.11014442 | J115: 6236 | K115: 4602 | L115: 73.79730597 | M115: 1634 | N115: 230.1 | O115: 1864.1 | P115: 29.89255933 | Q115: 5547 | S115: 0 | T115: 5547 | U115: 0 | V115: 5547 | W115: 100 | X115: 5557 | Y115: 4764 | Z115: 85.72971028 | AA115: 793 | AB115: 238.2 | AC115: 1031.2 | AD115: 18.55677524 | AE115: 5539 | AF115: 243 | AG115: 4.387073479 | AH115: 5296 | AI115: 12.15 | AJ115: 5308.15 | AK115: 95.83228019 | AL115: 1582570
A116: 106 | B116: 50 JUCHITEPEC | C116: 394 | D116: 392 | E116: 99.49238579 | F116: 2 | G116: 19.6 | H116: 21.6 | I116: 5.482233503 | J116: 315 | K116: 380 | L116: 120.6349206 | M116: -65 | N116: 19 | O116: -46 | P116: -14.6031746 | Q116: 548 | S116: 0 | T116: 548 | U116: 0 | V116: 548 | W116: 100 | X116: 426 | Y116: 433 | Z116: 101.6431925 | AA116: -7 | AB116: 21.65 | AC116: 14.65 | AD116: 3.438967136 | AE116: 424 | AF116: 54 | AG116: 12.73584906 | AH116: 370 | AI116: 2.7 | AJ116: 372.7 | AK116: 87.9009434 | AL116: 91095
A117: 107 | B117: 68 OZUMBA | C117: 461 | D117: 440 | E117: 95.44468547 | F117: 21 | G117: 22 | H117: 43 | I117: 9.327548807 | J117: 368 | K117: 444 | L117: 120.6521739 | M117: -76 | N117: 22.2 | O117: -53.8 | P117: -14.61956522 | Q117: 474 | S117: 0 | T117: 474 | U117: 0 | V117: 474 | W117: 100 | X117: 163 | Y117: 434 | Z117: 266.2576687 | AA117: -271 | AB117: 21.7 | AC117: -249.3 | AD117: -152.9447853 | AE117: 162 | AF117: 245 | AG117: 151.2345679 | AH117: -83 | AI117: 12.25 | AJ117: -70.75 | AK117: -43.67283951 | AL117: 14315
A118: 108 | B118: 83 TEMAMATLA | C118: 173 | D118: 161 | E118: 93.06358382 | F118: 12 | G118: 8.05 | H118: 20.05 | I118: 11.58959538 | J118: 150 | K118: 210 | L118: 140 | M118: -60 | N118: 10.5 | O118: -49.5 | P118: -33 | Q118: 267 | S118: 0 | T118: 267 | U118: 0 | V118: 267 | W118: 100 | X118: 243 | Y118: 165 | Z118: 67.90123457 | AA118: 78 | AB118: 8.25 | AC118: 86.25 | AD118: 35.49382716 | AE118: 241 | AF118: 146 | AG118: 60.58091286 | AH118: 95 | AI118: 7.3 | AJ118: 102.3 | AK118: 42.44813278 | AL118: 42610
A119: 109 | B119: 89 TENANGO DEL AIRE | C119: 394 | D119: 199 | E119: 50.50761421 | F119: 195 | G119: 9.95 | H119: 204.95 | I119: 52.0177665 | J119: 143 | K119: 180 | L119: 125.8741259 | M119: -37 | N119: 9 | O119: -28 | P119: -19.58041958 | Q119: 240 | S119: 0 | T119: 240 | U119: 0 | V119: 240 | W119: 100 | X119: 444 | Y119: 227 | Z119: 51.12612613 | AA119: 217 | AB119: 11.35 | AC119: 228.35 | AD119: 51.43018018 | AE119: 442 | AF119: 1977 | AG119: 447.2850679 | AH119: -1535 | AI119: 98.85 | AJ119: -1436.15 | AK119: -324.9208145 | AL119: -79085
A120: 110 | B120: 94 TEPETLIXPA | C120: 460 | D120: 403 | E120: 87.60869565 | F120: 57 | G120: 20.15 | H120: 77.15 | I120: 16.77173913 | J120: 243 | K120: 239 | L120: 98.35390947 | M120: 4 | N120: 11.95 | O120: 15.95 | P120: 6.563786008 | Q120: 474 | S120: 0 | T120: 474 | U120: 0 | V120: 474 | W120: 100 | X120: 621 | Y120: 303 | Z120: 48.79227053 | AA120: 318 | AB120: 15.15 | AC120: 333.15 | AD120: 53.647343 | AE120: 618 | AF120: 4 | AG120: 0.6472491909 | AH120: 614 | AI120: 0.2 | AJ120: 614.2 | AK120: 99.38511327 | AL120: 151445
A121: 111 | B121: 103 TLALMANALCO | C121: 409 | D121: 392 | E121: 95.84352078 | F121: 17 | G121: 19.6 | H121: 36.6 | I121: 8.948655257 | J121: 602 | K121: 456 | L121: 75.74750831 | M121: 146 | N121: 22.8 | O121: 168.8 | P121: 28.03986711 | Q121: 1046 | S121: 0 | T121: 1046 | U121: 0 | V121: 1046 | W121: 100 | X121: 445 | Y121: 860 | Z121: 193.258427 | AA121: -415 | AB121: 43 | AC121: -372 | AD121: -83.59550562 | AE121: 441 | AF121: 51 | AG121: 11.56462585 | AH121: 390 | AI121: 2.55 | AJ121: 392.55 | AK121: 89.01360544 | AL121: 127195
A122: 112 | B122: 122 VALLE DE CHALCO SOLIDARIDAD | C122: 6310 | D122: 5430 | E122: 86.05388273 | F122: 880 | G122: 271.5 | H122: 1151.5 | I122: 18.24881141 | J122: 4736 | K122: 6599 | L122: 139.3369932 | M122: -1863 | N122: 329.95 | O122: -1533.05 | P122: -32.37014358 | Q122: 5545 | S122: 0 | T122: 5545 | U122: 0 | V122: 5545 | W122: 100 | X122: 5423 | Y122: 6284 | Z122: 115.8768209 | AA122: -861 | AB122: 314.2 | AC122: -546.8 | AD122: -10.0829799 | AE122: 5416 | AF122: 681 | AG122: 12.57385524 | AH122: 4735 | AI122: 34.05 | AJ122: 4769.05 | AK122: 88.05483752 | AL122: 938570
A123: 113 | B123: 20 COACALCO DE BERRIOZÁBAL | C123: 2063 | D123: 1124 | E123: 54.48376151 | F123: 939 | G123: 56.2 | H123: 995.2 | I123: 48.24042656 | J123: 1866 | K123: 2298 | L123: 123.1511254 | M123: -432 | N123: 114.9 | O123: -317.1 | P123: -16.99356913 | Q123: 1915 | S123: 0 | T123: 1915 | U123: 0 | V123: 1915 | W123: 100 | X123: 1962 | Y123: 2604 | Z123: 132.7217125 | AA123: -642 | AB123: 130.2 | AC123: -511.8 | AD123: -26.08562691 | AE123: 2404 | AF123: 224 | AG123: 9.317803661 | AH123: 2180 | AI123: 11.2 | AJ123: 2191.2 | AK123: 91.14808652 | AL123: 427250
A124: 114 | B124: 33 ECATEPEC DE MORELOS | C124: 17739 | D124: 12594 | E124: 70.99611027 | F124: 5145 | G124: 629.7 | H124: 5774.7 | I124: 32.55369525 | J124: 18527.8 | K124: 22690 | L124: 122.4646207 | M124: -4162.2 | N124: 1134.5 | O124: -3027.7 | P124: -16.3413897 | Q124: 19003 | S124: 0 | T124: 19003 | U124: 0 | V124: 19003 | W124: 100 | X124: 19478 | Y124: 24179 | Z124: 124.1349214 | AA124: -4701 | AB124: 1208.95 | AC124: -3492.05 | AD124: -17.92817538 | AE124: 19442 | AG124: 0 | AH124: 19442 | AI124: 0 | AJ124: 19442 | AK124: 100 | AL124: 3769995
A125: 115 | B125: 58 NEZAHUALCÓYOTL | C125: 12672 | D125: 11060 | E125: 87.2790404 | F125: 1612 | G125: 553 | H125: 2165 | I125: 17.08491162 | J125: 14408 | K125: 4530 | L125: 31.44086619 | M125: 9878 | N125: 226.5 | O125: 10104.5 | P125: 70.13117712 | Q125: 17952 | S125: 0 | T125: 17952 | U125: 0 | V125: 17952 | W125: 100 | X125: 17952 | Y125: 10173 | Z125: 56.66778075 | AA125: 7779 | AB125: 508.65 | AC125: 8287.65 | AD125: 46.16560829 | AE125: 18279 | AG125: 0 | AH125: 18279 | AI125: 0 | AJ125: 18279 | AK125: 100 | AL125: 5678815
A126: 116 | B126: 70 LA PAZ | C126: 4671 | D126: 4080 | E126: 87.34746307 | F126: 591 | G126: 204 | H126: 795 | I126: 17.01991008 | J126: 5035 | K126: 1722 | L126: 34.20059583 | M126: 3313 | N126: 86.1 | O126: 3399.1 | P126: 67.50943396 | Q126: 5920 | S126: 0 | T126: 5920 | U126: 0 | V126: 5920 | W126: 100 | X126: 5920 | Y126: 2177 | Z126: 36.77364865 | AA126: 3743 | AB126: 108.85 | AC126: 3851.85 | AD126: 65.06503378 | AE126: 6030 | AG126: 0 | AH126: 6030 | AI126: 0 | AJ126: 6030 | AK126: 100 | AL126: 1999595
A127: 117 | B127: 11 ATENCO | C127: 1033 | D127: 955 | E127: 92.44917715 | F127: 78 | G127: 47.75 | H127: 125.75 | I127: 12.1732817 | J127: 843.7831955 | K127: 673 | L127: 79.75982499 | M127: 170.7831955 | N127: 33.65 | O127: 204.4331955 | P127: 24.22816626 | Q127: 782.0033083 | S127: 0 | T127: 782.0033083 | U127: 0 | V127: 782.0033083 | W127: 100 | X127: 905 | Y127: 949 | Z127: 104.8618785 | AA127: -44 | AB127: 47.45 | AC127: 3.45 | AD127: 0.3812154696 | AE127: 910 | AG127: 0 | AH127: 910 | AI127: 0 | AJ127: 910 | AK127: 100 | AL127: 202563.6504
A128: 118 | B128: 28 CHIAUTLA | C128: 543 | D128: 366 | E128: 67.40331492 | F128: 177 | G128: 18.3 | H128: 195.3 | I128: 35.96685083 | J128: 371.943472 | K128: 583 | L128: 156.7442485 | M128: -211.056528 | N128: 29.15 | O128: -181.906528 | P128: -48.90703608 | Q128: 344.7106166 | S128: 0 | T128: 344.7106166 | U128: 0 | V128: 344.7106166 | W128: 100 | X128: 440 | Y128: 558 | Z128: 126.8181818 | AA128: -118 | AB128: 27.9 | AC128: -90.1 | AD128: -20.47727273 | AE128: 398 | AG128: 0 | AH128: 398 | AI128: 0 | AJ128: 398 | AK128: 100 | AL128: 66600.40886
A129: 119 | B129: 29 CHICOLOAPAN | C129: 1724 | D129: 1495 | E129: 86.71693735 | F129: 229 | G129: 74.75 | H129: 303.75 | I129: 17.61890951 | J129: 5197.523924 | K129: 927 | L129: 17.83541574 | M129: 4270.523924 | N129: 46.35 | O129: 4316.873924 | P129: 83.05635505 | Q129: 4816.973039 | S129: 0 | T129: 4816.973039 | U129: 0 | V129: 4816.973039 | W129: 100 | X129: 1928 | Y129: 2131 | Z129: 110.5290456 | AA129: -203 | AB129: 106.55 | AC129: -96.45 | AD129: -5.002593361 | AE129: 2527 | AG129: 0 | AH129: 2527 | AI129: 0 | AJ129: 2527 | AK129: 100 | AL129: 1186814.696
A130: 120 | B130: 30 CHICONCUAC | C130: 471 | D130: 402 | E130: 85.35031847 | F130: 69 | G130: 20.1 | H130: 89.1 | I130: 18.91719745 | J130: 297.9104164 | K130: 324 | L130: 108.7575265 | M130: -26.08958364 | N130: 16.2 | O130: -9.889583645 | P130: -3.319650171 | Q130: 276.098093 | S130: 0 | T130: 276.098093 | U130: 0 | V130: 276.098093 | W130: 100 | X130: 334 | Y130: 522 | Z130: 156.2874251 | AA130: -188 | AB130: 26.1 | AC130: -161.9 | AD130: -48.47305389 | AE130: 349 | AG130: 0 | AH130: 349 | AI130: 0 | AJ130: 349 | AK130: 100 | AL130: 54240.85094
A131: 121 | B131: 31 CHIMALHUACÁN | C131: 10064 | D131: 7478 | E131: 74.30445151 | F131: 2586 | G131: 373.9 | H131: 2959.9 | I131: 29.41077107 | J131: 7979.611095 | K131: 9026 | L131: 113.113282 | M131: -1046.388905 | N131: 451.3 | O131: -595.0889053 | P131: -7.457617899 | Q131: 7395.362113 | S131: 0 | T131: 7395.362113 | U131: 0 | V131: 7395.362113 | W131: 100 | X131: 9656 | Y131: 9646 | Z131: 99.89643745 | AA131: 10 | AB131: 482.3 | AC131: 492.3 | AD131: 5.098384424 | AE131: 9515 | AG131: 0 | AH131: 9515 | AI131: 0 | AJ131: 9515 | AK131: 100 | AL131: 1976747.321
A132: 122 | B132: 69 PAPALOTLA | C132: 83 | D132: 52 | E132: 62.65060241 | F132: 31 | G132: 2.6 | H132: 33.6 | I132: 40.48192771 | J132: 55.27496165 | K132: 58 | L132: 104.9299688 | M132: -2.725038347 | N132: 2.9 | O132: 0.1749616531 | P132: 0.3165296689 | Q132: 51.22785463 | S132: 0 | T132: 51.22785463 | U132: 0 | V132: 51.22785463 | W132: 100 | X132: 57 | Y132: 70 | Z132: 122.8070175 | AA132: -13 | AB132: 3.5 | AC132: -9.5 | AD132: -16.66666667 | AE132: 60 | AG132: 0 | AH132: 60 | AI132: 0 | AJ132: 60 | AK132: 100 | AL132: 13550.28163
A133: 123 | B133: 93 TEPETLAOXTOC | C133: 624 | D133: 333 | E133: 53.36538462 | F133: 291 | G133: 16.65 | H133: 307.65 | I133: 49.30288462 | J133: 436.936782 | K133: 457 | L133: 104.5917897 | M133: -20.06321799 | N133: 22.85 | O133: 2.786782014 | P133: 0.6377998212 | Q133: 404.9452643 | S133: 0 | T133: 404.9452643 | U133: 0 | V133: 404.9452643 | W133: 100 | X133: 468 | Y133: 479 | Z133: 102.3504274 | AA133: -11 | AB133: 23.95 | AC133: 12.95 | AD133: 2.767094017 | AE133: 412 | AG133: 0 | AH133: 412 | AI133: 0 | AJ133: 412 | AK133: 100 | AL133: 114033.2046
A134: 124 | B134: 99 TEXCOCO | C134: 3269 | D134: 2572 | E134: 78.67849495 | F134: 697 | G134: 128.6 | H134: 825.6 | I134: 25.2554298 | J134: 2506.767907 | K134: 2454 | L134: 97.89498233 | M134: 52.76790729 | N134: 122.7 | O134: 175.4679073 | P134: 6.999766783 | Q134: 2323.228061 | S134: 0 | T134: 2323.228061 | U134: 0 | V134: 2323.228061 | W134: 100 | X134: 2512 | Y134: 3145 | Z134: 125.1990446 | AA134: -633 | AB134: 157.25 | AC134: -475.75 | AD134: -18.93909236 | AE134: 3553 | AG134: 0 | AH134: 3553 | AI134: 0 | AJ134: 3553 | AK134: 100 | AL134: 640154.5968
A135: 125 | B135: 100 TEZOYUCA | C135: 740 | D135: 437 | E135: 59.05405405 | F135: 303 | G135: 21.85 | H135: 324.85 | I135: 43.89864865 | J135: 515.6553177 | K135: 286 | L135: 55.46340553 | M135: 229.6553177 | N135: 14.3 | O135: 243.9553177 | P135: 47.30976475 | Q135: 477.9002078 | S135: 0 | T135: 477.9002078 | U135: 0 | V135: 477.9002078 | W135: 100 | X135: 596 | Y135: 631 | Z135: 105.8724832 | AA135: -35 | AB135: 31.55 | AC135: -3.45 | AD135: -0.5788590604 | AE135: 587 | AG135: 0 | AH135: 587 | AI135: 0 | AJ135: 587 | AK135: 100 | AL135: 163025.5525
A136: TOTAL | C136: =SUM(C11:C135) -> 216286 | D136: =SUM(D11:D135) -> 187981 | E136: =D136/C136*100 -> 86.91316128 | F136: =C136-D136 -> 28305 | G136: =D136*5/100 -> 9399.05 | H136: =F136+G136 -> 37704.05 | I136: =H136/C136*100 -> 17.43249679 | J136: =SUM(J11:J135) -> 220736.3277 | K136: =SUM(K11:K135) -> 194093 | L136: =K136/J136*100 -> 87.92979479 | M136: =J136-K136 -> 26643.32774 | N136: =K136*5/100 -> 9704.65 | O136: =M136+N136 -> 36347.97774 | P136: =O136/J136*100 -> 16.46669495 | Q136: =SUM(Q11:Q135) -> 222006.4486 | R136: =SUM(R11:R135) -> 29956 | S136: =R136/Q136*100 -> 13.49330175 | T136: =Q136-R136 -> 192050.4486 | U136: =R136*5/100 -> 1497.8 | V136: =T136+U136 -> 193548.2486 | W136: =V136/Q136*100 -> 87.18136334 | X136: =SUM(X11:X135) -> 228780 | Y136: =SUM(Y11:Y135) -> 251774 | Z136: =Y136/X136*100 -> 110.0507037 | AA136: =X136-Y136 -> -22994 | AB136: =Y136*5/100 -> 12588.7 | AC136: =AA136+AB136 -> -10405.3 | AD136: =AC136/X136*100 -> -4.548168546 | AE136: =SUM(AE11:AE135) -> 228350 | AF136: =SUM(AF11:AF135) -> 41170 | AG136: 18.02934092 | AH136: 187180 | AI136: 2058.5 | AJ136: 189238.5 | AK136: =AJ136/AE136*100 -> 82.87212612 | AL136: =SUM(H136,O136,V136,AC136)/X136*100 -> 112.4202187

Sheet base (hidden)
D1: Población de 12 a 23 meses | E1: =SUMIFS(pob1223m2015,estado,$B1) -> 0 | F1: =SUMIFS(pob1223m2016,estado,$B1) -> 0 | G1: =SUMIFS(pob1223m2017,estado,$B1) -> 0 | H1: =SUMIFS(pob1223m2018,estado,$B1) -> 0 | I1: =SUMIFS(pob1223m2019,estado,$B1) -> 0 | J1: =SUMIFS(pob1223m2020,estado,$B1) -> 0 | K1: =SUM(E1:J1) -> 0
D2: Número de niños vacunados con SRP1 de 12 a 23 meses | E2: =SUMIFS(vacSRP1a2015,estado,$B1) -> 0 | F2: =SUMIFS(vacSRP1a2016,estado,$B1) -> 0 | G2: =SUMIFS(vacSRP1a2017,estado,$B1) -> 0 | H2: =SUMIFS(vacSRP1a2018,estado,$B1) -> 0 | I2: =SUMIFS(vacSRP1a2019,estado,$B1) -> 0 | J2: =SUMIFS(vacSRP1a2020,estado,$B1) -> 0 | K2: =SUM(E2:J2) -> 0
D3: % de Cobertura | E3: =E2/E1 ->  | F3: =F2/F1 ->  | G3: =G2/G1 -> 
D4: Número de niños vacunados con SRP de 2 a 4 años (Esquema tardío) | E4: =SUMIFS(vacSRP1a4a2015,estado,$B1) -> 0 | F4: =SUMIFS(vacSRP1a4a2016,estado,$B1) -> 0 | G4: =SUMIFS(vacSRP1a4a2017,estado,$B1) -> 0 | H4: =SUMIFS(vacSRP1a4a2018,estado,$B1) -> 0 | I4: =SUMIFS(vacSRP1a4a2019,estado,$B1) -> 0 | J4: =SUMIFS(vacSRP1a4a2020,estado,$B1) -> 0 | K4: =SUM(E4:J4) -> 0
D5: Total de niños vacunados | E5: =E4+E2 -> 0 | F5: =F4+F2 -> 0 | G5: =G4+G2 -> 0 | H5: 0 | I5: 0 | J5: 0 | K5: =K4+K2 -> 0
D6: Número de niños no vacunados con SRP | E6: =E1-E5 -> 0 | F6: =F1-F5 -> 0 | G6: =G1-G5 -> 0 | H6: 0 | I6: 0 | J6: 0 | K6: =K1-K5 -> 0
D7: Vacunados y no inmunizados (10% de los vacunados) | E7: =E5*10/100 -> 0 | F7: =F5*10/100 -> 0 | G7: =G5*10/100 -> 0 | H7: 0 | I7: 0 | J7: 0 | K7: =K5*10/100 -> 0
D8: Total de susceptibles | E8: =E7+E6 -> 0 | F8: =F7+F6 -> 0 | G8: =G7+G6 -> 0 | H8: 0 | I8: 0 | J8: 0 | K8: 0
D9: % de susceptibles por cohorte anual | E9: =E8/E1 ->  | F9: =F8/F1 ->  | G9: =G8/G1 -> 
D10: Población de 12 a 23 meses | E10: =SUMIFS(pob1223m2015,municipio,$C10) -> 0 | F10: =SUMIFS(pob1223m2016,municipio,$C10) -> 0 | G10: =SUMIFS(pob1223m2017,municipio,$C10) -> 0 | H10: =SUMIFS(pob1223m2018,municipio,$C10) -> 0 | I10: =SUMIFS(pob1223m2019,municipio,$C10) -> 0 | J10: =SUMIFS(pob1223m2020,municipio,$C10) -> 0 | K10: =SUM(E10:J10) -> 0
D11: Número de niños vacunados con SRP1 de 12 a 23 meses | E11: =SUMIFS(vacSRP1a2015,municipio,$C10) -> 0 | F11: =SUMIFS(vacSRP1a2016,municipio,$C10) -> 0 | G11: =SUMIFS(vacSRP1a2017,municipio,$C10) -> 0 | H11: =SUMIFS(vacSRP1a2018,municipio,$C10) -> 0 | I11: =SUMIFS(vacSRP1a2019,municipio,$C10) -> 0 | J11: =SUMIFS(vacSRP1a2020,municipio,$C10) -> 0 | K11: =SUM(E11:J11) -> 0
D12: % de Cobertura | E12: =E11/E10 ->  | F12: =F11/F10 ->  | G12: =G11/G10 -> 
D13: Número de niños vacunados con SRP de 2 a 4 años (Esquema tardío) | E13: =SUMIFS(vacSRP1a4a2015,municipio,$C10) -> 0 | F13: =SUMIFS(vacSRP1a4a2016,municipio,$C10) -> 0 | G13: =SUMIFS(vacSRP1a4a2017,municipio,$C10) -> 0 | H13: =SUMIFS(vacSRP1a4a2018,municipio,$C10) -> 0 | I13: =SUMIFS(vacSRP1a4a2019,municipio,$C10) -> 0 | J13: =SUMIFS(vacSRP1a4a2020,municipio,$C10) -> 0 | K13: =SUM(E13:J13) -> 0
D14: Total de niños vacunados | E14: =E13+E11 -> 0 | F14: =F13+F11 -> 0 | G14: =G13+G11 -> 0 | H14: 0 | I14: 0 | J14: 0 | K14: =K13+K11 -> 0
D15: Número de niños no vacunados con SRP | E15: =E10-E14 -> 0 | F15: =F10-F14 -> 0 | G15: =G10-G14 -> 0 | H15: 0 | I15: 0 | J15: 0 | K15: =K10-K14 -> 0
D16: Vacunados y no inmunizados (10% de los vacunados) | E16: =E14*10/100 -> 0 | F16: =F14*10/100 -> 0 | G16: =G14*10/100 -> 0 | H16: 0 | I16: 0 | J16: 0 | K16: =K14*10/100 -> 0
D17: Total de susceptibles | E17: =E16+E15 -> 0 | F17: =F16+F15 -> 0 | G17: =G16+G15 -> 0 | H17: 0 | I17: 0 | J17: 0 | K17: 0
D18: % de susceptibles por cohorte anual | E18: =E17/E10 ->  | F18: =F17/F10 ->  | G18: =G17/G10 -> 

Sheet Instructivo
A1: Anexo 2. Instructivo para llenado de calculadora de susceptibles cohortes SRP en campaña de vacunación de seguimiento
A3: 1. Pestaña de susceptibles por nivel (establecimiento de salud, red, municipio o región sanitaria)
A5: Procediendo a ingresar la siguiente información, a partir del año que realizo su última CVS:
A7: POBLACIÓN DE 12 A 23 MESES
A8: NÚMERO DE NIÑOS VACUNADOS CON SRP 1 DE 12 A 23 MESES
A9: NÚMERO DE NIÑOS VACUNADOS CON SRP DE 2 A 4 AÑOS (ESQUEMA TARDIO)
A11: Observación :Cuando la fila de niños vacunados es mayor que la población meta, al calcular el número de niños no vacunados es igual a la población meta de12 a 23 meses menos los vacunados , si el número es negativo simplemente pone cero, no tiene niños no vacunados.
A13: 2. Pestaña de lista de consolidado susceptibles
A15: En esta pestaña usted encontrará en el lado superior izquierdo un botón que dice Agregar Registro, dele enter y le aparecerá un tablero de datos para cálculo de susceptibles de SRP, por una cohorte de años del 2015 al 2020, proceda a:
A17: ü Ingrese el nombre del establecimiento de salud, red,municipio, según sea el caso
A19: ü Seleccionar el año a partir del año que realizo su última CVS, en el caso de Honduras será el 2016, ya que su última CVS la realizó en 2016
A21: ü Ingrese por cada año la siguiente información
A23: POBLACIÓN DE 12 A 23 MESES
A24: NÚMERO DE NIÑOS VACUNADOS CON SRP 1 DE 12 A 23 MESES
A25: NÚMERO DE NIÑOS VACUNADOS CON SRP1 DE 2 A 4 AÑOS (ESQUEMA TARDÍO)
A27: Hasta completar la cohorte de años, en este caso, 2016, 2017, 2018, 2019 y año 2020
A29: ü En el lado inferior izquierdo del tablero encontrara 3 botones, así:
A31: ü Agregar Registro: Una vez completada la información por cada año de la cohorte definida, le dará enter a este botón y automáticamente lo guardará en el listado y calculara las variables de:
A33: ü % DE COBERTURA TOTAL DE VACUNADOS
A35: ü NÚMERO DE NIÑOS NO VACUNADOS CON SRP
A37: ü VACUNADOS Y NO INMUNIZADOS (10% DE LOS VACUNADOS)
A39: ü TOTAL DE SUSCEPTIBLES
A41: ü % DE SUSCEPTIBLES POR COHORTE ANUAL
A43: Limpiar: este botón le permitirá ingresar la información siguiente según gestión, recordándole que por municipio deberá siempre utilizar al final el botón agregar información, así sucesivamente hasta completar el 100% de los establecimientos de salud del municipio, el total de municipios, de la red o región sanitaria.
A45: Cancelar, utilizar este botón una vez haya finalizado y proceda a cerrar el tablero
A47: El mismo procedimiento utilizar si quiere conocer la cohorte de susceptibles para SRP2.
A49: Para el cálculo de susceptibles de Polio, puede utilizar el mismo formato, solo elimine la columna de % de vacunados y no inmunizados

Sheet Susceptibles _ (hidden)
B6: CÁLCULO DE SUSCEPTIBLES POR ESTABLECIMIENTO, RED, MUNICIPIO Y REGION SANITARIA
B7: CAMPAÑA DE VACUNACIÓN DE SEGUIMIENTO DE POLIO, SARAMPIÓN RUBEOLA DE ALTA CALIDAD (CVS)
B11: NOMBRE DE LA MUNICIPIO/REGIÓN SANITARIA: Municipio 1 | C11: POBLACIÓN DE 1 A 5 AÑOS | J11: RIESGO | K11: % DE SUSCEPTIBLES
B12: NOMBRE DEL ESTABLECIMIENTO DE SALUD: | C12: 5 | D12: 4 | E12: 3 | F12: 2 | G12: 1 | H12: TOTAL | J12: ALTO | K12: 90-100%
B13: VARIABLES/AÑOS | C13: 2016 | D13: 2017 | E13: 2018 | F13: 2019 | G13: 2020 | J13: MEDIO | K13: 50-89
B14: POBLACIÓN DE 12 A 23 MESES | C14: ='1. Lista Consolidado Susceptibl'!$N$558 -> 0 | D14: ='1. Lista Consolidado Susceptibl'!$W$558 -> 0 | E14: ='1. Lista Consolidado Susceptibl'!$AF$558 -> 0 | F14: ='1. Lista Consolidado Susceptibl'!$AO$558 -> 0 | G14: ='1. Lista Consolidado Susceptibl'!$AX$558 -> 0 | H14: =SUM(C14:G14) -> 0 | J14: BAJO | K14: <50
B15: NÚMERO DE NIÑOS VACUNADOS CON SRP 1 DE 12 A 23 MESES | C15: ='1. Lista Consolidado Susceptibl'!$O$558 -> 0 | D15: ='1. Lista Consolidado Susceptibl'!$X$558 -> 0 | E15: ='1. Lista Consolidado Susceptibl'!$AG$558 -> 0 | F15: ='1. Lista Consolidado Susceptibl'!$AP$558 -> 0 | G15: ='1. Lista Consolidado Susceptibl'!$AY$558 -> 0 | H15: =SUM(C15:G15) -> 0
B16: % DE COBERTURA | C16: =IFERROR(C15/C14,"") -> 
B17: NÚMERO DE NIÑOS VACUNADOS CON SRP DE 2 A 4 AÑOS (ESQUEMA TARDIO) | C17: ='1. Lista Consolidado Susceptibl'!$Q$558 -> 0 | D17: ='1. Lista Consolidado Susceptibl'!$Z$558 -> 0 | E17: ='1. Lista Consolidado Susceptibl'!$AI$558 -> 0 | F17: ='1. Lista Consolidado Susceptibl'!$AR$558 -> 0 | G17: ='1. Lista Consolidado Susceptibl'!$BA$558 -> 0 | H17: =SUM(C17:G17) -> 0
B18: TOTAL DE NIÑOS VACUNADOS | C18: =+C15+C17 -> 0 | D18: 0 | E18: 0 | F18: 0 | G18: 0 | H18: 0
B19: NÚMERO DE NIÑOS NO VACUNADOS CON SRP | C19: =+C14-C18 -> 0 | D19: 0 | E19: 0 | F19: 0 | G19: 0 | H19: 0
B20: VACUNADOS Y NO INMUNIZADOS (10% DE LOS VACUNADOS) | C20: =+C18*0.1 -> 0 | D20: 0 | E20: 0 | F20: 0 | G20: 0 | H20: 0
B21: TOTAL DE SUSCEPTIBLES | C21: =+C19+C20 -> 0 | D21: 0 | E21: 0 | F21: 0 | G21: 0 | H21: 0
B22: % DE SUSCEPTIBLES POR COHORTE ANUAL | C22: =IFERROR(C21/C14,"") -> 

Sheet 1. Lista Consolidado Susceptibl
A1: CÁLCULO DE SUSCEPTIBLES POR ESTABLECIMIENTO Y MUNICIPIO
A2: anexo 2.
A6: No. | E6: 2015 (6 AÑOS) | N6: 2016 (5 AÑOS) | W6: 2017 (4 AÑOS) | AF6: 2018 (3 AÑOS) | AO6: 2019 (2AÑOS) | AX6: 2020 (1 AÑO)
B7: ESTADO/PROVINCIA/REGION | C7: MUNICIPIO/DISTRITO/JURIDICCION | D7: ESTABLECIMIENTO DE SALUD | E7: POBLACIÓN 12 A 23 MESES | F7: VACUNADOS CON SRP 1a DOSIS | G7: % DE COBERTURA | H7: VACUNADOS CON SRP1 2 A 4 AÑOS (ESQUEMA TARDIO) | I7: TOTAL DE VACUNADOS | J7: NÚMERO DE NIÑOS NO VACUNADOS CON SRP | K7: VACUNADOS Y NO INMUNIZADOS (10% DE LOS VACUNADOS) | L7: TOTAL DE SUSCEPTIBLES | M7: % DE SUSCEPTIBLES POR COHORTE ANUAL | N7: POBLACIÓN 12 A 23 MESES | O7: VACUNADOS CON SRP 1a DOSIS | P7: % DE COBERTURA | Q7: VACUNADOS CON SRP1 2 A 4 AÑOS (ESQUEMA TARDIO) | R7: TOTAL DE VACUNADOS | S7: NÚMERO DE NIÑOS NO VACUNADOS CON SRP | T7: VACUNADOS Y NO INMUNIZADOS (10% DE LOS VACUNADOS) | U7: TOTAL DE SUSCEPTIBLES | V7: % DE SUSCEPTIBLES POR COHORTE ANUAL | W7: POBLACIÓN 12 A 23 MESES | X7: VACUNADOS CON SRP 1a DOSIS | Y7: % DE COBERTURA | Z7: VACUNADOS CON SRP1 2 A 4 AÑOS (ESQUEMA TARDIO ) | AA7: TOTAL DE VACUNADOS | AB7: NÚMERO DE NIÑOS NO VACUNADOS CON SRP | AC7: VACUNADOS Y NO INMUNIZADOS (10% DE LOS VACUNADOS) | AD7: TOTAL DE SUSCEPTIBLES | AE7: % DE SUSCEPTIBLES POR COHORTE ANUAL | AF7: POBLACIÓN 12 A 23 MESES | AG7: VACUNADOS CON SRP 1a DOSIS | AH7: % DE COBERTURA | AI7: VACUNADOS CON SRP1 2 A 4 AÑOS (ESQUEMA TARDIO ) | AJ7: TOTAL DE VACUNADOS | AK7: NÚMERO DE NIÑOS NO VACUNADOS CON SRP | AL7: VACUNADOS Y NO INMUNIZADOS (10% DE LOS VACUNADOS) | AM7: TOTAL DE SUSCEPTIBLES | AN7: % DE SUSCEPTIBLES POR COHORTE ANUAL | AO7: POBLACIÓN 12 A 23 MESES | AP7: VACUNADOS CON SRP 1a DOSIS | AQ7: % DE COBERTURA | AR7: VACUNADOS CON SRP1 2 A 4 AÑOS (ESQUEMA TARDIO ) | AS7: TOTAL DE VACUNADOS | AT7: NÚMERO DE NIÑOS NO VACUNADOS CON SRP | AU7: VACUNADOS Y NO INMUNIZADOS (10% DE LOS VACUNADOS) | AV7: TOTAL DE SUSCEPTIBLES | AW7: % DE SUSCEPTIBLES POR COHORTE ANUAL | AX7: POBLACIÓN 12 A 23 MESES | AY7: VACUNADOS CON SRP 1a DOSIS | AZ7: % DE COBERTURA | BA7: VACUNADOS CON SRP1 2 A 4 AÑOS (ESQUEMA TARDIO ) | BB7: TOTAL DE VACUNADOS | BC7: NÚMERO DE NIÑOS NO VACUNADOS CON SRP | BD7: VACUNADOS Y NO INMUNIZADOS (10% DE LOS VACUNADOS) | BE7: TOTAL DE SUSCEPTIBLES | BF7: % DE SUSCEPTIBLES POR COHORTE ANUAL | BG7: TOTAL DE POBLACION 1 A 5 AÑOS | BH7: TOTAL DE POBLACION SUSCEPTIBLES | BI7: % TOTAL DE SUSCEPTIBLES | BJ7: COHORTE DE NACIMIENTO DEL AÑO ACTUAL
A8: 1 | G8: =IFERROR(F8/E8,"") ->  | I8: =+F8+H8 -> 0 | J8: =+E8-I8 -> 0 | K8: =+I8*0.1 -> 0 | L8: =+J8+K8 -> 0 | M8: =IFERROR(+L8/E8,"") ->  | P8: =IFERROR(O8/N8,"") ->  | R8: =+O8+Q8 -> 0 | S8: =+N8-R8 -> 0 | T8: =+R8*0.1 -> 0 | U8: =+S8+T8 -> 0 | V8: =IFERROR(+U8/N8,"") ->  | Y8: =IFERROR(X8/W8,"") ->  | AA8: =+X8+Z8 -> 0 | AB8: =+W8-AA8 -> 0 | AC8: =+AA8*0.1 -> 0 | AD8: =+AB8+AC8 -> 0 | AE8: =IFERROR(+AD8/W8,"") ->  | AH8: =IFERROR(AG8/AF8,"") ->  | AJ8: =+AG8+AI8 -> 0 | AK8: =+AF8-AJ8 -> 0 | AL8: =+AJ8*0.1 -> 0 | AM8: =+AK8+AL8 -> 0 | AN8: =IFERROR(+AM8/AF8,"") ->  | AQ8: =IFERROR(AP8/AO8,"") ->  | AS8: =+AP8+AR8 -> 0 | AT8: =+AO8-AS8 -> 0 | AU8: =+AS8*0.1 -> 0 | AV8: =+AT8+AU8 -> 0 | AW8: =IFERROR(+AV8/AO8,"") ->  | AZ8: =IFERROR(AY8/AX8,"") ->  | BB8: =+AY8+BA8 -> 0 | BC8: =+AX8-BB8 -> 0 | BD8: =+BB8*0.1 -> 0 | BE8: =+BC8+BD8 -> 0 | BF8: =IFERROR(+BE8/AX8,"") ->  | BG8: =+W8+AF8+AO8+AX8 -> 0 | BH8: =U8+AD8+AM8+AV8+BE8 -> 0 | BI8: =IFERROR(BH8/BJ8,"") -> 
A9: 2 | G9: =IFERROR(F9/E9,"") ->  | I9: =+F9+H9 -> 0 | J9: =+E9-I9 -> 0 | K9: =+I9*0.1 -> 0 | L9: =+J9+K9 -> 0 | M9: =IFERROR(+L9/E9,"") ->  | P9: =IFERROR(O9/N9,"") ->  | R9: =+O9+Q9 -> 0 | S9: =+N9-R9 -> 0 | T9: =+R9*0.1 -> 0 | U9: =+S9+T9 -> 0 | V9: =IFERROR(+U9/N9,"") ->  | Y9: =IFERROR(X9/W9,"") ->  | AA9: =+X9+Z9 -> 0 | AB9: =+W9-AA9 -> 0 | AC9: =+AA9*0.1 -> 0 | AD9: =+AB9+AC9 -> 0 | AE9: =IFERROR(+AD9/W9,"") ->  | AH9: =IFERROR(AG9/AF9,"") ->  | AJ9: =+AG9+AI9 -> 0 | AK9: =+AF9-AJ9 -> 0 | AL9: =+AJ9*0.1 -> 0 | AM9: =+AK9+AL9 -> 0 | AN9: =IFERROR(+AM9/AF9,"") ->  | AQ9: =IFERROR(AP9/AO9,"") ->  | AS9: =+AP9+AR9 -> 0 | AT9: =+AO9-AS9 -> 0 | AU9: =+AS9*0.1 -> 0 | AV9: =+AT9+AU9 -> 0 | AW9: =IFERROR(+AV9/AO9,"") ->  | AZ9: =IFERROR(AY9/AX9,"") ->  | BB9: =+AY9+BA9 -> 0 | BC9: =+AX9-BB9 -> 0 | BD9: =+BB9*0.1 -> 0 | BE9: =+BC9+BD9 -> 0 | BF9: =IFERROR(+BE9/AX9,"") ->  | BG9: =+W9+AF9+AO9+AX9 -> 0 | BH9: =U9+AD9+AM9+AV9+BE9 -> 0 | BI9: =IFERROR(BH9/BJ9,"") -> 
A10: 3 | I10: 0 | J10: 0 | K10: 0 | L10: 0 | R10: 0 | S10: 0 | T10: 0 | U10: 0 | AA10: 0 | AB10: 0 | AC10: 0 | AD10: 0 | AJ10: 0 | AK10: 0 | AL10: 0 | AM10: 0 | AS10: 0 | AT10: 0 | AU10: 0 | AV10: 0 | BB10: 0 | BC10: 0 | BD10: 0 | BE10: 0 | BG10: 0 | BH10: 0
A11: 4 | I11: 0 | J11: 0 | K11: 0 | L11: 0 | R11: 0 | S11: 0 | T11: 0 | U11: 0 | AA11: 0 | AB11: 0 | AC11: 0 | AD11: 0 | AJ11: 0 | AK11: 0 | AL11: 0 | AM11: 0 | AS11: 0 | AT11: 0 | AU11: 0 | AV11: 0 | BB11: 0 | BC11: 0 | BD11: 0 | BE11: 0 | BG11: 0 | BH11: 0
A12: 5 | I12: 0 | J12: 0 | K12: 0 | L12: 0 | R12: 0 | S12: 0 | T12: 0 | U12: 0 | AA12: 0 | AB12: 0 | AC12: 0 | AD12: 0 | AJ12: 0 | AK12: 0 | AL12: 0 | AM12: 0 | AS12: 0 | AT12: 0 | AU12: 0 | AV12: 0 | BB12: 0 | BC12: 0 | BD12: 0 | BE12: 0 | BG12: 0 | BH12: 0
A13: 6 | I13: 0 | J13: 0 | K13: 0 | L13: 0 | R13: 0 | S13: 0 | T13: 0 | U13: 0 | AA13: 0 | AB13: 0 | AC13: 0 | AD13: 0 | AJ13: 0 | AK13: 0 | AL13: 0 | AM13: 0 | AS13: 0 | AT13: 0 | AU13: 0 | AV13: 0 | BB13: 0 | BC13: 0 | BD13: 0 | BE13: 0 | BG13: 0 | BH13: 0
A14: 7 | I14: 0 | J14: 0 | K14: 0 | L14: 0 | R14: 0 | S14: 0 | T14: 0 | U14: 0 | AA14: 0 | AB14: 0 | AC14: 0 | AD14: 0 | AJ14: 0 | AK14: 0 | AL14: 0 | AM14: 0 | AS14: 0 | AT14: 0 | AU14: 0 | AV14: 0 | BB14: 0 | BC14: 0 | BD14: 0 | BE14: 0 | BG14: 0 | BH14: 0
A15: 8 | I15: 0 | J15: 0 | K15: 0 | L15: 0 | R15: 0 | S15: 0 | T15: 0 | U15: 0 | AA15: 0 | AB15: 0 | AC15: 0 | AD15: 0 | AJ15: 0 | AK15: 0 | AL15: 0 | AM15: 0 | AS15: 0 | AT15: 0 | AU15: 0 | AV15: 0 | BB15: 0 | BC15: 0 | BD15: 0 | BE15: 0 | BG15: 0 | BH15: 0
A16: 9 | I16: 0 | J16: 0 | K16: 0 | L16: 0 | R16: 0 | S16: 0 | T16: 0 | U16: 0 | AA16: 0 | AB16: 0 | AC16: 0 | AD16: 0 | AJ16: 0 | AK16: 0 | AL16: 0 | AM16: 0 | AS16: 0 | AT16: 0 | AU16: 0 | AV16: 0 | BB16: 0 | BC16: 0 | BD16: 0 | BE16: 0 | BG16: 0 | BH16: 0
A17: 10 | I17: 0 | J17: 0 | K17: 0 | L17: 0 | R17: 0 | S17: 0 | T17: 0 | U17: 0 | AA17: 0 | AB17: 0 | AC17: 0 | AD17: 0 | AJ17: 0 | AK17: 0 | AL17: 0 | AM17: 0 | AS17: 0 | AT17: 0 | AU17: 0 | AV17: 0 | BB17: 0 | BC17: 0 | BD17: 0 | BE17: 0 | BG17: 0 | BH17: 0
A18: 11 | I18: 0 | J18: 0 | K18: 0 | L18: 0 | R18: 0 | S18: 0 | T18: 0 | U18: 0 | AA18: 0 | AB18: 0 | AC18: 0 | AD18: 0 | AJ18: 0 | AK18: 0 | AL18: 0 | AM18: 0 | AS18: 0 | AT18: 0 | AU18: 0 | AV18: 0 | BB18: 0 | BC18: 0 | BD18: 0 | BE18: 0 | BG18: 0 | BH18: 0
A19: 12 | I19: 0 | J19: 0 | K19: 0 | L19: 0 | R19: 0 | S19: 0 | T19: 0 | U19: 0 | AA19: 0 | AB19: 0 | AC19: 0 | AD19: 0 | AJ19: 0 | AK19: 0 | AL19: 0 | AM19: 0 | AS19: 0 | AT19: 0 | AU19: 0 | AV19: 0 | BB19: 0 | BC19: 0 | BD19: 0 | BE19: 0 | BG19: 0 | BH19: 0
A20: 13 | I20: 0 | J20: 0 | K20: 0 | L20: 0 | R20: 0 | S20: 0 | T20: 0 | U20: 0 | AA20: 0 | AB20: 0 | AC20: 0 | AD20: 0 | AJ20: 0 | AK20: 0 | AL20: 0 | AM20: 0 | AS20: 0 | AT20: 0 | AU20: 0 | AV20: 0 | BB20: 0 | BC20: 0 | BD20: 0 | BE20: 0 | BG20: 0 | BH20: 0
A21: 14 | I21: 0 | J21: 0 | K21: 0 | L21: 0 | R21: 0 | S21: 0 | T21: 0 | U21: 0 | AA21: 0 | AB21: 0 | AC21: 0 | AD21: 0 | AJ21: 0 | AK21: 0 | AL21: 0 | AM21: 0 | AS21: 0 | AT21: 0 | AU21: 0 | AV21: 0 | BB21: 0 | BC21: 0 | BD21: 0 | BE21: 0 | BG21: 0 | BH21: 0
A22: 15 | I22: 0 | J22: 0 | K22: 0 | L22: 0 | R22: 0 | S22: 0 | T22: 0 | U22: 0 | AA22: 0 | AB22: 0 | AC22: 0 | AD22: 0 | AJ22: 0 | AK22: 0 | AL22: 0 | AM22: 0 | AS22: 0 | AT22: 0 | AU22: 0 | AV22: 0 | BB22: 0 | BC22: 0 | BD22: 0 | BE22: 0 | BG22: 0 | BH22: 0
A23: 16 | I23: 0 | J23: 0 | K23: 0 | L23: 0 | R23: 0 | S23: 0 | T23: 0 | U23: 0 | AA23: 0 | AB23: 0 | AC23: 0 | AD23: 0 | AJ23: 0 | AK23: 0 | AL23: 0 | AM23: 0 | AS23: 0 | AT23: 0 | AU23: 0 | AV23: 0 | BB23: 0 | BC23: 0 | BD23: 0 | BE23: 0 | BG23: 0 | BH23: 0
A24: 17 | I24: 0 | J24: 0 | K24: 0 | L24: 0 | R24: 0 | S24: 0 | T24: 0 | U24: 0 | AA24: 0 | AB24: 0 | AC24: 0 | AD24: 0 | AJ24: 0 | AK24: 0 | AL24: 0 | AM24: 0 | AS24: 0 | AT24: 0 | AU24: 0 | AV24: 0 | BB24: 0 | BC24: 0 | BD24: 0 | BE24: 0 | BG24: 0 | BH24: 0
A25: 18 | I25: 0 | J25: 0 | K25: 0 | L25: 0 | R25: 0 | S25: 0 | T25: 0 | U25: 0 | AA25: 0 | AB25: 0 | AC25: 0 | AD25: 0 | AJ25: 0 | AK25: 0 | AL25: 0 | AM25: 0 | AS25: 0 | AT25: 0 | AU25: 0 | AV25: 0 | BB25: 0 | BC25: 0 | BD25: 0 | BE25: 0 | BG25: 0 | BH25: 0
A26: 19 | I26: 0 | J26: 0 | K26: 0 | L26: 0 | R26: 0 | S26: 0 | T26: 0 | U26: 0 | AA26: 0 | AB26: 0 | AC26: 0 | AD26: 0 | AJ26: 0 | AK26: 0 | AL26: 0 | AM26: 0 | AS26: 0 | AT26: 0 | AU26: 0 | AV26: 0 | BB26: 0 | BC26: 0 | BD26: 0 | BE26: 0 | BG26: 0 | BH26: 0
A27: 20 | I27: 0 | J27: 0 | K27: 0 | L27: 0 | R27: 0 | S27: 0 | T27: 0 | U27: 0 | AA27: 0 | AB27: 0 | AC27: 0 | AD27: 0 | AJ27: 0 | AK27: 0 | AL27: 0 | AM27: 0 | AS27: 0 | AT27: 0 | AU27: 0 | AV27: 0 | BB27: 0 | BC27: 0 | BD27: 0 | BE27: 0 | BG27: 0 | BH27: 0
A28: 21 | I28: 0 | J28: 0 | K28: 0 | L28: 0 | P28: =IFERROR(O28/N28,"") ->  | R28: =+O28+Q28 -> 0 | S28: =+N28-R28 -> 0 | T28: =+R28*0.1 -> 0 | U28: =+S28+T28 -> 0 | V28: =IFERROR(+U28/N28,"") ->  | Y28: =IFERROR(X28/W28,"") ->  | AA28: =+X28+Z28 -> 0 | AB28: =+W28-AA28 -> 0 | AC28: =+AA28*0.1 -> 0 | AD28: =+AB28+AC28 -> 0 | AE28: =IFERROR(+AD28/W28,"") ->  | AH28: =IFERROR(AG28/AF28,"") ->  | AJ28: =+AG28+AI28 -> 0 | AK28: =+AF28-AJ28 -> 0 | AL28: =+AJ28*0.1 -> 0 | AM28: =+AK28+AL28 -> 0 | AN28: =IFERROR(+AM28/AF28,"") ->  | AQ28: =IFERROR(AP28/AO28,"") ->  | AS28: =+AP28+AR28 -> 0 | AT28: =+AO28-AS28 -> 0 | AU28: =+AS28*0.1 -> 0 | AV28: =+AT28+AU28 -> 0 | AW28: =IFERROR(+AV28/AO28,"") ->  | AZ28: =IFERROR(AY28/AX28,"") ->  | BB28: =+AY28+BA28 -> 0 | BC28: =+AX28-BB28 -> 0 | BD28: =+BB28*0.1 -> 0 | BE28: =+BC28+BD28 -> 0 | BF28: =IFERROR(+BE28/AX28,"") ->  | BG28: =+W28+AF28+AO28+AX28 -> 0 | BH28: =U28+AD28+AM28+AV28+BE28 -> 0 | BI28: =IFERROR(BH28/BJ28,"") -> 
A29: 22 | I29: 0 | J29: 0 | K29: 0 | L29: 0 | R29: 0 | S29: 0 | T29: 0 | U29: 0 | AA29: 0 | AB29: 0 | AC29: 0 | AD29: 0 | AJ29: 0 | AK29: 0 | AL29: 0 | AM29: 0 | AS29: 0 | AT29: 0 | AU29: 0 | AV29: 0 | BB29: 0 | BC29: 0 | BD29: 0 | BE29: 0 | BG29: 0 | BH29: 0
A30: 23 | I30: 0 | J30: 0 | K30: 0 | L30: 0 | R30: 0 | S30: 0 | T30: 0 | U30: 0 | AA30: 0 | AB30: 0 | AC30: 0 | AD30: 0 | AJ30: 0 | AK30: 0 | AL30: 0 | AM30: 0 | AS30: 0 | AT30: 0 | AU30: 0 | AV30: 0 | BB30: 0 | BC30: 0 | BD30: 0 | BE30: 0 | BG30: 0 | BH30: 0
A31: 24 | I31: 0 | J31: 0 | K31: 0 | L31: 0 | R31: 0 | S31: 0 | T31: 0 | U31: 0 | AA31: 0 | AB31: 0 | AC31: 0 | AD31: 0 | AJ31: 0 | AK31: 0 | AL31: 0 | AM31: 0 | AS31: 0 | AT31: 0 | AU31: 0 | AV31: 0 | BB31: 0 | BC31: 0 | BD31: 0 | BE31: 0 | BG31: 0 | BH31: 0
A32: 25 | I32: 0 | J32: 0 | K32: 0 | L32: 0 | R32: 0 | S32: 0 | T32: 0 | U32: 0 | AA32: 0 | AB32: 0 | AC32: 0 | AD32: 0 | AJ32: 0 | AK32: 0 | AL32: 0 | AM32: 0 | AS32: 0 | AT32: 0 | AU32: 0 | AV32: 0 | BB32: 0 | BC32: 0 | BD32: 0 | BE32: 0 | BG32: 0 | BH32: 0
A33: 26 | I33: 0 | J33: 0 | K33: 0 | L33: 0 | R33: 0 | S33: 0 | T33: 0 | U33: 0 | AA33: 0 | AB33: 0 | AC33: 0 | AD33: 0 | AJ33: 0 | AK33: 0 | AL33: 0 | AM33: 0 | AS33: 0 | AT33: 0 | AU33: 0 | AV33: 0 | BB33: 0 | BC33: 0 | BD33: 0 | BE33: 0 | BG33: 0 | BH33: 0
A34: 27 | I34: 0 | J34: 0 | K34: 0 | L34: 0 | R34: 0 | S34: 0 | T34: 0 | U34: 0 | AA34: 0 | AB34: 0 | AC34: 0 | AD34: 0 | AJ34: 0 | AK34: 0 | AL34: 0 | AM34: 0 | AS34: 0 | AT34: 0 | AU34: 0 | AV34: 0 | BB34: 0 | BC34: 0 | BD34: 0 | BE34: 0 | BG34: 0 | BH34: 0
A35: 28 | I35: 0 | J35: 0 | K35: 0 | L35: 0 | R35: 0 | S35: 0 | T35: 0 | U35: 0 | AA35: 0 | AB35: 0 | AC35: 0 | AD35: 0 | AJ35: 0 | AK35: 0 | AL35: 0 | AM35: 0 | AS35: 0 | AT35: 0 | AU35: 0 | AV35: 0 | BB35: 0 | BC35: 0 | BD35: 0 | BE35: 0 | BG35: 0 | BH35: 0
A36: 29 | I36: 0 | J36: 0 | K36: 0 | L36: 0 | R36: 0 | S36: 0 | T36: 0 | U36: 0 | AA36: 0 | AB36: 0 | AC36: 0 | AD36: 0 | AJ36: 0 | AK36: 0 | AL36: 0 | AM36: 0 | AS36: 0 | AT36: 0 | AU36: 0 | AV36: 0 | BB36: 0 | BC36: 0 | BD36: 0 | BE36: 0 | BG36: 0 | BH36: 0
A37: 30 | I37: 0 | J37: 0 | K37: 0 | L37: 0 | R37: 0 | S37: 0 | T37: 0 | U37: 0 | AA37: 0 | AB37: 0 | AC37: 0 | AD37: 0 | AJ37: 0 | AK37: 0 | AL37: 0 | AM37: 0 | AS37: 0 | AT37: 0 | AU37: 0 | AV37: 0 | BB37: 0 | BC37: 0 | BD37: 0 | BE37: 0 | BG37: 0 | BH37: 0
A38: 31 | I38: 0 | J38: 0 | K38: 0 | L38: 0 | R38: 0 | S38: 0 | T38: 0 | U38: 0 | AA38: 0 | AB38: 0 | AC38: 0 | AD38: 0 | AJ38: 0 | AK38: 0 | AL38: 0 | AM38: 0 | AS38: 0 | AT38: 0 | AU38: 0 | AV38: 0 | BB38: 0 | BC38: 0 | BD38: 0 | BE38: 0 | BG38: 0 | BH38: 0
A39: 32 | I39: 0 | J39: 0 | K39: 0 | L39: 0 | R39: 0 | S39: 0 | T39: 0 | U39: 0 | AA39: 0 | AB39: 0 | AC39: 0 | AD39: 0 | AJ39: 0 | AK39: 0 | AL39: 0 | AM39: 0 | AS39: 0 | AT39: 0 | AU39: 0 | AV39: 0 | BB39: 0 | BC39: 0 | BD39: 0 | BE39: 0 | BG39: 0 | BH39: 0
A40: 33 | I40: 0 | J40: 0 | K40: 0 | L40: 0 | R40: 0 | S40: 0 | T40: 0 | U40: 0 | AA40: 0 | AB40: 0 | AC40: 0 | AD40: 0 | AJ40: 0 | AK40: 0 | AL40: 0 | AM40: 0 | AS40: 0 | AT40: 0 | AU40: 0 | AV40: 0 | BB40: 0 | BC40: 0 | BD40: 0 | BE40: 0 | BG40: 0 | BH40: 0
A41: 34 | I41: 0 | J41: 0 | K41: 0 | L41: 0 | R41: 0 | S41: 0 | T41: 0 | U41: 0 | AA41: 0 | AB41: 0 | AC41: 0 | AD41: 0 | AJ41: 0 | AK41: 0 | AL41: 0 | AM41: 0 | AS41: 0 | AT41: 0 | AU41: 0 | AV41: 0 | BB41: 0 | BC41: 0 | BD41: 0 | BE41: 0 | BG41: 0 | BH41: 0
A42: 35 | I42: 0 | J42: 0 | K42: 0 | L42: 0 | R42: 0 | S42: 0 | T42: 0 | U42: 0 | AA42: 0 | AB42: 0 | AC42: 0 | AD42: 0 | AJ42: 0 | AK42: 0 | AL42: 0 | AM42: 0 | AS42: 0 | AT42: 0 | AU42: 0 | AV42: 0 | BB42: 0 | BC42: 0 | BD42: 0 | BE42: 0 | BG42: 0 | BH42: 0
A43: 36 | I43: 0 | J43: 0 | K43: 0 | L43: 0 | R43: 0 | S43: 0 | T43: 0 | U43: 0 | AA43: 0 | AB43: 0 | AC43: 0 | AD43: 0 | AJ43: 0 | AK43: 0 | AL43: 0 | AM43: 0 | AS43: 0 | AT43: 0 | AU43: 0 | AV43: 0 | BB43: 0 | BC43: 0 | BD43: 0 | BE43: 0 | BG43: 0 | BH43: 0
A44: 37 | I44: 0 | J44: 0 | K44: 0 | L44: 0 | R44: 0 | S44: 0 | T44: 0 | U44: 0 | AA44: 0 | AB44: 0 | AC44: 0 | AD44: 0 | AJ44: 0 | AK44: 0 | AL44: 0 | AM44: 0 | AS44: 0 | AT44: 0 | AU44: 0 | AV44: 0 | BB44: 0 | BC44: 0 | BD44: 0 | BE44: 0 | BG44: 0 | BH44: 0
A45: 38 | I45: 0 | J45: 0 | K45: 0 | L45: 0 | R45: 0 | S45: 0 | T45: 0 | U45: 0 | AA45: 0 | AB45: 0 | AC45: 0 | AD45: 0 | AJ45: 0 | AK45: 0 | AL45: 0 | AM45: 0 | AS45: 0 | AT45: 0 | AU45: 0 | AV45: 0 | BB45: 0 | BC45: 0 | BD45: 0 | BE45: 0 | BG45: 0 | BH45: 0
A46: 39 | I46: 0 | J46: 0 | K46: 0 | L46: 0 | R46: 0 | S46: 0 | T46: 0 | U46: 0 | AA46: 0 | AB46: 0 | AC46: 0 | AD46: 0 | AJ46: 0 | AK46: 0 | AL46: 0 | AM46: 0 | AS46: 0 | AT46: 0 | AU46: 0 | AV46: 0 | BB46: 0 | BC46: 0 | BD46: 0 | BE46: 0 | BG46: 0 | BH46: 0
A47: 40 | I47: 0 | J47: 0 | K47: 0 | L47: 0 | R47: 0 | S47: 0 | T47: 0 | U47: 0 | AA47: 0 | AB47: 0 | AC47: 0 | AD47: 0 | AJ47: 0 | AK47: 0 | AL47: 0 | AM47: 0 | AS47: 0 | AT47: 0 | AU47: 0 | AV47: 0 | BB47: 0 | BC47: 0 | BD47: 0 | BE47: 0 | BG47: 0 | BH47: 0
A48: 41 | I48: 0 | J48: 0 | K48: 0 | L48: 0 | R48: 0 | S48: 0 | T48: 0 | U48: 0 | AA48: 0 | AB48: 0 | AC48: 0 | AD48: 0 | AJ48: 0 | AK48: 0 | AL48: 0 | AM48: 0 | AS48: 0 | AT48: 0 | AU48: 0 | AV48: 0 | BB48: 0 | BC48: 0 | BD48: 0 | BE48: 0 | BG48: 0 | BH48: 0
A49: 42 | I49: 0 | J49: 0 | K49: 0 | L49: 0 | R49: 0 | S49: 0 | T49: 0 | U49: 0 | AA49: 0 | AB49: 0 | AC49: 0 | AD49: 0 | AJ49: 0 | AK49: 0 | AL49: 0 | AM49: 0 | AS49: 0 | AT49: 0 | AU49: 0 | AV49: 0 | BB49: 0 | BC49: 0 | BD49: 0 | BE49: 0 | BG49: 0 | BH49: 0
A50: 43 | I50: 0 | J50: 0 | K50: 0 | L50: 0 | R50: 0 | S50: 0 | T50: 0 | U50: 0 | AA50: 0 | AB50: 0 | AC50: 0 | AD50: 0 | AJ50: 0 | AK50: 0 | AL50: 0 | AM50: 0 | AS50: 0 | AT50: 0 | AU50: 0 | AV50: 0 | BB50: 0 | BC50: 0 | BD50: 0 | BE50: 0 | BG50: 0 | BH50: 0
A51: 44 | I51: 0 | J51: 0 | K51: 0 | L51: 0 | R51: 0 | S51: 0 | T51: 0 | U51: 0 | AA51: 0 | AB51: 0 | AC51: 0 | AD51: 0 | AJ51: 0 | AK51: 0 | AL51: 0 | AM51: 0 | AS51: 0 | AT51: 0 | AU51: 0 | AV51: 0 | BB51: 0 | BC51: 0 | BD51: 0 | BE51: 0 | BG51: 0 | BH51: 0
A52: 45 | I52: 0 | J52: 0 | K52: 0 | L52: 0 | R52: 0 | S52: 0 | T52: 0 | U52: 0 | AA52: 0 | AB52: 0 | AC52: 0 | AD52: 0 | AJ52: 0 | AK52: 0 | AL52: 0 | AM52: 0 | AS52: 0 | AT52: 0 | AU52: 0 | AV52: 0 | BB52: 0 | BC52: 0 | BD52: 0 | BE52: 0 | BG52: 0 | BH52: 0
A53: 46 | I53: 0 | J53: 0 | K53: 0 | L53: 0 | R53: 0 | S53: 0 | T53: 0 | U53: 0 | AA53: 0 | AB53: 0 | AC53: 0 | AD53: 0 | AJ53: 0 | AK53: 0 | AL53: 0 | AM53: 0 | AS53: 0 | AT53: 0 | AU53: 0 | AV53: 0 | BB53: 0 | BC53: 0 | BD53: 0 | BE53: 0 | BG53: 0 | BH53: 0
A54: 47 | I54: 0 | J54: 0 | K54: 0 | L54: 0 | R54: 0 | S54: 0 | T54: 0 | U54: 0 | AA54: 0 | AB54: 0 | AC54: 0 | AD54: 0 | AJ54: 0 | AK54: 0 | AL54: 0 | AM54: 0 | AS54: 0 | AT54: 0 | AU54: 0 | AV54: 0 | BB54: 0 | BC54: 0 | BD54: 0 | BE54: 0 | BG54: 0 | BH54: 0
A55: 48 | I55: 0 | J55: 0 | K55: 0 | L55: 0 | R55: 0 | S55: 0 | T55: 0 | U55: 0 | AA55: 0 | AB55: 0 | AC55: 0 | AD55: 0 | AJ55: 0 | AK55: 0 | AL55: 0 | AM55: 0 | AS55: 0 | AT55: 0 | AU55: 0 | AV55: 0 | BB55: 0 | BC55: 0 | BD55: 0 | BE55: 0 | BG55: 0 | BH55: 0
A56: 49 | I56: 0 | J56: 0 | K56: 0 | L56: 0 | R56: 0 | S56: 0 | T56: 0 | U56: 0 | AA56: 0 | AB56: 0 | AC56: 0 | AD56: 0 | AJ56: 0 | AK56: 0 | AL56: 0 | AM56: 0 | AS56: 0 | AT56: 0 | AU56: 0 | AV56: 0 | BB56: 0 | BC56: 0 | BD56: 0 | BE56: 0 | BG56: 0 | BH56: 0
A57: 50 | I57: 0 | J57: 0 | K57: 0 | L57: 0 | R57: 0 | S57: 0 | T57: 0 | U57: 0 | AA57: 0 | AB57: 0 | AC57: 0 | AD57: 0 | AJ57: 0 | AK57: 0 | AL57: 0 | AM57: 0 | AS57: 0 | AT57: 0 | AU57: 0 | AV57: 0 | BB57: 0 | BC57: 0 | BD57: 0 | BE57: 0 | BG57: 0 | BH57: 0
A58: 51 | I58: 0 | J58: 0 | K58: 0 | L58: 0 | R58: 0 | S58: 0 | T58: 0 | U58: 0 | AA58: 0 | AB58: 0 | AC58: 0 | AD58: 0 | AJ58: 0 | AK58: 0 | AL58: 0 | AM58: 0 | AS58: 0 | AT58: 0 | AU58: 0 | AV58: 0 | BB58: 0 | BC58: 0 | BD58: 0 | BE58: 0 | BG58: 0 | BH58: 0
A59: 52 | I59: 0 | J59: 0 | K59: 0 | L59: 0 | R59: 0 | S59: 0 | T59: 0 | U59: 0 | AA59: 0 | AB59: 0 | AC59: 0 | AD59: 0 | AJ59: 0 | AK59: 0 | AL59: 0 | AM59: 0 | AS59: 0 | AT59: 0 | AU59: 0 | AV59: 0 | BB59: 0 | BC59: 0 | BD59: 0 | BE59: 0 | BG59: 0 | BH59: 0
A60: 53 | I60: 0 | J60: 0 | K60: 0 | L60: 0 | R60: 0 | S60: 0 | T60: 0 | U60: 0 | AA60: 0 | AB60: 0 | AC60: 0 | AD60: 0 | AJ60: 0 | AK60: 0 | AL60: 0 | AM60: 0 | AS60: 0 | AT60: 0 | AU60: 0 | AV60: 0 | BB60: 0 | BC60: 0 | BD60: 0 | BE60: 0 | BG60: 0 | BH60: 0
A61: 54 | I61: 0 | J61: 0 | K61: 0 | L61: 0 | R61: 0 | S61: 0 | T61: 0 | U61: 0 | AA61: 0 | AB61: 0 | AC61: 0 | AD61: 0 | AJ61: 0 | AK61: 0 | AL61: 0 | AM61: 0 | AS61: 0 | AT61: 0 | AU61: 0 | AV61: 0 | BB61: 0 | BC61: 0 | BD61: 0 | BE61: 0 | BG61: 0 | BH61: 0
A62: 55 | I62: 0 | J62: 0 | K62: 0 | L62: 0 | R62: 0 | S62: 0 | T62: 0 | U62: 0 | AA62: 0 | AB62: 0 | AC62: 0 | AD62: 0 | AJ62: 0 | AK62: 0 | AL62: 0 | AM62: 0 | AS62: 0 | AT62: 0 | AU62: 0 | AV62: 0 | BB62: 0 | BC62: 0 | BD62: 0 | BE62: 0 | BG62: 0 | BH62: 0
A63: 56 | I63: 0 | J63: 0 | K63: 0 | L63: 0 | R63: 0 | S63: 0 | T63: 0 | U63: 0 | AA63: 0 | AB63: 0 | AC63: 0 | AD63: 0 | AJ63: 0 | AK63: 0 | AL63: 0 | AM63: 0 | AS63: 0 | AT63: 0 | AU63: 0 | AV63: 0 | BB63: 0 | BC63: 0 | BD63: 0 | BE63: 0 | BG63: 0 | BH63: 0
A64: 57 | I64: 0 | J64: 0 | K64: 0 | L64: 0 | R64: 0 | S64: 0 | T64: 0 | U64: 0 | AA64: 0 | AB64: 0 | AC64: 0 | AD64: 0 | AJ64: 0 | AK64: 0 | AL64: 0 | AM64: 0 | AS64: 0 | AT64: 0 | AU64: 0 | AV64: 0 | BB64: 0 | BC64: 0 | BD64: 0 | BE64: 0 | BG64: 0 | BH64: 0
A65: 58 | I65: 0 | J65: 0 | K65: 0 | L65: 0 | R65: 0 | S65: 0 | T65: 0 | U65: 0 | AA65: 0 | AB65: 0 | AC65: 0 | AD65: 0 | AJ65: 0 | AK65: 0 | AL65: 0 | AM65: 0 | AS65: 0 | AT65: 0 | AU65: 0 | AV65: 0 | BB65: 0 | BC65: 0 | BD65: 0 | BE65: 0 | BG65: 0 | BH65: 0
A66: 59 | I66: 0 | J66: 0 | K66: 0 | L66: 0 | R66: 0 | S66: 0 | T66: 0 | U66: 0 | AA66: 0 | AB66: 0 | AC66: 0 | AD66: 0 | AJ66: 0 | AK66: 0 | AL66: 0 | AM66: 0 | AS66: 0 | AT66: 0 | AU66: 0 | AV66: 0 | BB66: 0 | BC66: 0 | BD66: 0 | BE66: 0 | BG66: 0 | BH66: 0
A67: 60 | I67: 0 | J67: 0 | K67: 0 | L67: 0 | R67: 0 | S67: 0 | T67: 0 | U67: 0 | AA67: 0 | AB67: 0 | AC67: 0 | AD67: 0 | AJ67: 0 | AK67: 0 | AL67: 0 | AM67: 0 | AS67: 0 | AT67: 0 | AU67: 0 | AV67: 0 | BB67: 0 | BC67: 0 | BD67: 0 | BE67: 0 | BG67: 0 | BH67: 0
A68: 61 | I68: 0 | J68: 0 | K68: 0 | L68: 0 | R68: 0 | S68: 0 | T68: 0 | U68: 0 | AA68: 0 | AB68: 0 | AC68: 0 | AD68: 0 | AJ68: 0 | AK68: 0 | AL68: 0 | AM68: 0 | AS68: 0 | AT68: 0 | AU68: 0 | AV68: 0 | BB68: 0 | BC68: 0 | BD68: 0 | BE68: 0 | BG68: 0 | BH68: 0
A69: 62 | I69: 0 | J69: 0 | K69: 0 | L69: 0 | R69: 0 | S69: 0 | T69: 0 | U69: 0 | AA69: 0 | AB69: 0 | AC69: 0 | AD69: 0 | AJ69: 0 | AK69: 0 | AL69: 0 | AM69: 0 | AS69: 0 | AT69: 0 | AU69: 0 | AV69: 0 | BB69: 0 | BC69: 0 | BD69: 0 | BE69: 0 | BG69: 0 | BH69: 0
A70: 63 | I70: 0 | J70: 0 | K70: 0 | L70: 0 | R70: 0 | S70: 0 | T70: 0 | U70: 0 | AA70: 0 | AB70: 0 | AC70: 0 | AD70: 0 | AJ70: 0 | AK70: 0 | AL70: 0 | AM70: 0 | AS70: 0 | AT70: 0 | AU70: 0 | AV70: 0 | BB70: 0 | BC70: 0 | BD70: 0 | BE70: 0 | BG70: 0 | BH70: 0
A71: 64 | I71: 0 | J71: 0 | K71: 0 | L71: 0 | R71: 0 | S71: 0 | T71: 0 | U71: 0 | AA71: 0 | AB71: 0 | AC71: 0 | AD71: 0 | AJ71: 0 | AK71: 0 | AL71: 0 | AM71: 0 | AS71: 0 | AT71: 0 | AU71: 0 | AV71: 0 | BB71: 0 | BC71: 0 | BD71: 0 | BE71: 0 | BG71: 0 | BH71: 0
A72: 65 | G72: =IFERROR(F72/E72,"") ->  | I72: =+F72+H72 -> 0 | J72: =+E72-I72 -> 0 | K72: =+I72*0.1 -> 0 | L72: =+J72+K72 -> 0 | M72: =IFERROR(+L72/E72,"") ->  | R72: 0 | S72: 0 | T72: 0 | U72: 0 | AA72: 0 | AB72: 0 | AC72: 0 | AD72: 0 | AJ72: 0 | AK72: 0 | AL72: 0 | AM72: 0 | AS72: 0 | AT72: 0 | AU72: 0 | AV72: 0 | BB72: 0 | BC72: 0 | BD72: 0 | BE72: 0 | BG72: 0 | BH72: 0
A73: 66 | I73: 0 | J73: 0 | K73: 0 | L73: 0 | P73: =IFERROR(O73/N73,"") ->  | R73: =+O73+Q73 -> 0 | S73: =+N73-R73 -> 0 | T73: =+R73*0.1 -> 0 | U73: =+S73+T73 -> 0 | V73: =IFERROR(+U73/N73,"") ->  | Y73: =IFERROR(X73/W73,"") ->  | AA73: =+X73+Z73 -> 0 | AB73: =+W73-AA73 -> 0 | AC73: =+AA73*0.1 -> 0 | AD73: =+AB73+AC73 -> 0 | AE73: =IFERROR(+AD73/W73,"") ->  | AH73: =IFERROR(AG73/AF73,"") ->  | AJ73: =+AG73+AI73 -> 0 | AK73: =+AF73-AJ73 -> 0 | AL73: =+AJ73*0.1 -> 0 | AM73: =+AK73+AL73 -> 0 | AN73: =IFERROR(+AM73/AF73,"") ->  | AQ73: =IFERROR(AP73/AO73,"") ->  | AS73: =+AP73+AR73 -> 0 | AT73: =+AO73-AS73 -> 0 | AU73: =+AS73*0.1 -> 0 | AV73: =+AT73+AU73 -> 0 | AW73: =IFERROR(+AV73/AO73,"") ->  | AZ73: =IFERROR(AY73/AX73,"") ->  | BB73: =+AY73+BA73 -> 0 | BC73: =+AX73-BB73 -> 0 | BD73: =+BB73*0.1 -> 0 | BE73: =+BC73+BD73 -> 0 | BF73: =IFERROR(+BE73/AX73,"") ->  | BG73: =+W73+AF73+AO73+AX73 -> 0 | BH73: =U73+AD73+AM73+AV73+BE73 -> 0 | BI73: =IFERROR(BH73/BJ73,"") -> 
A74: 67 | I74: 0 | J74: 0 | K74: 0 | L74: 0 | R74: 0 | S74: 0 | T74: 0 | U74: 0 | AA74: 0 | AB74: 0 | AC74: 0 | AD74: 0 | AJ74: 0 | AK74: 0 | AL74: 0 | AM74: 0 | AS74: 0 | AT74: 0 | AU74: 0 | AV74: 0 | BB74: 0 | BC74: 0 | BD74: 0 | BE74: 0 | BG74: 0 | BH74: 0
A75: 68 | I75: 0 | J75: 0 | K75: 0 | L75: 0 | R75: 0 | S75: 0 | T75: 0 | U75: 0 | AA75: 0 | AB75: 0 | AC75: 0 | AD75: 0 | AJ75: 0 | AK75: 0 | AL75: 0 | AM75: 0 | AS75: 0 | AT75: 0 | AU75: 0 | AV75: 0 | BB75: 0 | BC75: 0 | BD75: 0 | BE75: 0 | BG75: 0 | BH75: 0
A76: 69 | I76: 0 | J76: 0 | K76: 0 | L76: 0 | R76: 0 | S76: 0 | T76: 0 | U76: 0 | AA76: 0 | AB76: 0 | AC76: 0 | AD76: 0 | AJ76: 0 | AK76: 0 | AL76: 0 | AM76: 0 | AS76: 0 | AT76: 0 | AU76: 0 | AV76: 0 | BB76: 0 | BC76: 0 | BD76: 0 | BE76: 0 | BG76: 0 | BH76: 0
A77: 70 | I77: 0 | J77: 0 | K77: 0 | L77: 0 | R77: 0 | S77: 0 | T77: 0 | U77: 0 | AA77: 0 | AB77: 0 | AC77: 0 | AD77: 0 | AJ77: 0 | AK77: 0 | AL77: 0 | AM77: 0 | AS77: 0 | AT77: 0 | AU77: 0 | AV77: 0 | BB77: 0 | BC77: 0 | BD77: 0 | BE77: 0 | BG77: 0 | BH77: 0
A78: 71 | I78: 0 | J78: 0 | K78: 0 | L78: 0 | R78: 0 | S78: 0 | T78: 0 | U78: 0 | AA78: 0 | AB78: 0 | AC78: 0 | AD78: 0 | AJ78: 0 | AK78: 0 | AL78: 0 | AM78: 0 | AS78: 0 | AT78: 0 | AU78: 0 | AV78: 0 | BB78: 0 | BC78: 0 | BD78: 0 | BE78: 0 | BG78: 0 | BH78: 0
A79: 72 | I79: 0 | J79: 0 | K79: 0 | L79: 0 | R79: 0 | S79: 0 | T79: 0 | U79: 0 | AA79: 0 | AB79: 0 | AC79: 0 | AD79: 0 | AJ79: 0 | AK79: 0 | AL79: 0 | AM79: 0 | AS79: 0 | AT79: 0 | AU79: 0 | AV79: 0 | BB79: 0 | BC79: 0 | BD79: 0 | BE79: 0 | BG79: 0 | BH79: 0
A80: 73 | I80: 0 | J80: 0 | K80: 0 | L80: 0 | R80: 0 | S80: 0 | T80: 0 | U80: 0 | AA80: 0 | AB80: 0 | AC80: 0 | AD80: 0 | AJ80: 0 | AK80: 0 | AL80: 0 | AM80: 0 | AS80: 0 | AT80: 0 | AU80: 0 | AV80: 0 | BB80: 0 | BC80: 0 | BD80: 0 | BE80: 0 | BG80: 0 | BH80: 0
A81: 74 | I81: 0 | J81: 0 | K81: 0 | L81: 0 | R81: 0 | S81: 0 | T81: 0 | U81: 0 | AA81: 0 | AB81: 0 | AC81: 0 | AD81: 0 | AJ81: 0 | AK81: 0 | AL81: 0 | AM81: 0 | AS81: 0 | AT81: 0 | AU81: 0 | AV81: 0 | BB81: 0 | BC81: 0 | BD81: 0 | BE81: 0 | BG81: 0 | BH81: 0
A82: 75 | I82: 0 | J82: 0 | K82: 0 | L82: 0 | R82: 0 | S82: 0 | T82: 0 | U82: 0 | AA82: 0 | AB82: 0 | AC82: 0 | AD82: 0 | AJ82: 0 | AK82: 0 | AL82: 0 | AM82: 0 | AS82: 0 | AT82: 0 | AU82: 0 | AV82: 0 | BB82: 0 | BC82: 0 | BD82: 0 | BE82: 0 | BG82: 0 | BH82: 0
A83: 76 | I83: 0 | J83: 0 | K83: 0 | L83: 0 | R83: 0 | S83: 0 | T83: 0 | U83: 0 | AA83: 0 | AB83: 0 | AC83: 0 | AD83: 0 | AJ83: 0 | AK83: 0 | AL83: 0 | AM83: 0 | AS83: 0 | AT83: 0 | AU83: 0 | AV83: 0 | BB83: 0 | BC83: 0 | BD83: 0 | BE83: 0 | BG83: 0 | BH83: 0
A84: 77 | I84: 0 | J84: 0 | K84: 0 | L84: 0 | R84: 0 | S84: 0 | T84: 0 | U84: 0 | AA84: 0 | AB84: 0 | AC84: 0 | AD84: 0 | AJ84: 0 | AK84: 0 | AL84: 0 | AM84: 0 | AS84: 0 | AT84: 0 | AU84: 0 | AV84: 0 | BB84: 0 | BC84: 0 | BD84: 0 | BE84: 0 | BG84: 0 | BH84: 0
A85: 78 | I85: 0 | J85: 0 | K85: 0 | L85: 0 | R85: 0 | S85: 0 | T85: 0 | U85: 0 | AA85: 0 | AB85: 0 | AC85: 0 | AD85: 0 | AJ85: 0 | AK85: 0 | AL85: 0 | AM85: 0 | AS85: 0 | AT85: 0 | AU85: 0 | AV85: 0 | BB85: 0 | BC85: 0 | BD85: 0 | BE85: 0 | BG85: 0 | BH85: 0
A86: 79 | I86: 0 | J86: 0 | K86: 0 | L86: 0 | R86: 0 | S86: 0 | T86: 0 | U86: 0 | AA86: 0 | AB86: 0 | AC86: 0 | AD86: 0 | AJ86: 0 | AK86: 0 | AL86: 0 | AM86: 0 | AS86: 0 | AT86: 0 | AU86: 0 | AV86: 0 | BB86: 0 | BC86: 0 | BD86: 0 | BE86: 0 | BG86: 0 | BH86: 0
A87: 80 | I87: 0 | J87: 0 | K87: 0 | L87: 0 | R87: 0 | S87: 0 | T87: 0 | U87: 0 | AA87: 0 | AB87: 0 | AC87: 0 | AD87: 0 | AJ87: 0 | AK87: 0 | AL87: 0 | AM87: 0 | AS87: 0 | AT87: 0 | AU87: 0 | AV87: 0 | BB87: 0 | BC87: 0 | BD87: 0 | BE87: 0 | BG87: 0 | BH87: 0
A88: 81 | I88: 0 | J88: 0 | K88: 0 | L88: 0 | R88: 0 | S88: 0 | T88: 0 | U88: 0 | AA88: 0 | AB88: 0 | AC88: 0 | AD88: 0 | AJ88: 0 | AK88: 0 | AL88: 0 | AM88: 0 | AS88: 0 | AT88: 0 | AU88: 0 | AV88: 0 | BB88: 0 | BC88: 0 | BD88: 0 | BE88: 0 | BG88: 0 | BH88: 0
A89: 82 | I89: 0 | J89: 0 | K89: 0 | L89: 0 | R89: 0 | S89: 0 | T89: 0 | U89: 0 | AA89: 0 | AB89: 0 | AC89: 0 | AD89: 0 | AJ89: 0 | AK89: 0 | AL89: 0 | AM89: 0 | AS89: 0 | AT89: 0 | AU89: 0 | AV89: 0 | BB89: 0 | BC89: 0 | BD89: 0 | BE89: 0 | BG89: 0 | BH89: 0
A90: 83 | I90: 0 | J90: 0 | K90: 0 | L90: 0 | R90: 0 | S90: 0 | T90: 0 | U90: 0 | AA90: 0 | AB90: 0 | AC90: 0 | AD90: 0 | AJ90: 0 | AK90: 0 | AL90: 0 | AM90: 0 | AS90: 0 | AT90: 0 | AU90: 0 | AV90: 0 | BB90: 0 | BC90: 0 | BD90: 0 | BE90: 0 | BG90: 0 | BH90: 0
A91: 84 | I91: 0 | J91: 0 | K91: 0 | L91: 0 | R91: 0 | S91: 0 | T91: 0 | U91: 0 | AA91: 0 | AB91: 0 | AC91: 0 | AD91: 0 | AJ91: 0 | AK91: 0 | AL91: 0 | AM91: 0 | AS91: 0 | AT91: 0 | AU91: 0 | AV91: 0 | BB91: 0 | BC91: 0 | BD91: 0 | BE91: 0 | BG91: 0 | BH91: 0
A92: 85 | I92: 0 | J92: 0 | K92: 0 | L92: 0 | R92: 0 | S92: 0 | T92: 0 | U92: 0 | AA92: 0 | AB92: 0 | AC92: 0 | AD92: 0 | AJ92: 0 | AK92: 0 | AL92: 0 | AM92: 0 | AS92: 0 | AT92: 0 | AU92: 0 | AV92: 0 | BB92: 0 | BC92: 0 | BD92: 0 | BE92: 0 | BG92: 0 | BH92: 0
A93: 86 | I93: 0 | J93: 0 | K93: 0 | L93: 0 | R93: 0 | S93: 0 | T93: 0 | U93: 0 | AA93: 0 | AB93: 0 | AC93: 0 | AD93: 0 | AJ93: 0 | AK93: 0 | AL93: 0 | AM93: 0 | AS93: 0 | AT93: 0 | AU93: 0 | AV93: 0 | BB93: 0 | BC93: 0 | BD93: 0 | BE93: 0 | BG93: 0 | BH93: 0
A94: 87 | I94: 0 | J94: 0 | K94: 0 | L94: 0 | R94: 0 | S94: 0 | T94: 0 | U94: 0 | AA94: 0 | AB94: 0 | AC94: 0 | AD94: 0 | AJ94: 0 | AK94: 0 | AL94: 0 | AM94: 0 | AS94: 0 | AT94: 0 | AU94: 0 | AV94: 0 | BB94: 0 | BC94: 0 | BD94: 0 | BE94: 0 | BG94: 0 | BH94: 0
A95: 88 | I95: 0 | J95: 0 | K95: 0 | L95: 0 | R95: 0 | S95: 0 | T95: 0 | U95: 0 | AA95: 0 | AB95: 0 | AC95: 0 | AD95: 0 | AJ95: 0 | AK95: 0 | AL95: 0 | AM95: 0 | AS95: 0 | AT95: 0 | AU95: 0 | AV95: 0 | BB95: 0 | BC95: 0 | BD95: 0 | BE95: 0 | BG95: 0 | BH95: 0
A96: 89 | I96: 0 | J96: 0 | K96: 0 | L96: 0 | R96: 0 | S96: 0 | T96: 0 | U96: 0 | AA96: 0 | AB96: 0 | AC96: 0 | AD96: 0 | AJ96: 0 | AK96: 0 | AL96: 0 | AM96: 0 | AS96: 0 | AT96: 0 | AU96: 0 | AV96: 0 | BB96: 0 | BC96: 0 | BD96: 0 | BE96: 0 | BG96: 0 | BH96: 0
A97: 90 | I97: 0 | J97: 0 | K97: 0 | L97: 0 | R97: 0 | S97: 0 | T97: 0 | U97: 0 | AA97: 0 | AB97: 0 | AC97: 0 | AD97: 0 | AJ97: 0 | AK97: 0 | AL97: 0 | AM97: 0 | AS97: 0 | AT97: 0 | AU97: 0 | AV97: 0 | BB97: 0 | BC97: 0 | BD97: 0 | BE97: 0 | BG97: 0 | BH97: 0
A98: 91 | I98: 0 | J98: 0 | K98: 0 | L98: 0 | R98: 0 | S98: 0 | T98: 0 | U98: 0 | AA98: 0 | AB98: 0 | AC98: 0 | AD98: 0 | AJ98: 0 | AK98: 0 | AL98: 0 | AM98: 0 | AS98: 0 | AT98: 0 | AU98: 0 | AV98: 0 | BB98: 0 | BC98: 0 | BD98: 0 | BE98: 0 | BG98: 0 | BH98: 0
A99: 92 | I99: 0 | J99: 0 | K99: 0 | L99: 0 | R99: 0 | S99: 0 | T99: 0 | U99: 0 | AA99: 0 | AB99: 0 | AC99: 0 | AD99: 0 | AJ99: 0 | AK99: 0 | AL99: 0 | AM99: 0 | AS99: 0 | AT99: 0 | AU99: 0 | AV99: 0 | BB99: 0 | BC99: 0 | BD99: 0 | BE99: 0 | BG99: 0 | BH99: 0
A100: 93 | I100: 0 | J100: 0 | K100: 0 | L100: 0 | R100: 0 | S100: 0 | T100: 0 | U100: 0 | AA100: 0 | AB100: 0 | AC100: 0 | AD100: 0 | AJ100: 0 | AK100: 0 | AL100: 0 | AM100: 0 | AS100: 0 | AT100: 0 | AU100: 0 | AV100: 0 | BB100: 0 | BC100: 0 | BD100: 0 | BE100: 0 | BG100: 0 | BH100: 0
A101: 94 | I101: 0 | J101: 0 | K101: 0 | L101: 0 | R101: 0 | S101: 0 | T101: 0 | U101: 0 | AA101: 0 | AB101: 0 | AC101: 0 | AD101: 0 | AJ101: 0 | AK101: 0 | AL101: 0 | AM101: 0 | AS101: 0 | AT101: 0 | AU101: 0 | AV101: 0 | BB101: 0 | BC101: 0 | BD101: 0 | BE101: 0 | BG101: 0 | BH101: 0
A102: 95 | I102: 0 | J102: 0 | K102: 0 | L102: 0 | R102: 0 | S102: 0 | T102: 0 | U102: 0 | AA102: 0 | AB102: 0 | AC102: 0 | AD102: 0 | AJ102: 0 | AK102: 0 | AL102: 0 | AM102: 0 | AS102: 0 | AT102: 0 | AU102: 0 | AV102: 0 | BB102: 0 | BC102: 0 | BD102: 0 | BE102: 0 | BG102: 0 | BH102: 0
A103: 96 | I103: 0 | J103: 0 | K103: 0 | L103: 0 | R103: 0 | S103: 0 | T103: 0 | U103: 0 | AA103: 0 | AB103: 0 | AC103: 0 | AD103: 0 | AJ103: 0 | AK103: 0 | AL103: 0 | AM103: 0 | AS103: 0 | AT103: 0 | AU103: 0 | AV103: 0 | BB103: 0 | BC103: 0 | BD103: 0 | BE103: 0 | BG103: 0 | BH103: 0
A104: 97 | I104: 0 | J104: 0 | K104: 0 | L104: 0 | R104: 0 | S104: 0 | T104: 0 | U104: 0 | AA104: 0 | AB104: 0 | AC104: 0 | AD104: 0 | AJ104: 0 | AK104: 0 | AL104: 0 | AM104: 0 | AS104: 0 | AT104: 0 | AU104: 0 | AV104: 0 | BB104: 0 | BC104: 0 | BD104: 0 | BE104: 0 | BG104: 0 | BH104: 0
A105: 98 | I105: 0 | J105: 0 | K105: 0 | L105: 0 | R105: 0 | S105: 0 | T105: 0 | U105: 0 | AA105: 0 | AB105: 0 | AC105: 0 | AD105: 0 | AJ105: 0 | AK105: 0 | AL105: 0 | AM105: 0 | AS105: 0 | AT105: 0 | AU105: 0 | AV105: 0 | BB105: 0 | BC105: 0 | BD105: 0 | BE105: 0 | BG105: 0 | BH105: 0
A106: 99 | I106: 0 | J106: 0 | K106: 0 | L106: 0 | R106: 0 | S106: 0 | T106: 0 | U106: 0 | AA106: 0 | AB106: 0 | AC106: 0 | AD106: 0 | AJ106: 0 | AK106: 0 | AL106: 0 | AM106: 0 | AS106: 0 | AT106: 0 | AU106: 0 | AV106: 0 | BB106: 0 | BC106: 0 | BD106: 0 | BE106: 0 | BG106: 0 | BH106: 0
A107: 100 | I107: 0 | J107: 0 | K107: 0 | L107: 0 | R107: 0 | S107: 0 | T107: 0 | U107: 0 | AA107: 0 | AB107: 0 | AC107: 0 | AD107: 0 | AJ107: 0 | AK107: 0 | AL107: 0 | AM107: 0 | AS107: 0 | AT107: 0 | AU107: 0 | AV107: 0 | BB107: 0 | BC107: 0 | BD107: 0 | BE107: 0 | BG107: 0 | BH107: 0
A108: 101 | I108: 0 | J108: 0 | K108: 0 | L108: 0 | R108: 0 | S108: 0 | T108: 0 | U108: 0 | AA108: 0 | AB108: 0 | AC108: 0 | AD108: 0 | AJ108: 0 | AK108: 0 | AL108: 0 | AM108: 0 | AS108: 0 | AT108: 0 | AU108: 0 | AV108: 0 | BB108: 0 | BC108: 0 | BD108: 0 | BE108: 0 | BG108: 0 | BH108: 0
A109: 102 | I109: 0 | J109: 0 | K109: 0 | L109: 0 | R109: 0 | S109: 0 | T109: 0 | U109: 0 | AA109: 0 | AB109: 0 | AC109: 0 | AD109: 0 | AJ109: 0 | AK109: 0 | AL109: 0 | AM109: 0 | AS109: 0 | AT109: 0 | AU109: 0 | AV109: 0 | BB109: 0 | BC109: 0 | BD109: 0 | BE109: 0 | BG109: 0 | BH109: 0
A110: 103 | I110: 0 | J110: 0 | K110: 0 | L110: 0 | R110: 0 | S110: 0 | T110: 0 | U110: 0 | AA110: 0 | AB110: 0 | AC110: 0 | AD110: 0 | AJ110: 0 | AK110: 0 | AL110: 0 | AM110: 0 | AS110: 0 | AT110: 0 | AU110: 0 | AV110: 0 | BB110: 0 | BC110: 0 | BD110: 0 | BE110: 0 | BG110: 0 | BH110: 0
A111: 104 | I111: 0 | J111: 0 | K111: 0 | L111: 0 | R111: 0 | S111: 0 | T111: 0 | U111: 0 | AA111: 0 | AB111: 0 | AC111: 0 | AD111: 0 | AJ111: 0 | AK111: 0 | AL111: 0 | AM111: 0 | AS111: 0 | AT111: 0 | AU111: 0 | AV111: 0 | BB111: 0 | BC111: 0 | BD111: 0 | BE111: 0 | BG111: 0 | BH111: 0
A112: 105 | I112: 0 | J112: 0 | K112: 0 | L112: 0 | R112: 0 | S112: 0 | T112: 0 | U112: 0 | AA112: 0 | AB112: 0 | AC112: 0 | AD112: 0 | AJ112: 0 | AK112: 0 | AL112: 0 | AM112: 0 | AS112: 0 | AT112: 0 | AU112: 0 | AV112: 0 | BB112: 0 | BC112: 0 | BD112: 0 | BE112: 0 | BG112: 0 | BH112: 0
A113: 106 | I113: 0 | J113: 0 | K113: 0 | L113: 0 | R113: 0 | S113: 0 | T113: 0 | U113: 0 | AA113: 0 | AB113: 0 | AC113: 0 | AD113: 0 | AJ113: 0 | AK113: 0 | AL113: 0 | AM113: 0 | AS113: 0 | AT113: 0 | AU113: 0 | AV113: 0 | BB113: 0 | BC113: 0 | BD113: 0 | BE113: 0 | BG113: 0 | BH113: 0
A114: 107 | I114: 0 | J114: 0 | K114: 0 | L114: 0 | R114: 0 | S114: 0 | T114: 0 | U114: 0 | AA114: 0 | AB114: 0 | AC114: 0 | AD114: 0 | AJ114: 0 | AK114: 0 | AL114: 0 | AM114: 0 | AS114: 0 | AT114: 0 | AU114: 0 | AV114: 0 | BB114: 0 | BC114: 0 | BD114: 0 | BE114: 0 | BG114: 0 | BH114: 0
A115: 108 | I115: 0 | J115: 0 | K115: 0 | L115: 0 | R115: 0 | S115: 0 | T115: 0 | U115: 0 | AA115: 0 | AB115: 0 | AC115: 0 | AD115: 0 | AJ115: 0 | AK115: 0 | AL115: 0 | AM115: 0 | AS115: 0 | AT115: 0 | AU115: 0 | AV115: 0 | BB115: 0 | BC115: 0 | BD115: 0 | BE115: 0 | BG115: 0 | BH115: 0
A116: 109 | I116: 0 | J116: 0 | K116: 0 | L116: 0 | R116: 0 | S116: 0 | T116: 0 | U116: 0 | AA116: 0 | AB116: 0 | AC116: 0 | AD116: 0 | AJ116: 0 | AK116: 0 | AL116: 0 | AM116: 0 | AS116: 0 | AT116: 0 | AU116: 0 | AV116: 0 | BB116: 0 | BC116: 0 | BD116: 0 | BE116: 0 | BG116: 0 | BH116: 0
A117: 110 | I117: 0 | J117: 0 | K117: 0 | L117: 0 | R117: 0 | S117: 0 | T117: 0 | U117: 0 | AA117: 0 | AB117: 0 | AC117: 0 | AD117: 0 | AJ117: 0 | AK117: 0 | AL117: 0 | AM117: 0 | AS117: 0 | AT117: 0 | AU117: 0 | AV117: 0 | BB117: 0 | BC117: 0 | BD117: 0 | BE117: 0 | BG117: 0 | BH117: 0
A118: 111 | I118: 0 | J118: 0 | K118: 0 | L118: 0 | R118: 0 | S118: 0 | T118: 0 | U118: 0 | AA118: 0 | AB118: 0 | AC118: 0 | AD118: 0 | AJ118: 0 | AK118: 0 | AL118: 0 | AM118: 0 | AS118: 0 | AT118: 0 | AU118: 0 | AV118: 0 | BB118: 0 | BC118: 0 | BD118: 0 | BE118: 0 | BG118: 0 | BH118: 0
A119: 112 | I119: 0 | J119: 0 | K119: 0 | L119: 0 | R119: 0 | S119: 0 | T119: 0 | U119: 0 | AA119: 0 | AB119: 0 | AC119: 0 | AD119: 0 | AJ119: 0 | AK119: 0 | AL119: 0 | AM119: 0 | AS119: 0 | AT119: 0 | AU119: 0 | AV119: 0 | BB119: 0 | BC119: 0 | BD119: 0 | BE119: 0 | BG119: 0 | BH119: 0
A120: 113 | I120: 0 | J120: 0 | K120: 0 | L120: 0 | R120: 0 | S120: 0 | T120: 0 | U120: 0 | AA120: 0 | AB120: 0 | AC120: 0 | AD120: 0 | AJ120: 0 | AK120: 0 | AL120: 0 | AM120: 0 | AS120: 0 | AT120: 0 | AU120: 0 | AV120: 0 | BB120: 0 | BC120: 0 | BD120: 0 | BE120: 0 | BG120: 0 | BH120: 0
A121: 114 | I121: 0 | J121: 0 | K121: 0 | L121: 0 | R121: 0 | S121: 0 | T121: 0 | U121: 0 | AA121: 0 | AB121: 0 | AC121: 0 | AD121: 0 | AJ121: 0 | AK121: 0 | AL121: 0 | AM121: 0 | AS121: 0 | AT121: 0 | AU121: 0 | AV121: 0 | BB121: 0 | BC121: 0 | BD121: 0 | BE121: 0 | BG121: 0 | BH121: 0
A122: 115 | I122: 0 | J122: 0 | K122: 0 | L122: 0 | R122: 0 | S122: 0 | T122: 0 | U122: 0 | AA122: 0 | AB122: 0 | AC122: 0 | AD122: 0 | AJ122: 0 | AK122: 0 | AL122: 0 | AM122: 0 | AS122: 0 | AT122: 0 | AU122: 0 | AV122: 0 | BB122: 0 | BC122: 0 | BD122: 0 | BE122: 0 | BG122: 0 | BH122: 0
A123: 116 | I123: 0 | J123: 0 | K123: 0 | L123: 0 | R123: 0 | S123: 0 | T123: 0 | U123: 0 | AA123: 0 | AB123: 0 | AC123: 0 | AD123: 0 | AJ123: 0 | AK123: 0 | AL123: 0 | AM123: 0 | AS123: 0 | AT123: 0 | AU123: 0 | AV123: 0 | BB123: 0 | BC123: 0 | BD123: 0 | BE123: 0 | BG123: 0 | BH123: 0
A124: 117 | I124: 0 | J124: 0 | K124: 0 | L124: 0 | R124: 0 | S124: 0 | T124: 0 | U124: 0 | AA124: 0 | AB124: 0 | AC124: 0 | AD124: 0 | AJ124: 0 | AK124: 0 | AL124: 0 | AM124: 0 | AS124: 0 | AT124: 0 | AU124: 0 | AV124: 0 | BB124: 0 | BC124: 0 | BD124: 0 | BE124: 0 | BG124: 0 | BH124: 0
A125: 118 | I125: 0 | J125: 0 | K125: 0 | L125: 0 | R125: 0 | S125: 0 | T125: 0 | U125: 0 | AA125: 0 | AB125: 0 | AC125: 0 | AD125: 0 | AJ125: 0 | AK125: 0 | AL125: 0 | AM125: 0 | AS125: 0 | AT125: 0 | AU125: 0 | AV125: 0 | BB125: 0 | BC125: 0 | BD125: 0 | BE125: 0 | BG125: 0 | BH125: 0
A126: 119 | I126: 0 | J126: 0 | K126: 0 | L126: 0 | R126: 0 | S126: 0 | T126: 0 | U126: 0 | AA126: 0 | AB126: 0 | AC126: 0 | AD126: 0 | AJ126: 0 | AK126: 0 | AL126: 0 | AM126: 0 | AS126: 0 | AT126: 0 | AU126: 0 | AV126: 0 | BB126: 0 | BC126: 0 | BD126: 0 | BE126: 0 | BG126: 0 | BH126: 0
A127: 120 | I127: 0 | J127: 0 | K127: 0 | L127: 0 | R127: 0 | S127: 0 | T127: 0 | U127: 0 | AA127: 0 | AB127: 0 | AC127: 0 | AD127: 0 | AJ127: 0 | AK127: 0 | AL127: 0 | AM127: 0 | AS127: 0 | AT127: 0 | AU127: 0 | AV127: 0 | BB127: 0 | BC127: 0 | BD127: 0 | BE127: 0 | BG127: 0 | BH127: 0
A128: 121 | I128: 0 | J128: 0 | K128: 0 | L128: 0 | R128: 0 | S128: 0 | T128: 0 | U128: 0 | AA128: 0 | AB128: 0 | AC128: 0 | AD128: 0 | AJ128: 0 | AK128: 0 | AL128: 0 | AM128: 0 | AS128: 0 | AT128: 0 | AU128: 0 | AV128: 0 | BB128: 0 | BC128: 0 | BD128: 0 | BE128: 0 | BG128: 0 | BH128: 0
A129: 122 | I129: 0 | J129: 0 | K129: 0 | L129: 0 | R129: 0 | S129: 0 | T129: 0 | U129: 0 | AA129: 0 | AB129: 0 | AC129: 0 | AD129: 0 | AJ129: 0 | AK129: 0 | AL129: 0 | AM129: 0 | AS129: 0 | AT129: 0 | AU129: 0 | AV129: 0 | BB129: 0 | BC129: 0 | BD129: 0 | BE129: 0 | BG129: 0 | BH129: 0
A130: 123 | I130: 0 | J130: 0 | K130: 0 | L130: 0 | R130: 0 | S130: 0 | T130: 0 | U130: 0 | AA130: 0 | AB130: 0 | AC130: 0 | AD130: 0 | AJ130: 0 | AK130: 0 | AL130: 0 | AM130: 0 | AS130: 0 | AT130: 0 | AU130: 0 | AV130: 0 | BB130: 0 | BC130: 0 | BD130: 0 | BE130: 0 | BG130: 0 | BH130: 0
A131: 124 | I131: 0 | J131: 0 | K131: 0 | L131: 0 | R131: 0 | S131: 0 | T131: 0 | U131: 0 | AA131: 0 | AB131: 0 | AC131: 0 | AD131: 0 | AJ131: 0 | AK131: 0 | AL131: 0 | AM131: 0 | AS131: 0 | AT131: 0 | AU131: 0 | AV131: 0 | BB131: 0 | BC131: 0 | BD131: 0 | BE131: 0 | BG131: 0 | BH131: 0
A132: 125 | I132: 0 | J132: 0 | K132: 0 | L132: 0 | R132: 0 | S132: 0 | T132: 0 | U132: 0 | AA132: 0 | AB132: 0 | AC132: 0 | AD132: 0 | AJ132: 0 | AK132: 0 | AL132: 0 | AM132: 0 | AS132: 0 | AT132: 0 | AU132: 0 | AV132: 0 | BB132: 0 | BC132: 0 | BD132: 0 | BE132: 0 | BG132: 0 | BH132: 0
A133: 126 | I133: 0 | J133: 0 | K133: 0 | L133: 0 | R133: 0 | S133: 0 | T133: 0 | U133: 0 | AA133: 0 | AB133: 0 | AC133: 0 | AD133: 0 | AJ133: 0 | AK133: 0 | AL133: 0 | AM133: 0 | AS133: 0 | AT133: 0 | AU133: 0 | AV133: 0 | BB133: 0 | BC133: 0 | BD133: 0 | BE133: 0 | BG133: 0 | BH133: 0
A134: 127 | I134: 0 | J134: 0 | K134: 0 | L134: 0 | R134: 0 | S134: 0 | T134: 0 | U134: 0 | AA134: 0 | AB134: 0 | AC134: 0 | AD134: 0 | AJ134: 0 | AK134: 0 | AL134: 0 | AM134: 0 | AS134: 0 | AT134: 0 | AU134: 0 | AV134: 0 | BB134: 0 | BC134: 0 | BD134: 0 | BE134: 0 | BG134: 0 | BH134: 0
A135: 128 | I135: 0 | J135: 0 | K135: 0 | L135: 0 | R135: 0 | S135: 0 | T135: 0 | U135: 0 | AA135: 0 | AB135: 0 | AC135: 0 | AD135: 0 | AJ135: 0 | AK135: 0 | AL135: 0 | AM135: 0 | AS135: 0 | AT135: 0 | AU135: 0 | AV135: 0 | BB135: 0 | BC135: 0 | BD135: 0 | BE135: 0 | BG135: 0 | BH135: 0
A136: 129 | G136: =IFERROR(F136/E136,"") ->  | I136: =+F136+H136 -> 0 | J136: =+E136-I136 -> 0 | K136: =+I136*0.1 -> 0 | L136: =+J136+K136 -> 0 | M136: =IFERROR(+L136/E136,"") ->  | R136: 0 | S136: 0 | T136: 0 | U136: 0 | AA136: 0 | AB136: 0 | AC136: 0 | AD136: 0 | AJ136: 0 | AK136: 0 | AL136: 0 | AM136: 0 | AS136: 0 | AT136: 0 | AU136: 0 | AV136: 0 | BB136: 0 | BC136: 0 | BD136: 0 | BE136: 0 | BG136: 0 | BH136: 0
A137: 130 | I137: 0 | J137: 0 | K137: 0 | L137: 0 | P137: =IFERROR(O137/N137,"") ->  | R137: =+O137+Q137 -> 0 | S137: =+N137-R137 -> 0 | T137: =+R137*0.1 -> 0 | U137: =+S137+T137 -> 0 | V137: =IFERROR(+U137/N137,"") ->  | Y137: =IFERROR(X137/W137,"") ->  | AA137: =+X137+Z137 -> 0 | AB137: =+W137-AA137 -> 0 | AC137: =+AA137*0.1 -> 0 | AD137: =+AB137+AC137 -> 0 | AE137: =IFERROR(+AD137/W137,"") ->  | AH137: =IFERROR(AG137/AF137,"") ->  | AJ137: =+AG137+AI137 -> 0 | AK137: =+AF137-AJ137 -> 0 | AL137: =+AJ137*0.1 -> 0 | AM137: =+AK137+AL137 -> 0 | AN137: =IFERROR(+AM137/AF137,"") ->  | AQ137: =IFERROR(AP137/AO137,"") ->  | AS137: =+AP137+AR137 -> 0 | AT137: =+AO137-AS137 -> 0 | AU137: =+AS137*0.1 -> 0 | AV137: =+AT137+AU137 -> 0 | AW137: =IFERROR(+AV137/AO137,"") ->  | AZ137: =IFERROR(AY137/AX137,"") ->  | BB137: =+AY137+BA137 -> 0 | BC137: =+AX137-BB137 -> 0 | BD137: =+BB137*0.1 -> 0 | BE137: =+BC137+BD137 -> 0 | BF137: =IFERROR(+BE137/AX137,"") ->  | BG137: =+W137+AF137+AO137+AX137 -> 0 | BH137: =U137+AD137+AM137+AV137+BE137 -> 0 | BI137: =IFERROR(BH137/BJ137,"") -> 
A138: 131 | I138: 0 | J138: 0 | K138: 0 | L138: 0 | R138: 0 | S138: 0 | T138: 0 | U138: 0 | AA138: 0 | AB138: 0 | AC138: 0 | AD138: 0 | AJ138: 0 | AK138: 0 | AL138: 0 | AM138: 0 | AS138: 0 | AT138: 0 | AU138: 0 | AV138: 0 | BB138: 0 | BC138: 0 | BD138: 0 | BE138: 0 | BG138: 0 | BH138: 0
A139: 132 | I139: 0 | J139: 0 | K139: 0 | L139: 0 | R139: 0 | S139: 0 | T139: 0 | U139: 0 | AA139: 0 | AB139: 0 | AC139: 0 | AD139: 0 | AJ139: 0 | AK139: 0 | AL139: 0 | AM139: 0 | AS139: 0 | AT139: 0 | AU139: 0 | AV139: 0 | BB139: 0 | BC139: 0 | BD139: 0 | BE139: 0 | BG139: 0 | BH139: 0
A140: 133 | I140: 0 | J140: 0 | K140: 0 | L140: 0 | R140: 0 | S140: 0 | T140: 0 | U140: 0 | AA140: 0 | AB140: 0 | AC140: 0 | AD140: 0 | AJ140: 0 | AK140: 0 | AL140: 0 | AM140: 0 | AS140: 0 | AT140: 0 | AU140: 0 | AV140: 0 | BB140: 0 | BC140: 0 | BD140: 0 | BE140: 0 | BG140: 0 | BH140: 0
A141: 134 | I141: 0 | J141: 0 | K141: 0 | L141: 0 | R141: 0 | S141: 0 | T141: 0 | U141: 0 | AA141: 0 | AB141: 0 | AC141: 0 | AD141: 0 | AJ141: 0 | AK141: 0 | AL141: 0 | AM141: 0 | AS141: 0 | AT141: 0 | AU141: 0 | AV141: 0 | BB141: 0 | BC141: 0 | BD141: 0 | BE141: 0 | BG141: 0 | BH141: 0
A142: 135 | I142: 0 | J142: 0 | K142: 0 | L142: 0 | R142: 0 | S142: 0 | T142: 0 | U142: 0 | AA142: 0 | AB142: 0 | AC142: 0 | AD142: 0 | AJ142: 0 | AK142: 0 | AL142: 0 | AM142: 0 | AS142: 0 | AT142: 0 | AU142: 0 | AV142: 0 | BB142: 0 | BC142: 0 | BD142: 0 | BE142: 0 | BG142: 0 | BH142: 0
A143: 136 | I143: 0 | J143: 0 | K143: 0 | L143: 0 | R143: 0 | S143: 0 | T143: 0 | U143: 0 | AA143: 0 | AB143: 0 | AC143: 0 | AD143: 0 | AJ143: 0 | AK143: 0 | AL143: 0 | AM143: 0 | AS143: 0 | AT143: 0 | AU143: 0 | AV143: 0 | BB143: 0 | BC143: 0 | BD143: 0 | BE143: 0 | BG143: 0 | BH143: 0
A144: 137 | I144: 0 | J144: 0 | K144: 0 | L144: 0 | R144: 0 | S144: 0 | T144: 0 | U144: 0 | AA144: 0 | AB144: 0 | AC144: 0 | AD144: 0 | AJ144: 0 | AK144: 0 | AL144: 0 | AM144: 0 | AS144: 0 | AT144: 0 | AU144: 0 | AV144: 0 | BB144: 0 | BC144: 0 | BD144: 0 | BE144: 0 | BG144: 0 | BH144: 0
A145: 138 | I145: 0 | J145: 0 | K145: 0 | L145: 0 | R145: 0 | S145: 0 | T145: 0 | U145: 0 | AA145: 0 | AB145: 0 | AC145: 0 | AD145: 0 | AJ145: 0 | AK145: 0 | AL145: 0 | AM145: 0 | AS145: 0 | AT145: 0 | AU145: 0 | AV145: 0 | BB145: 0 | BC145: 0 | BD145: 0 | BE145: 0 | BG145: 0 | BH145: 0
A146: 139 | I146: 0 | J146: 0 | K146: 0 | L146: 0 | R146: 0 | S146: 0 | T146: 0 | U146: 0 | AA146: 0 | AB146: 0 | AC146: 0 | AD146: 0 | AJ146: 0 | AK146: 0 | AL146: 0 | AM146: 0 | AS146: 0 | AT146: 0 | AU146: 0 | AV146: 0 | BB146: 0 | BC146: 0 | BD146: 0 | BE146: 0 | BG146: 0 | BH146: 0
A147: 140 | I147: 0 | J147: 0 | K147: 0 | L147: 0 | R147: 0 | S147: 0 | T147: 0 | U147: 0 | AA147: 0 | AB147: 0 | AC147: 0 | AD147: 0 | AJ147: 0 | AK147: 0 | AL147: 0 | AM147: 0 | AS147: 0 | AT147: 0 | AU147: 0 | AV147: 0 | BB147: 0 | BC147: 0 | BD147: 0 | BE147: 0 | BG147: 0 | BH147: 0
A148: 141 | I148: 0 | J148: 0 | K148: 0 | L148: 0 | R148: 0 | S148: 0 | T148: 0 | U148: 0 | AA148: 0 | AB148: 0 | AC148: 0 | AD148: 0 | AJ148: 0 | AK148: 0 | AL148: 0 | AM148: 0 | AS148: 0 | AT148: 0 | AU148: 0 | AV148: 0 | BB148: 0 | BC148: 0 | BD148: 0 | BE148: 0 | BG148: 0 | BH148: 0
A149: 142 | I149: 0 | J149: 0 | K149: 0 | L149: 0 | R149: 0 | S149: 0 | T149: 0 | U149: 0 | AA149: 0 | AB149: 0 | AC149: 0 | AD149: 0 | AJ149: 0 | AK149: 0 | AL149: 0 | AM149: 0 | AS149: 0 | AT149: 0 | AU149: 0 | AV149: 0 | BB149: 0 | BC149: 0 | BD149: 0 | BE149: 0 | BG149: 0 | BH149: 0
A150: 143 | I150: 0 | J150: 0 | K150: 0 | L150: 0 | R150: 0 | S150: 0 | T150: 0 | U150: 0 | AA150: 0 | AB150: 0 | AC150: 0 | AD150: 0 | AJ150: 0 | AK150: 0 | AL150: 0 | AM150: 0 | AS150: 0 | AT150: 0 | AU150: 0 | AV150: 0 | BB150: 0 | BC150: 0 | BD150: 0 | BE150: 0 | BG150: 0 | BH150: 0
A151: 144 | I151: 0 | J151: 0 | K151: 0 | L151: 0 | R151: 0 | S151: 0 | T151: 0 | U151: 0 | AA151: 0 | AB151: 0 | AC151: 0 | AD151: 0 | AJ151: 0 | AK151: 0 | AL151: 0 | AM151: 0 | AS151: 0 | AT151: 0 | AU151: 0 | AV151: 0 | BB151: 0 | BC151: 0 | BD151: 0 | BE151: 0 | BG151: 0 | BH151: 0
A152: 145 | I152: 0 | J152: 0 | K152: 0 | L152: 0 | R152: 0 | S152: 0 | T152: 0 | U152: 0 | AA152: 0 | AB152: 0 | AC152: 0 | AD152: 0 | AJ152: 0 | AK152: 0 | AL152: 0 | AM152: 0 | AS152: 0 | AT152: 0 | AU152: 0 | AV152: 0 | BB152: 0 | BC152: 0 | BD152: 0 | BE152: 0 | BG152: 0 | BH152: 0
A153: 146 | I153: 0 | J153: 0 | K153: 0 | L153: 0 | R153: 0 | S153: 0 | T153: 0 | U153: 0 | AA153: 0 | AB153: 0 | AC153: 0 | AD153: 0 | AJ153: 0 | AK153: 0 | AL153: 0 | AM153: 0 | AS153: 0 | AT153: 0 | AU153: 0 | AV153: 0 | BB153: 0 | BC153: 0 | BD153: 0 | BE153: 0 | BG153: 0 | BH153: 0
A154: 147 | I154: 0 | J154: 0 | K154: 0 | L154: 0 | R154: 0 | S154: 0 | T154: 0 | U154: 0 | AA154: 0 | AB154: 0 | AC154: 0 | AD154: 0 | AJ154: 0 | AK154: 0 | AL154: 0 | AM154: 0 | AS154: 0 | AT154: 0 | AU154: 0 | AV154: 0 | BB154: 0 | BC154: 0 | BD154: 0 | BE154: 0 | BG154: 0 | BH154: 0
A155: 148 | I155: 0 | J155: 0 | K155: 0 | L155: 0 | R155: 0 | S155: 0 | T155: 0 | U155: 0 | AA155: 0 | AB155: 0 | AC155: 0 | AD155: 0 | AJ155: 0 | AK155: 0 | AL155: 0 | AM155: 0 | AS155: 0 | AT155: 0 | AU155: 0 | AV155: 0 | BB155: 0 | BC155: 0 | BD155: 0 | BE155: 0 | BG155: 0 | BH155: 0
A156: 149 | I156: 0 | J156: 0 | K156: 0 | L156: 0 | R156: 0 | S156: 0 | T156: 0 | U156: 0 | AA156: 0 | AB156: 0 | AC156: 0 | AD156: 0 | AJ156: 0 | AK156: 0 | AL156: 0 | AM156: 0 | AS156: 0 | AT156: 0 | AU156: 0 | AV156: 0 | BB156: 0 | BC156: 0 | BD156: 0 | BE156: 0 | BG156: 0 | BH156: 0
A157: 150 | I157: 0 | J157: 0 | K157: 0 | L157: 0 | R157: 0 | S157: 0 | T157: 0 | U157: 0 | AA157: 0 | AB157: 0 | AC157: 0 | AD157: 0 | AJ157: 0 | AK157: 0 | AL157: 0 | AM157: 0 | AS157: 0 | AT157: 0 | AU157: 0 | AV157: 0 | BB157: 0 | BC157: 0 | BD157: 0 | BE157: 0 | BG157: 0 | BH157: 0
A158: 151 | I158: 0 | J158: 0 | K158: 0 | L158: 0 | R158: 0 | S158: 0 | T158: 0 | U158: 0 | AA158: 0 | AB158: 0 | AC158: 0 | AD158: 0 | AJ158: 0 | AK158: 0 | AL158: 0 | AM158: 0 | AS158: 0 | AT158: 0 | AU158: 0 | AV158: 0 | BB158: 0 | BC158: 0 | BD158: 0 | BE158: 0 | BG158: 0 | BH158: 0
A159: 152 | I159: 0 | J159: 0 | K159: 0 | L159: 0 | R159: 0 | S159: 0 | T159: 0 | U159: 0 | AA159: 0 | AB159: 0 | AC159: 0 | AD159: 0 | AJ159: 0 | AK159: 0 | AL159: 0 | AM159: 0 | AS159: 0 | AT159: 0 | AU159: 0 | AV159: 0 | BB159: 0 | BC159: 0 | BD159: 0 | BE159: 0 | BG159: 0 | BH159: 0
A160: 153 | I160: 0 | J160: 0 | K160: 0 | L160: 0 | R160: 0 | S160: 0 | T160: 0 | U160: 0 | AA160: 0 | AB160: 0 | AC160: 0 | AD160: 0 | AJ160: 0 | AK160: 0 | AL160: 0 | AM160: 0 | AS160: 0 | AT160: 0 | AU160: 0 | AV160: 0 | BB160: 0 | BC160: 0 | BD160: 0 | BE160: 0 | BG160: 0 | BH160: 0
A161: 154 | I161: 0 | J161: 0 | K161: 0 | L161: 0 | R161: 0 | S161: 0 | T161: 0 | U161: 0 | AA161: 0 | AB161: 0 | AC161: 0 | AD161: 0 | AJ161: 0 | AK161: 0 | AL161: 0 | AM161: 0 | AS161: 0 | AT161: 0 | AU161: 0 | AV161: 0 | BB161: 0 | BC161: 0 | BD161: 0 | BE161: 0 | BG161: 0 | BH161: 0
A162: 155 | I162: 0 | J162: 0 | K162: 0 | L162: 0 | R162: 0 | S162: 0 | T162: 0 | U162: 0 | AA162: 0 | AB162: 0 | AC162: 0 | AD162: 0 | AJ162: 0 | AK162: 0 | AL162: 0 | AM162: 0 | AS162: 0 | AT162: 0 | AU162: 0 | AV162: 0 | BB162: 0 | BC162: 0 | BD162: 0 | BE162: 0 | BG162: 0 | BH162: 0
A163: 156 | I163: 0 | J163: 0 | K163: 0 | L163: 0 | R163: 0 | S163: 0 | T163: 0 | U163: 0 | AA163: 0 | AB163: 0 | AC163: 0 | AD163: 0 | AJ163: 0 | AK163: 0 | AL163: 0 | AM163: 0 | AS163: 0 | AT163: 0 | AU163: 0 | AV163: 0 | BB163: 0 | BC163: 0 | BD163: 0 | BE163: 0 | BG163: 0 | BH163: 0
A164: 157 | I164: 0 | J164: 0 | K164: 0 | L164: 0 | R164: 0 | S164: 0 | T164: 0 | U164: 0 | AA164: 0 | AB164: 0 | AC164: 0 | AD164: 0 | AJ164: 0 | AK164: 0 | AL164: 0 | AM164: 0 | AS164: 0 | AT164: 0 | AU164: 0 | AV164: 0 | BB164: 0 | BC164: 0 | BD164: 0 | BE164: 0 | BG164: 0 | BH164: 0
A165: 158 | I165: 0 | J165: 0 | K165: 0 | L165: 0 | R165: 0 | S165: 0 | T165: 0 | U165: 0 | AA165: 0 | AB165: 0 | AC165: 0 | AD165: 0 | AJ165: 0 | AK165: 0 | AL165: 0 | AM165: 0 | AS165: 0 | AT165: 0 | AU165: 0 | AV165: 0 | BB165: 0 | BC165: 0 | BD165: 0 | BE165: 0 | BG165: 0 | BH165: 0
A166: 159 | I166: 0 | J166: 0 | K166: 0 | L166: 0 | R166: 0 | S166: 0 | T166: 0 | U166: 0 | AA166: 0 | AB166: 0 | AC166: 0 | AD166: 0 | AJ166: 0 | AK166: 0 | AL166: 0 | AM166: 0 | AS166: 0 | AT166: 0 | AU166: 0 | AV166: 0 | BB166: 0 | BC166: 0 | BD166: 0 | BE166: 0 | BG166: 0 | BH166: 0
A167: 160 | I167: 0 | J167: 0 | K167: 0 | L167: 0 | R167: 0 | S167: 0 | T167: 0 | U167: 0 | AA167: 0 | AB167: 0 | AC167: 0 | AD167: 0 | AJ167: 0 | AK167: 0 | AL167: 0 | AM167: 0 | AS167: 0 | AT167: 0 | AU167: 0 | AV167: 0 | BB167: 0 | BC167: 0 | BD167: 0 | BE167: 0 | BG167: 0 | BH167: 0
A168: 161 | I168: 0 | J168: 0 | K168: 0 | L168: 0 | R168: 0 | S168: 0 | T168: 0 | U168: 0 | AA168: 0 | AB168: 0 | AC168: 0 | AD168: 0 | AJ168: 0 | AK168: 0 | AL168: 0 | AM168: 0 | AS168: 0 | AT168: 0 | AU168: 0 | AV168: 0 | BB168: 0 | BC168: 0 | BD168: 0 | BE168: 0 | BG168: 0 | BH168: 0
A169: 162 | I169: 0 | J169: 0 | K169: 0 | L169: 0 | R169: 0 | S169: 0 | T169: 0 | U169: 0 | AA169: 0 | AB169: 0 | AC169: 0 | AD169: 0 | AJ169: 0 | AK169: 0 | AL169: 0 | AM169: 0 | AS169: 0 | AT169: 0 | AU169: 0 | AV169: 0 | BB169: 0 | BC169: 0 | BD169: 0 | BE169: 0 | BG169: 0 | BH169: 0
A170: 163 | I170: 0 | J170: 0 | K170: 0 | L170: 0 | R170: 0 | S170: 0 | T170: 0 | U170: 0 | AA170: 0 | AB170: 0 | AC170: 0 | AD170: 0 | AJ170: 0 | AK170: 0 | AL170: 0 | AM170: 0 | AS170: 0 | AT170: 0 | AU170: 0 | AV170: 0 | BB170: 0 | BC170: 0 | BD170: 0 | BE170: 0 | BG170: 0 | BH170: 0
A171: 164 | I171: 0 | J171: 0 | K171: 0 | L171: 0 | R171: 0 | S171: 0 | T171: 0 | U171: 0 | AA171: 0 | AB171: 0 | AC171: 0 | AD171: 0 | AJ171: 0 | AK171: 0 | AL171: 0 | AM171: 0 | AS171: 0 | AT171: 0 | AU171: 0 | AV171: 0 | BB171: 0 | BC171: 0 | BD171: 0 | BE171: 0 | BG171: 0 | BH171: 0
A172: 165 | I172: 0 | J172: 0 | K172: 0 | L172: 0 | R172: 0 | S172: 0 | T172: 0 | U172: 0 | AA172: 0 | AB172: 0 | AC172: 0 | AD172: 0 | AJ172: 0 | AK172: 0 | AL172: 0 | AM172: 0 | AS172: 0 | AT172: 0 | AU172: 0 | AV172: 0 | BB172: 0 | BC172: 0 | BD172: 0 | BE172: 0 | BG172: 0 | BH172: 0
A173: 166 | I173: 0 | J173: 0 | K173: 0 | L173: 0 | R173: 0 | S173: 0 | T173: 0 | U173: 0 | AA173: 0 | AB173: 0 | AC173: 0 | AD173: 0 | AJ173: 0 | AK173: 0 | AL173: 0 | AM173: 0 | AS173: 0 | AT173: 0 | AU173: 0 | AV173: 0 | BB173: 0 | BC173: 0 | BD173: 0 | BE173: 0 | BG173: 0 | BH173: 0
A174: 167 | I174: 0 | J174: 0 | K174: 0 | L174: 0 | R174: 0 | S174: 0 | T174: 0 | U174: 0 | AA174: 0 | AB174: 0 | AC174: 0 | AD174: 0 | AJ174: 0 | AK174: 0 | AL174: 0 | AM174: 0 | AS174: 0 | AT174: 0 | AU174: 0 | AV174: 0 | BB174: 0 | BC174: 0 | BD174: 0 | BE174: 0 | BG174: 0 | BH174: 0
A175: 168 | I175: 0 | J175: 0 | K175: 0 | L175: 0 | R175: 0 | S175: 0 | T175: 0 | U175: 0 | AA175: 0 | AB175: 0 | AC175: 0 | AD175: 0 | AJ175: 0 | AK175: 0 | AL175: 0 | AM175: 0 | AS175: 0 | AT175: 0 | AU175: 0 | AV175: 0 | BB175: 0 | BC175: 0 | BD175: 0 | BE175: 0 | BG175: 0 | BH175: 0
A176: 169 | I176: 0 | J176: 0 | K176: 0 | L176: 0 | R176: 0 | S176: 0 | T176: 0 | U176: 0 | AA176: 0 | AB176: 0 | AC176: 0 | AD176: 0 | AJ176: 0 | AK176: 0 | AL176: 0 | AM176: 0 | AS176: 0 | AT176: 0 | AU176: 0 | AV176: 0 | BB176: 0 | BC176: 0 | BD176: 0 | BE176: 0 | BG176: 0 | BH176: 0
A177: 170 | I177: 0 | J177: 0 | K177: 0 | L177: 0 | R177: 0 | S177: 0 | T177: 0 | U177: 0 | AA177: 0 | AB177: 0 | AC177: 0 | AD177: 0 | AJ177: 0 | AK177: 0 | AL177: 0 | AM177: 0 | AS177: 0 | AT177: 0 | AU177: 0 | AV177: 0 | BB177: 0 | BC177: 0 | BD177: 0 | BE177: 0 | BG177: 0 | BH177: 0
A178: 171 | I178: 0 | J178: 0 | K178: 0 | L178: 0 | R178: 0 | S178: 0 | T178: 0 | U178: 0 | AA178: 0 | AB178: 0 | AC178: 0 | AD178: 0 | AJ178: 0 | AK178: 0 | AL178: 0 | AM178: 0 | AS178: 0 | AT178: 0 | AU178: 0 | AV178: 0 | BB178: 0 | BC178: 0 | BD178: 0 | BE178: 0 | BG178: 0 | BH178: 0
A179: 172 | I179: 0 | J179: 0 | K179: 0 | L179: 0 | R179: 0 | S179: 0 | T179: 0 | U179: 0 | AA179: 0 | AB179: 0 | AC179: 0 | AD179: 0 | AJ179: 0 | AK179: 0 | AL179: 0 | AM179: 0 | AS179: 0 | AT179: 0 | AU179: 0 | AV179: 0 | BB179: 0 | BC179: 0 | BD179: 0 | BE179: 0 | BG179: 0 | BH179: 0
A180: 173 | I180: 0 | J180: 0 | K180: 0 | L180: 0 | R180: 0 | S180: 0 | T180: 0 | U180: 0 | AA180: 0 | AB180: 0 | AC180: 0 | AD180: 0 | AJ180: 0 | AK180: 0 | AL180: 0 | AM180: 0 | AS180: 0 | AT180: 0 | AU180: 0 | AV180: 0 | BB180: 0 | BC180: 0 | BD180: 0 | BE180: 0 | BG180: 0 | BH180: 0
A181: 174 | I181: 0 | J181: 0 | K181: 0 | L181: 0 | R181: 0 | S181: 0 | T181: 0 | U181: 0 | AA181: 0 | AB181: 0 | AC181: 0 | AD181: 0 | AJ181: 0 | AK181: 0 | AL181: 0 | AM181: 0 | AS181: 0 | AT181: 0 | AU181: 0 | AV181: 0 | BB181: 0 | BC181: 0 | BD181: 0 | BE181: 0 | BG181: 0 | BH181: 0
A182: 175 | I182: 0 | J182: 0 | K182: 0 | L182: 0 | R182: 0 | S182: 0 | T182: 0 | U182: 0 | AA182: 0 | AB182: 0 | AC182: 0 | AD182: 0 | AJ182: 0 | AK182: 0 | AL182: 0 | AM182: 0 | AS182: 0 | AT182: 0 | AU182: 0 | AV182: 0 | BB182: 0 | BC182: 0 | BD182: 0 | BE182: 0 | BG182: 0 | BH182: 0
A183: 176 | I183: 0 | J183: 0 | K183: 0 | L183: 0 | R183: 0 | S183: 0 | T183: 0 | U183: 0 | AA183: 0 | AB183: 0 | AC183: 0 | AD183: 0 | AJ183: 0 | AK183: 0 | AL183: 0 | AM183: 0 | AS183: 0 | AT183: 0 | AU183: 0 | AV183: 0 | BB183: 0 | BC183: 0 | BD183: 0 | BE183: 0 | BG183: 0 | BH183: 0
A184: 177 | I184: 0 | J184: 0 | K184: 0 | L184: 0 | R184: 0 | S184: 0 | T184: 0 | U184: 0 | AA184: 0 | AB184: 0 | AC184: 0 | AD184: 0 | AJ184: 0 | AK184: 0 | AL184: 0 | AM184: 0 | AS184: 0 | AT184: 0 | AU184: 0 | AV184: 0 | BB184: 0 | BC184: 0 | BD184: 0 | BE184: 0 | BG184: 0 | BH184: 0
A185: 178 | I185: 0 | J185: 0 | K185: 0 | L185: 0 | R185: 0 | S185: 0 | T185: 0 | U185: 0 | AA185: 0 | AB185: 0 | AC185: 0 | AD185: 0 | AJ185: 0 | AK185: 0 | AL185: 0 | AM185: 0 | AS185: 0 | AT185: 0 | AU185: 0 | AV185: 0 | BB185: 0 | BC185: 0 | BD185: 0 | BE185: 0 | BG185: 0 | BH185: 0
A186: 179 | I186: 0 | J186: 0 | K186: 0 | L186: 0 | R186: 0 | S186: 0 | T186: 0 | U186: 0 | AA186: 0 | AB186: 0 | AC186: 0 | AD186: 0 | AJ186: 0 | AK186: 0 | AL186: 0 | AM186: 0 | AS186: 0 | AT186: 0 | AU186: 0 | AV186: 0 | BB186: 0 | BC186: 0 | BD186: 0 | BE186: 0 | BG186: 0 | BH186: 0
A187: 180 | I187: 0 | J187: 0 | K187: 0 | L187: 0 | R187: 0 | S187: 0 | T187: 0 | U187: 0 | AA187: 0 | AB187: 0 | AC187: 0 | AD187: 0 | AJ187: 0 | AK187: 0 | AL187: 0 | AM187: 0 | AS187: 0 | AT187: 0 | AU187: 0 | AV187: 0 | BB187: 0 | BC187: 0 | BD187: 0 | BE187: 0 | BG187: 0 | BH187: 0
A188: 181 | I188: 0 | J188: 0 | K188: 0 | L188: 0 | R188: 0 | S188: 0 | T188: 0 | U188: 0 | AA188: 0 | AB188: 0 | AC188: 0 | AD188: 0 | AJ188: 0 | AK188: 0 | AL188: 0 | AM188: 0 | AS188: 0 | AT188: 0 | AU188: 0 | AV188: 0 | BB188: 0 | BC188: 0 | BD188: 0 | BE188: 0 | BG188: 0 | BH188: 0
A189: 182 | I189: 0 | J189: 0 | K189: 0 | L189: 0 | R189: 0 | S189: 0 | T189: 0 | U189: 0 | AA189: 0 | AB189: 0 | AC189: 0 | AD189: 0 | AJ189: 0 | AK189: 0 | AL189: 0 | AM189: 0 | AS189: 0 | AT189: 0 | AU189: 0 | AV189: 0 | BB189: 0 | BC189: 0 | BD189: 0 | BE189: 0 | BG189: 0 | BH189: 0
A190: 183 | I190: 0 | J190: 0 | K190: 0 | L190: 0 | R190: 0 | S190: 0 | T190: 0 | U190: 0 | AA190: 0 | AB190: 0 | AC190: 0 | AD190: 0 | AJ190: 0 | AK190: 0 | AL190: 0 | AM190: 0 | AS190: 0 | AT190: 0 | AU190: 0 | AV190: 0 | BB190: 0 | BC190: 0 | BD190: 0 | BE190: 0 | BG190: 0 | BH190: 0
A191: 184 | I191: 0 | J191: 0 | K191: 0 | L191: 0 | R191: 0 | S191: 0 | T191: 0 | U191: 0 | AA191: 0 | AB191: 0 | AC191: 0 | AD191: 0 | AJ191: 0 | AK191: 0 | AL191: 0 | AM191: 0 | AS191: 0 | AT191: 0 | AU191: 0 | AV191: 0 | BB191: 0 | BC191: 0 | BD191: 0 | BE191: 0 | BG191: 0 | BH191: 0
A192: 185 | I192: 0 | J192: 0 | K192: 0 | L192: 0 | R192: 0 | S192: 0 | T192: 0 | U192: 0 | AA192: 0 | AB192: 0 | AC192: 0 | AD192: 0 | AJ192: 0 | AK192: 0 | AL192: 0 | AM192: 0 | AS192: 0 | AT192: 0 | AU192: 0 | AV192: 0 | BB192: 0 | BC192: 0 | BD192: 0 | BE192: 0 | BG192: 0 | BH192: 0
A193: 186 | I193: 0 | J193: 0 | K193: 0 | L193: 0 | R193: 0 | S193: 0 | T193: 0 | U193: 0 | AA193: 0 | AB193: 0 | AC193: 0 | AD193: 0 | AJ193: 0 | AK193: 0 | AL193: 0 | AM193: 0 | AS193: 0 | AT193: 0 | AU193: 0 | AV193: 0 | BB193: 0 | BC193: 0 | BD193: 0 | BE193: 0 | BG193: 0 | BH193: 0
A194: 187 | I194: 0 | J194: 0 | K194: 0 | L194: 0 | R194: 0 | S194: 0 | T194: 0 | U194: 0 | AA194: 0 | AB194: 0 | AC194: 0 | AD194: 0 | AJ194: 0 | AK194: 0 | AL194: 0 | AM194: 0 | AS194: 0 | AT194: 0 | AU194: 0 | AV194: 0 | BB194: 0 | BC194: 0 | BD194: 0 | BE194: 0 | BG194: 0 | BH194: 0
A195: 188 | I195: 0 | J195: 0 | K195: 0 | L195: 0 | R195: 0 | S195: 0 | T195: 0 | U195: 0 | AA195: 0 | AB195: 0 | AC195: 0 | AD195: 0 | AJ195: 0 | AK195: 0 | AL195: 0 | AM195: 0 | AS195: 0 | AT195: 0 | AU195: 0 | AV195: 0 | BB195: 0 | BC195: 0 | BD195: 0 | BE195: 0 | BG195: 0 | BH195: 0
A196: 189 | I196: 0 | J196: 0 | K196: 0 | L196: 0 | R196: 0 | S196: 0 | T196: 0 | U196: 0 | AA196: 0 | AB196: 0 | AC196: 0 | AD196: 0 | AJ196: 0 | AK196: 0 | AL196: 0 | AM196: 0 | AS196: 0 | AT196: 0 | AU196: 0 | AV196: 0 | BB196: 0 | BC196: 0 | BD196: 0 | BE196: 0 | BG196: 0 | BH196: 0
A197: 190 | I197: 0 | J197: 0 | K197: 0 | L197: 0 | R197: 0 | S197: 0 | T197: 0 | U197: 0 | AA197: 0 | AB197: 0 | AC197: 0 | AD197: 0 | AJ197: 0 | AK197: 0 | AL197: 0 | AM197: 0 | AS197: 0 | AT197: 0 | AU197: 0 | AV197: 0 | BB197: 0 | BC197: 0 | BD197: 0 | BE197: 0 | BG197: 0 | BH197: 0
A198: 191 | I198: 0 | J198: 0 | K198: 0 | L198: 0 | R198: 0 | S198: 0 | T198: 0 | U198: 0 | AA198: 0 | AB198: 0 | AC198: 0 | AD198: 0 | AJ198: 0 | AK198: 0 | AL198: 0 | AM198: 0 | AS198: 0 | AT198: 0 | AU198: 0 | AV198: 0 | BB198: 0 | BC198: 0 | BD198: 0 | BE198: 0 | BG198: 0 | BH198: 0
A199: 192 | I199: 0 | J199: 0 | K199: 0 | L199: 0 | R199: 0 | S199: 0 | T199: 0 | U199: 0 | AA199: 0 | AB199: 0 | AC199: 0 | AD199: 0 | AJ199: 0 | AK199: 0 | AL199: 0 | AM199: 0 | AS199: 0 | AT199: 0 | AU199: 0 | AV199: 0 | BB199: 0 | BC199: 0 | BD199: 0 | BE199: 0 | BG199: 0 | BH199: 0
A200: 193 | G200: =IFERROR(F200/E200,"") ->  | I200: =+F200+H200 -> 0 | J200: =+E200-I200 -> 0 | K200: =+I200*0.1 -> 0 | L200: =+J200+K200 -> 0 | M200: =IFERROR(+L200/E200,"") ->  | R200: 0 | S200: 0 | T200: 0 | U200: 0 | AA200: 0 | AB200: 0 | AC200: 0 | AD200: 0 | AJ200: 0 | AK200: 0 | AL200: 0 | AM200: 0 | AS200: 0 | AT200: 0 | AU200: 0 | AV200: 0 | BB200: 0 | BC200: 0 | BD200: 0 | BE200: 0 | BG200: 0 | BH200: 0
A201: 194 | I201: 0 | J201: 0 | K201: 0 | L201: 0 | P201: =IFERROR(O201/N201,"") ->  | R201: =+O201+Q201 -> 0 | S201: =+N201-R201 -> 0 | T201: =+R201*0.1 -> 0 | U201: =+S201+T201 -> 0 | V201: =IFERROR(+U201/N201,"") ->  | Y201: =IFERROR(X201/W201,"") ->  | AA201: =+X201+Z201 -> 0 | AB201: =+W201-AA201 -> 0 | AC201: =+AA201*0.1 -> 0 | AD201: =+AB201+AC201 -> 0 | AE201: =IFERROR(+AD201/W201,"") ->  | AH201: =IFERROR(AG201/AF201,"") ->  | AJ201: =+AG201+AI201 -> 0 | AK201: =+AF201-AJ201 -> 0 | AL201: =+AJ201*0.1 -> 0 | AM201: =+AK201+AL201 -> 0 | AN201: =IFERROR(+AM201/AF201,"") ->  | AQ201: =IFERROR(AP201/AO201,"") ->  | AS201: =+AP201+AR201 -> 0 | AT201: =+AO201-AS201 -> 0 | AU201: =+AS201*0.1 -> 0 | AV201: =+AT201+AU201 -> 0 | AW201: =IFERROR(+AV201/AO201,"") ->  | AZ201: =IFERROR(AY201/AX201,"") ->  | BB201: =+AY201+BA201 -> 0 | BC201: =+AX201-BB201 -> 0 | BD201: =+BB201*0.1 -> 0 | BE201: =+BC201+BD201 -> 0 | BF201: =IFERROR(+BE201/AX201,"") ->  | BG201: =+W201+AF201+AO201+AX201 -> 0 | BH201: =U201+AD201+AM201+AV201+BE201 -> 0 | BI201: =IFERROR(BH201/BJ201,"") -> 
A202: 195 | I202: 0 | J202: 0 | K202: 0 | L202: 0 | R202: 0 | S202: 0 | T202: 0 | U202: 0 | AA202: 0 | AB202: 0 | AC202: 0 | AD202: 0 | AJ202: 0 | AK202: 0 | AL202: 0 | AM202: 0 | AS202: 0 | AT202: 0 | AU202: 0 | AV202: 0 | BB202: 0 | BC202: 0 | BD202: 0 | BE202: 0 | BG202: 0 | BH202: 0
A203: 196 | I203: 0 | J203: 0 | K203: 0 | L203: 0 | R203: 0 | S203: 0 | T203: 0 | U203: 0 | AA203: 0 | AB203: 0 | AC203: 0 | AD203: 0 | AJ203: 0 | AK203: 0 | AL203: 0 | AM203: 0 | AS203: 0 | AT203: 0 | AU203: 0 | AV203: 0 | BB203: 0 | BC203: 0 | BD203: 0 | BE203: 0 | BG203: 0 | BH203: 0
... 355 more rows

Sheet 2. Susceptibles x Nivel
G2: RIESGO | H2: % COBERTURA | J2: RIESGO | K2: % DE SUSCEPTIBLES
G3: ALTO | H3: <90% | J3: ALTO | K3: 80-100%
G4: MEDIO | H4: 90-94% | J4: MEDIO | K4: 50-79%
G5: BAJO | H5: 95-100% | J5: BAJO | K5: <50%
C6: CÁLCULO DE SUSCEPTIBLES POR ESTADO/PROVINCIA Y MUNICIPIO/REGIÓN SANITARIA
C7: CAMPAÑA DE VACUNACIÓN DE SEGUIMIENTO DE POLIO, SARAMPIÓN RUBEOLA DE ALTA CALIDAD (CVS)
D9: Variables | E9: Población de 1 a 6 años | K9: Total
E10: 2015 (6 Años) | F10: 2016 (5 Años) | G10: 2017 (4 Años) | H10: 2018 (3 Años) | I10: 2019 (2 Años) | J10: 2020 (1 Años)

Sheet 3. Susceptibles
G2: RIESGO | H2: % COBERTURA | J2: RIESGO | K2: % DE SUSCEPTIBLES
G3: ALTO | H3: <90% | J3: ALTO | K3: 80-100%
G4: MEDIO | H4: 90-94% | J4: MEDIO | K4: 50-79%
G5: BAJO | H5: 95-100% | J5: BAJO | K5: <50%
C7: CÁLCULO DE SUSCEPTIBLES
C8: CAMPAÑA DE VACUNACIÓN DE SEGUIMIENTO DE POLIO, SARAMPIÓN RUBEOLA DE ALTA CALIDAD (CVS)
D10: Variables | E10: Población de 1 a 6 años | K10: Total
E11: 2015 (6 Años) | F11: 2016 (5 Años) | G11: 2017 (4 Años) | H11: 2018 (3 Años) | I11: 2019 (2 Años) | J11: 2020 (1 Años)
D12: Población de 12 a 23 meses | E12: ='1. Lista Consolidado Susceptibl'!$E$558 -> 0 | F12: ='1. Lista Consolidado Susceptibl'!$N$558 -> 0 | G12: ='1. Lista Consolidado Susceptibl'!W$558 -> 0 | H12: ='1. Lista Consolidado Susceptibl'!$AF$558 -> 0 | I12: ='1. Lista Consolidado Susceptibl'!$AO$558 -> 0 | J12: ='1. Lista Consolidado Susceptibl'!$AX$558 -> 0 | K12: =SUM(E12:J12) -> 0
D13: Número de niños vacunados con SRP1 de 12 a 23 meses | E13: ='1. Lista Consolidado Susceptibl'!$F$558 -> 0 | F13: ='1. Lista Consolidado Susceptibl'!$O$558 -> 0 | G13: ='1. Lista Consolidado Susceptibl'!X$558 -> 0 | H13: ='1. Lista Consolidado Susceptibl'!$AG$558 -> 0 | I13: ='1. Lista Consolidado Susceptibl'!$AP$558 -> 0 | J13: ='1. Lista Consolidado Susceptibl'!$AY$558 -> 0 | K13: =SUM(E13:J13) -> 0
D14: % de Cobertura | E14: =E13/E12 ->  | F14: =F13/F12 ->  | G14: =G13/G12 -> 
D15: Número de niños vacunados con SRP de 2 a 4 años (Esquema tardío) | E15: ='1. Lista Consolidado Susceptibl'!$H$558 -> 0 | F15: ='1. Lista Consolidado Susceptibl'!$Q$558 -> 0 | G15: ='1. Lista Consolidado Susceptibl'!$Z$558 -> 0 | H15: ='1. Lista Consolidado Susceptibl'!$AI$558 -> 0 | I15: ='1. Lista Consolidado Susceptibl'!$AR$558 -> 0 | J15: ='1. Lista Consolidado Susceptibl'!$BA$558 -> 0 | K15: =SUM(E15:J15) -> 0
D16: Total de niños vacunados | E16: =E15+E13 -> 0 | F16: =F15+F13 -> 0 | G16: =G15+G13 -> 0 | H16: 0 | I16: 0 | J16: 0 | K16: =K15+K13 -> 0
D17: Número de niños no vacunados con SRP | E17: =E12-E16 -> 0 | F17: =F12-F16 -> 0 | G17: =G12-G16 -> 0 | H17: 0 | I17: 0 | J17: 0 | K17: =K12-K16 -> 0
D18: Vacunados y no inmunizados (10% de los vacunados) | E18: =E16*10/100 -> 0 | F18: =F16*10/100 -> 0 | G18: =G16*10/100 -> 0 | H18: 0 | I18: 0 | J18: 0 | K18: =K16*10/100 -> 0
D19: Total de susceptibles | E19: =E18+E17 -> 0 | F19: =F18+F17 -> 0 | G19: =G18+G17 -> 0 | H19: 0 | I19: 0 | J19: 0 | K19: 0
D20: % de susceptibles por cohorte anual | E20: =E19/E12 ->  | F20: =F19/F12 ->  | G20: =G19/G12 -> 
